Workbook

Sheet Calculated Data
A1: NAV_Date | B1: Direct NAV | C1: Regular NAV | D1: NAV difference | E1: XIRR difference | F1: IRR difference | G1: Annualised IRR difference
A2: 2013-01-02 | B2: 231.032 | C2: 231.028 | D2: =B2-C2 -> 0.004 | E2: 0.1734416962 | F2: 1.747159773e-05 | G2: 0.006397454315
A3: 2013-01-03 | B3: 231.435 | C3: 231.428 | D3: =B3-C3 -> 0.007 | E3: 0.03970031738 | F3: 3.057529603e-05 | G3: 0.005595502896
A4: 2013-01-04 | B4: 232.035 | C4: 232.023 | D4: 0.012 | E4: 0.03208413124 | F4: 5.24147932e-05 | G4: 0.006397342188
A5: 2013-01-08 | B5: 231.139 | C5: 231.11 | D5: 0.029 | E5: 0.01072763205 | F5: 0.0001266690836 | G5: 0.006626327249
A6: 2013-01-09 | B6: 230.498 | C6: 230.465 | D6: 0.033 | E6: 0.008867287636 | F6: 0.0001441406813 | G6: 0.006597613661
A7: 2013-01-10 | B7: 230.44 | C7: 230.402 | D7: 0.038 | E7: 0.008682656288 | F7: 0.0001659801785 | G7: 0.006753562915
A8: 2013-01-11 | B8: 229.727 | C8: 229.686 | D8: 0.041 | E8: 0.007356643677 | F8: 0.0001790838768 | G8: 0.00655738238
A9: 2013-01-14 | B9: 233.008 | C9: 232.953 | D9: 0.055 | E9: 0.01082826853 | F9: 0.0002402344688 | G9: 0.006767028199
A10: 2013-01-16 | B10: 230.797 | C10: 230.736 | D10: 0.061 | E10: 0.00780184269 | F10: 0.0002664418654 | G10: 0.00650361239
A11: 2013-01-17 | B11: 232.393 | C11: 232.326 | D11: 0.067 | E11: 0.009222364426 | F11: 0.000292649262 | G11: 0.006697412639
A12: 2013-01-18 | B12: 234.155 | C12: 234.084 | D12: 0.071 | E12: 0.0105232358 | F12: 0.0003101208598 | G12: 0.006679655078
A13: 2013-01-21 | B13: 234.841 | C13: 234.759 | D13: 0.082 | E13: 0.01010637283 | F13: 0.0003581677535 | G13: 0.006556793457
A14: 2013-01-23 | B14: 232.271 | C14: 232.181 | D14: 0.09 | E14: 0.008143138885 | F14: 0.000393110949 | G14: 0.00654209302
A15: 2013-01-24 | B15: 229.474 | C15: 229.382 | D15: 0.092 | E15: 0.006581002474 | F15: 0.0004018467479 | G15: 0.006396221213
A16: 2013-01-25 | B16: 232.733 | C16: 232.636 | D16: 0.097 | E16: 0.008112490177 | F16: 0.000423686245 | G16: 0.006462992588
A17: 2013-01-29 | B17: 231.285 | C17: 231.174 | D17: 0.111 | E17: 0.007123208046 | F17: 0.0004848368371 | G17: 0.00633866771
A18: 2013-01-30 | B18: 230.861 | C18: 230.746 | D18: 0.115 | E18: 0.006943714619 | F18: 0.0005023084348 | G18: 0.006340587539
A19: 2013-01-31 | B19: 231.208 | C19: 231.09 | D19: 0.118 | E19: 0.006979632378 | F19: 0.0005154121331 | G19: 0.006288924907
A20: 2013-02-01 | B20: 230.308 | C20: 230.186 | D20: 0.122 | E20: 0.006670212746 | F20: 0.0005328837309 | G20: 0.006292319035
A21: 2013-02-04 | B21: 228.696 | C21: 228.564 | D21: 0.132 | E21: 0.00610768795 | F21: 0.0005765627252 | G21: 0.006206970681
A22: 2013-02-05 | B22: 227.359 | C22: 227.224 | D22: 0.135 | E22: 0.00574362874 | F22: 0.0005896664235 | G22: 0.006166501154
A23: 2013-02-06 | B23: 227.416 | C23: 227.277 | D23: 0.139 | E23: 0.005774366856 | F23: 0.0006071380212 | G23: 0.006172810768
A24: 2013-02-07 | B24: 225.917 | C24: 225.775 | D24: 0.142 | E24: 0.005422722548 | F24: 0.0006202417195 | G24: 0.006135449259
A25: 2013-02-08 | B25: 224.277 | C25: 224.133 | D25: 0.144 | E25: 0.005046509206 | F25: 0.0006289775183 | G25: 0.006057870527
A26: 2013-02-11 | B26: 224.331 | C26: 224.177 | D26: 0.154 | E26: 0.005084901676 | F26: 0.0006726565126 | G26: 0.006004223986
A27: 2013-02-12 | B27: 225.168 | C27: 225.009 | D27: 0.159 | E27: 0.005296685547 | F27: 0.0006944960098 | G27: 0.006051643847
A28: 2013-02-15 | B28: 222.501 | C28: 222.333 | D28: 0.168 | E28: 0.004845651984 | F28: 0.0007338071045 | G28: 0.005967543485
A29: 2013-02-18 | B29: 223.002 | C29: 222.823 | D29: 0.179 | E29: 0.00498444289 | F29: 0.0007818539983 | G29: 0.005960719936
A30: 2013-02-19 | B30: 224.648 | C30: 224.464 | D30: 0.184 | E30: 0.005284441262 | F30: 0.0008036934956 | G30: 0.006002233648
A31: 2013-02-20 | B31: 223.952 | C31: 223.765 | D31: 0.187 | E31: 0.005175932497 | F31: 0.0008167971939 | G31: 0.005977982963
A32: 2013-02-21 | B32: 220.112 | C32: 219.924 | D32: 0.188 | E32: 0.00460075289 | F32: 0.0008211650935 | G32: 0.005891843238
A33: 2013-02-22 | B33: 220.166 | C33: 219.975 | D33: 0.191 | E33: 0.004616068304 | F33: 0.0008342687918 | G33: 0.005870648935
A34: 2013-02-26 | B34: 216.441 | C34: 216.239 | D34: 0.202 | E34: 0.004207675159 | F34: 0.0008823156856 | G34: 0.005764825089
A35: 2013-02-28 | B35: 212.897 | C35: 212.692 | D35: 0.205 | E35: 0.003826010227 | F35: 0.0008954193839 | G35: 0.005648337532
A36: 2013-03-01 | B36: 214.515 | C36: 214.304 | D36: 0.211 | E36: 0.004057605565 | F36: 0.0009216267805 | G36: 0.005715233635
A37: 2013-03-04 | B37: 213.627 | C37: 213.406 | D37: 0.221 | E37: 0.004041163623 | F37: 0.0009653057748 | G37: 0.005696269831
A38: 2013-03-06 | B38: 219.375 | C38: 219.142 | D38: 0.233 | E38: 0.00473652631 | F38: 0.001017720568 | G38: 0.005818095853
A39: 2013-03-07 | B39: 220.573 | C39: 220.335 | D39: 0.238 | E39: 0.004903359711 | F39: 0.001039560065 | G39: 0.005851551298
A40: 2013-03-08 | B40: 223.112 | C40: 222.868 | D40: 0.244 | E40: 0.005230897665 | F40: 0.001065767461 | G40: 0.005908263771
A41: 2013-03-11 | B41: 222.912 | C41: 222.657 | D41: 0.255 | E41: 0.005241492391 | F41: 0.001113814355 | G41: 0.00590600981
A42: 2013-03-12 | B42: 221.68 | C42: 221.422 | D42: 0.258 | E42: 0.005117037892 | F42: 0.001126918054 | G42: 0.005890042756
A43: 2013-03-13 | B43: 218.502 | C43: 218.244 | D43: 0.258 | E43: 0.004763455689 | F43: 0.001126918054 | G43: 0.005806844013
A44: 2013-03-14 | B44: 221.417 | C44: 221.152 | D44: 0.265 | E44: 0.005109138787 | F44: 0.00115749335 | G44: 0.005881684432
A45: 2013-03-15 | B45: 219.958 | C45: 219.691 | D45: 0.267 | E45: 0.00495621264 | F45: 0.001166229149 | G45: 0.005844762519
A46: 2013-03-18 | B46: 218.403 | C46: 218.128 | D46: 0.275 | E46: 0.004810716212 | F46: 0.001201172344 | G46: 0.005781977829
A47: 2013-03-19 | B47: 214.581 | C47: 214.307 | D47: 0.274 | E47: 0.004441724718 | F47: 0.001196804445 | G47: 0.005685875375
A48: 2013-03-20 | B48: 211.168 | C48: 210.895 | D48: 0.273 | E48: 0.004134786129 | F48: 0.001192436545 | G48: 0.00559224583
A49: 2013-03-21 | B49: 209.461 | C49: 209.187 | D49: 0.274 | E49: 0.003997886181 | F49: 0.001196804445 | G49: 0.005541531066
A50: 2013-03-22 | B50: 208.857 | C50: 208.58 | D50: 0.277 | E50: 0.003970648348 | F50: 0.001209908143 | G50: 0.005532115069
A51: 2013-03-25 | B51: 207.915 | C51: 207.629 | D51: 0.286 | E51: 0.003950746357 | F51: 0.001249219238 | G51: 0.005505224368
A52: 2013-03-26 | B52: 207.964 | C52: 207.675 | D52: 0.289 | E52: 0.003967778385 | F52: 0.001262322936 | G52: 0.005496686291
A53: 2013-03-28 | B53: 210.782 | C53: 210.485 | D53: 0.297 | E53: 0.004201304913 | F53: 0.001297266132 | G53: 0.005517435924
A54: 2013-04-01 | B54: 211.858 | C54: 211.546 | D54: 0.312 | E54: 0.004350931942 | F54: 0.001362784623 | G54: 0.005538366575
A55: 2013-04-02 | B55: 214.527 | C55: 214.207 | D55: 0.32 | E55: 0.004598875344 | F55: 0.001397727819 | G55: 0.005618079095
A56: 2013-04-03 | B56: 211.482 | C56: 211.163 | D56: 0.319 | E56: 0.004358710349 | F56: 0.001393359919 | G56: 0.005539442638
A57: 2013-04-05 | B57: 208.084 | C57: 207.762 | D57: 0.322 | E57: 0.004137267172 | F57: 0.001406463618 | G57: 0.005472350268
A58: 2013-04-09 | B58: 205.514 | C58: 205.183 | D58: 0.331 | E58: 0.004003813863 | F58: 0.001445774712 | G58: 0.005395387287
A59: 2013-04-10 | B59: 207.954 | C59: 207.616 | D59: 0.338 | E59: 0.004194639623 | F59: 0.001476350009 | G59: 0.00545391333
A60: 2013-04-11 | B60: 209.727 | C60: 209.383 | D60: 0.344 | E60: 0.004337963462 | F60: 0.001502557405 | G60: 0.005495262253
A61: 2013-04-12 | B61: 207.894 | C61: 207.552 | D61: 0.342 | E61: 0.00418651253 | F61: 0.001493821606 | G61: 0.005409012229
A62: 2013-04-15 | B62: 209.665 | C62: 209.31 | D62: 0.355 | E62: 0.004354780912 | F62: 0.001550604299 | G62: 0.005452621569
A63: 2013-04-16 | B63: 213.516 | C63: 213.151 | D63: 0.365 | E63: 0.004652948678 | F63: 0.001594283293 | G63: 0.00555298026
A64: 2013-04-17 | B64: 214.211 | C64: 213.84 | D64: 0.371 | E64: 0.004732985795 | F64: 0.00162049069 | G64: 0.005591047131
A65: 2013-04-18 | B65: 217.525 | C65: 217.145 | D65: 0.38 | E65: 0.004994333535 | F65: 0.001659801785 | G65: 0.005673279452
A66: 2013-04-22 | B66: 219.694 | C66: 219.296 | D66: 0.398 | E66: 0.005190912634 | F66: 0.001738423975 | G66: 0.005727817726
A67: 2013-04-23 | B67: 218.895 | C67: 218.494 | D67: =B67-C67 -> 0.401 | E67: 0.005147105455 | F67: 0.001751527673 | G67: 0.00571940415
A68: 2013-04-26 | B68: 219.101 | C68: 218.689 | D68: 0.412 | E68: 0.005180740356 | F68: 0.001799574567 | G68: 0.005722873468
A69: 2013-04-29 | B69: 220.449 | C69: 220.025 | D69: 0.424 | E69: 0.005282087624 | F69: 0.00185198936 | G69: 0.005739722479
A70: 2013-04-30 | B70: 221.578 | C70: 221.148 | D70: 0.43 | E70: 0.005373530462 | F70: 0.001878196756 | G70: 0.005772046788
A71: 2013-05-02 | B71: 223.913 | C71: 223.472 | D71: 0.441 | E71: 0.005544984341 | F71: 0.00192624365 | G71: 0.005821862126
A72: 2013-05-03 | B72: 221.23 | C72: 220.791 | D72: 0.439 | E72: 0.00534770675 | F72: 0.001917507851 | G72: 0.005747768509
A73: 2013-05-06 | B73: 222.419 | C73: 221.968 | D73: 0.451 | E73: 0.005430996418 | F73: 0.001969922648 | G73: 0.005763058789
A74: 2013-05-08 | B74: 225.152 | C74: 224.689 | D74: 0.463 | E74: 0.005622327328 | F74: 0.002022337437 | G74: 0.005823249994
A75: 2013-05-09 | B75: 224.983 | C75: 224.516 | D75: 0.467 | E75: 0.005620914698 | F75: 0.002039809035 | G75: 0.005827633558
A76: 2013-05-10 | B76: 226.708 | C76: 226.234 | D76: 0.474 | E76: 0.005742865801 | F76: 0.002070384331 | G76: 0.005869164779
A77: 2013-05-13 | B77: 222.743 | C77: 222.268 | D77: 0.475 | E77: 0.005455327034 | F77: 0.00207475223 | G77: 0.005747515009
A78: 2013-05-14 | B78: 223.796 | C78: 223.315 | D78: 0.481 | E78: 0.005531191826 | F78: 0.002100959627 | G78: 0.005776362292
A79: 2013-05-17 | B79: 232.016 | C79: 231.507 | D79: 0.509 | E79: 0.006091046333 | F79: 0.002223260812 | G79: 0.005978014005
A80: 2013-05-20 | B80: 230.494 | C80: 229.977 | D80: 0.517 | E80: 0.005984342098 | F80: 0.002258204007 | G80: 0.005940707398
A81: 2013-05-22 | B81: 227.056 | C81: 226.543 | D81: 0.513 | E81: 0.005714440346 | F81: 0.002240732409 | G81: 0.005810806162
A82: 2013-05-23 | B82: 220.782 | C82: 220.281 | D82: 0.501 | E82: 0.005303776264 | F82: 0.002188317616 | G82: 0.005634570156
A83: 2013-05-24 | B83: 221.922 | C83: 221.414 | D83: 0.508 | E83: 0.005386680365 | F83: 0.002218892912 | G83: 0.005673366525
A84: 2013-05-27 | B84: 224.219 | C84: 223.696 | D84: 0.523 | E84: 0.005525499582 | F84: 0.002284411403 | G84: 0.005720816986
A85: 2013-05-29 | B85: 224.316 | C85: 223.786 | D85: 0.53 | E85: 0.005531281233 | F85: 0.002314986699 | G85: 0.005718950607
A86: 2013-05-30 | B86: 224.584 | C86: 224.051 | D86: 0.533 | E86: 0.005536770821 | F86: 0.002328090398 | G86: 0.00571266733
A87: 2013-05-31 | B87: 220.397 | C87: 219.87 | D87: 0.527 | E87: 0.005294913054 | F87: 0.002301883001 | G87: 0.005610491992
A88: 2013-06-03 | B88: 220.201 | C88: 219.664 | D88: 0.537 | E88: 0.00529280901 | F88: 0.002345561996 | G88: 0.005604717548
A89: 2013-06-04 | B89: 219.839 | C89: 219.3 | D89: 0.539 | E89: 0.005269363523 | F89: 0.002354297795 | G89: 0.005588993811
A90: 2013-06-05 | B90: 219.867 | C90: 219.325 | D90: 0.542 | E90: 0.005268731713 | F90: 0.002367401493 | G90: 0.005583791696
A91: 2013-06-06 | B91: 220.179 | C91: 219.633 | D91: 0.546 | E91: 0.005286896229 | F91: 0.002384873091 | G91: 0.0055889083
A92: 2013-06-07 | B92: 218.51 | C92: 217.964 | D92: 0.546 | E92: 0.005203592777 | F92: 0.002384873091 | G92: 0.005553211499
A93: 2013-06-10 | B93: 217.257 | C93: 216.705 | D93: 0.552 | E93: 0.005134807527 | F93: 0.002411080487 | G93: 0.005508775001
A94: 2013-06-11 | B94: 213.714 | C94: 213.169 | D94: 0.545 | E94: 0.004938054085 | F94: 0.002380505191 | G94: 0.005404938367
A95: 2013-06-12 | B95: 212.595 | C95: 212.049 | D95: 0.546 | E95: 0.004889076948 | F95: 0.002384873091 | G95: 0.005381355751
A96: 2013-06-14 | B96: 214.288 | C96: 213.732 | D96: 0.556 | E96: 0.004976161569 | F96: 0.002428552085 | G96: 0.005413054571
A97: 2013-06-17 | B97: 215.619 | C97: 215.05 | D97: 0.569 | E97: 0.005051343888 | F97: 0.002485334778 | G97: 0.005440023578
A98: 2013-06-18 | B98: 214.419 | C98: 213.852 | D98: 0.567 | E98: 0.004974941164 | F98: 0.002476598979 | G98: 0.005388520301
A99: 2013-06-19 | B99: 214.66 | C99: 214.089 | D99: 0.571 | E99: 0.004991128296 | F99: 0.002494070577 | G99: 0.005394393625
A100: 2013-06-21 | B100: 207.927 | C100: 207.368 | D100: 0.559 | E100: 0.004665273428 | F100: 0.002441655783 | G100: 0.005218940604
A101: 2013-06-25 | B101: 203.86 | C101: 203.301 | D101: 0.559 | E101: 0.004483084381 | F101: 0.002441655783 | G101: 0.005099346904
A102: 2013-06-26 | B102: 203.469 | C102: 202.908 | D102: 0.561 | E102: 0.004470531642 | F102: 0.002450391582 | G102: 0.005088464461
A103: 2013-06-27 | B103: 205.891 | C103: 205.321 | D103: 0.57 | E103: 0.00458008647 | F103: 0.002489702677 | G103: 0.005140921416
A104: 2013-06-28 | B104: 211.331 | C104: 210.742 | D104: 0.589 | E104: 0.004842869192 | F104: 0.002572692766 | G104: 0.005282595005
A105: 2013-07-01 | B105: 214.49 | C105: 213.882 | D105: 0.608 | E105: 0.00500466004 | F105: 0.002655682856 | G105: 0.005362611622
A106: 2013-07-02 | B106: 213.221 | C106: 212.613 | D106: 0.608 | E106: 0.004951163381 | F106: 0.002655682856 | G106: 0.005333068294
A107: 2013-07-03 | B107: 208.7 | C107: 208.102 | D107: 0.598 | E107: 0.004744730517 | F107: 0.002612003861 | G107: 0.005216501189
A108: 2013-07-04 | B108: 210.781 | C108: 210.172 | D108: 0.609 | E108: 0.004857768863 | F108: 0.002660050755 | G108: 0.005283634777
A109: 2013-07-05 | B109: 211.202 | C109: 210.589 | D109: 0.613 | E109: 0.004877060652 | F109: 0.002677522353 | G109: 0.005289560175
A110: 2013-07-08 | B110: 209.082 | C110: 208.466 | D110: 0.616 | E110: 0.004789399356 | F110: 0.002690626051 | G110: 0.005230437989
A111: 2013-07-09 | B111: 210.713 | C111: 210.089 | D111: 0.624 | E111: 0.00486554727 | F111: 0.002725569246 | G111: 0.005270344904
A112: 2013-07-10 | B112: 209.111 | C112: 208.488 | D112: 0.623 | E112: 0.004802414775 | F112: 0.002721201347 | G112: 0.005234121653
A113: 2013-07-11 | B113: 212.603 | C113: 211.967 | D113: 0.636 | E113: 0.004955656081 | F113: 0.00277798404 | G113: 0.005315429859
A114: 2013-07-12 | B114: 215.065 | C114: 214.418 | D114: 0.647 | E114: 0.005071178824 | F114: 0.002826030933 | G114: 0.005379241985
A115: 2013-07-15 | B115: 216.048 | C115: 215.388 | D115: 0.66 | E115: 0.005123260617 | F115: 0.002882813626 | G115: 0.005402815645
A116: 2013-07-17 | B116: 210.818 | C116: 210.168 | D116: 0.65 | E116: 0.004896593839 | F116: 0.002839134632 | G116: 0.005266692827
A117: 2013-07-18 | B117: 213.315 | C117: 212.654 | D117: 0.661 | E117: 0.00500767082 | F117: 0.002887181526 | G117: 0.005328808935
A118: 2013-07-19 | B118: 212.748 | C118: 212.086 | D118: 0.662 | E118: 0.004982277006 | F118: 0.002891549425 | G118: 0.005309990917
A119: 2013-07-22 | B119: 212.513 | C119: 211.842 | D119: 0.671 | E119: 0.004980640858 | F119: 0.00293086052 | G119: 0.00530212301
A120: 2013-07-23 | B120: 214.114 | C120: 213.435 | D120: 0.679 | E120: 0.005048708618 | F120: 0.002965803715 | G120: 0.00533891208
A121: 2013-07-24 | B121: 210.572 | C121: 209.9 | D121: 0.672 | E121: 0.004910071939 | F121: 0.002935228419 | G121: 0.005257838399
A122: 2013-07-26 | B122: 206.389 | C122: 205.725 | D122: 0.664 | E122: 0.004737636074 | F122: 0.002900285224 | G122: 0.005144605462
A123: 2013-07-29 | B123: 204.621 | C123: 203.953 | D123: 0.668 | E123: 0.004680132866 | F123: 0.002917756822 | G123: 0.005101151375
A124: 2013-07-30 | B124: 200.763 | C124: 200.105 | D124: 0.658 | E124: 0.00452837348 | F124: 0.002874077827 | G124: 0.005000718158
A125: 2013-07-31 | B125: 201.277 | C125: 200.615 | D125: 0.662 | E125: 0.004547739029 | F125: 0.002891549425 | G125: 0.005007246139
A126: 2013-08-01 | B126: 199.631 | C126: 198.97 | D126: 0.661 | E126: 0.004497501254 | F126: 0.002887181525 | G126: 0.004976032418
A127: 2013-08-02 | B127: 197.032 | C127: 196.378 | D127: 0.654 | E127: 0.004392667115 | F127: 0.002856606229 | G127: 0.004900111387

Sheet calculation (new)
A1: NAV_Date | B1: Direct NAV | C1: For XIRR | D1: NAV_Date | E1: XIRR | F1: IRR | G1: % diff | H1: NAV_Date | I1: Regular NAV | J1: For XIRR | K1: NAV_Date | L1: XIRR | M1: IRR | N1: % diff | P1: XIRR difference | Q1: IRR difference | S1: Annualised IRR difference
A2: 2013-01-01 | B2: 228.943 | C2: =-B2 -> -228.943 | D2: 2013-01-01 | E2: =XIRR(C2:C3,D2:D3,) -> 26.5321703 | F2: =IRR(C2:C3) -> 0.009124541917 | G2: =(B3-B2)/B2 -> 0.009124541917 | H2: 2013-01-01 | I2: 228.943 | J2: =-I2 -> -228.943 | K2: 2013-01-01 | L2: =XIRR(J2:J3,K2:K3,) -> 26.3587286 | M2: =IRR(J2:J3) -> 0.009107070319 | N2: =(I3-I2)/I2 -> 0.009107070319 | P2: =E2-L2 -> 0.1734416962 | Q2: =F2-M2 -> 1.747159773e-05 | S2: =(1+Q2)^(365/(K3-K2))-1 -> 0.006397454315
A3: 2013-01-02 | B3: 231.032 | C3: =B3 -> 231.032 | D3: 2013-01-02 | H3: 2013-01-02 | I3: 231.028 | J3: =I3 -> 231.028 | K3: 2013-01-02
A4: 2013-01-01 | B4: 228.943 | C4: =-B4 -> -228.943 | D4: 2013-01-01 | E4: =XIRR(C4:C5,D4:D5,) -> 6.211980391 | F4: =IRR(C4:C5) -> 0.01088480539 | G4: =(B5-B4)/B4 -> 0.01088480539 | H4: 2013-01-01 | I4: 228.943 | J4: =-I4 -> -228.943 | K4: 2013-01-01 | L4: =XIRR(J4:J5,K4:K5,) -> 6.172280073 | M4: =IRR(J4:J5) -> 0.01085423009 | N4: =(I5-I4)/I4 -> 0.01085423009 | P4: =E4-L4 -> 0.03970031738 | Q4: =F4-M4 -> 3.057529603e-05 | S4: =(1+Q4)^(365/(K5-K4))-1 -> 0.005595502896
A5: 2013-01-03 | B5: 231.435 | C5: =B5 -> 231.435 | D5: 2013-01-03 | H5: 2013-01-03 | I5: 231.428 | J5: =I5 -> 231.428 | K5: 2013-01-03
A6: 2013-01-01 | B6: 228.943 | C6: =-B6 -> -228.943 | D6: 2013-01-01 | E6: =XIRR(C6:C7,D6:D7,) -> 4.115000844 | F6: =IRR(C6:C7) -> 0.01350554505 | G6: =(B7-B6)/B6 -> 0.01350554505 | H6: 2013-01-01 | I6: 228.943 | J6: =-I6 -> -228.943 | K6: 2013-01-01 | L6: =XIRR(J6:J7,K6:K7,) -> 4.082916713 | M6: =IRR(J6:J7) -> 0.01345313026 | N6: =(I7-I6)/I6 -> 0.01345313026 | P6: =E6-L6 -> 0.03208413124 | Q6: =F6-M6 -> 5.24147932e-05 | S6: =(1+Q6)^(365/(K7-K6))-1 -> 0.006397342188
A7: 2013-01-04 | B7: 232.035 | C7: =B7 -> 232.035 | D7: 2013-01-04 | H7: 2013-01-04 | I7: 232.023 | J7: =I7 -> 232.023 | K7: 2013-01-04
A8: 2013-01-01 | B8: 228.943 | C8: =-B8 -> -228.943 | D8: 2013-01-01 | E8: =XIRR(C8:C9,D8:D9,) -> 0.6450421035 | F8: =IRR(C8:C9) -> 0.009591907156 | G8: =(B9-B8)/B8 -> 0.009591907156 | H8: 2013-01-01 | I8: 228.943 | J8: =-I8 -> -228.943 | K8: 2013-01-01 | L8: =XIRR(J8:J9,K8:K9,) -> 0.6343144715 | M8: =IRR(J8:J9) -> 0.009465238072 | N8: =(I9-I8)/I8 -> 0.009465238072 | P8: =E8-L8 -> 0.01072763205 | Q8: =F8-M8 -> 0.0001266690836 | S8: =(1+Q8)^(365/(K9-K8))-1 -> 0.006626327249
A9: 2013-01-08 | B9: 231.139 | C9: =B9 -> 231.139 | D9: 2013-01-08 | H9: 2013-01-08 | I9: 231.11 | J9: =I9 -> 231.11 | K9: 2013-01-08
A10: 2013-01-01 | B10: 228.943 | C10: =-B10 -> -228.943 | D10: 2013-01-01 | E10: =XIRR(C10:C11,D10:D11,) -> 0.3618460357 | F10: =IRR(C10:C11) -> 0.006792083619 | G10: =(B11-B10)/B10 -> 0.006792083619 | H10: 2013-01-01 | I10: 228.943 | J10: =-I10 -> -228.943 | K10: 2013-01-01 | L10: =XIRR(J10:J11,K10:K11,) -> 0.3529787481 | M10: =IRR(J10:J11) -> 0.006647942938 | N10: =(I11-I10)/I10 -> 0.006647942938 | P10: =E10-L10 -> 0.008867287636 | Q10: =F10-M10 -> 0.0001441406813 | S10: =(1+Q10)^(365/(K11-K10))-1 -> 0.006597613661 | U10: =MIN(S2:S252) -> 0.004900111387
A11: 2013-01-09 | B11: 230.498 | C11: =B11 -> 230.498 | D11: 2013-01-09 | H11: 2013-01-09 | I11: 230.465 | J11: =I11 -> 230.465 | K11: 2013-01-09
A12: 2013-01-01 | B12: 228.943 | C12: -228.943 | D12: 2013-01-01 | E12: =XIRR(C12:C13,D12:D13,) -> 0.3025439441 | F12: =IRR(C12:C13) -> 0.006538745452 | G12: =(B13-B12)/B12 -> 0.006538745452 | H12: 2013-01-01 | I12: 228.943 | J12: =-I12 -> -228.943 | K12: 2013-01-01 | L12: =XIRR(J12:J13,K12:K13,) -> 0.2938612878 | M12: =IRR(J12:J13) -> 0.006372765273 | N12: =(I13-I12)/I12 -> 0.006372765273 | P12: =E12-L12 -> 0.008682656288 | Q12: =F12-M12 -> 0.0001659801785 | S12: =(1+Q12)^(365/(K13-K12))-1 -> 0.006753562915
A13: 2013-01-10 | B13: 230.44 | C13: 230.44 | D13: 2013-01-10 | H13: 2013-01-10 | I13: 230.402 | J13: =I13 -> 230.402 | K13: 2013-01-10
A14: 2013-01-01 | B14: 228.943 | C14: -228.943 | D14: 2013-01-01 | E14: =XIRR(C14:C15,D14:D15,) -> 0.1328972399 | F14: =IRR(C14:C15) -> 0.003424433156 | G14: =(B15-B14)/B14 -> 0.003424433156 | H14: 2013-01-01 | I14: 228.943 | J14: =-I14 -> -228.943 | K14: 2013-01-01 | L14: =XIRR(J14:J15,K14:K15,) -> 0.1255405962 | M14: =IRR(J14:J15) -> 0.003245349279 | N14: =(I15-I14)/I14 -> 0.003245349279 | P14: =E14-L14 -> 0.007356643677 | Q14: =F14-M14 -> 0.0001790838768 | S14: =(1+Q14)^(365/(K15-K14))-1 -> 0.00655738238
A15: 2013-01-11 | B15: 229.727 | C15: 229.727 | D15: 2013-01-11 | H15: 2013-01-11 | I15: 229.686 | J15: =I15 -> 229.686 | K15: 2013-01-11
A16: 2013-01-01 | B16: 228.943 | C16: -228.943 | D16: 2013-01-01 | E16: =XIRR(C16:C17,D16:D17,) -> 0.6390979826 | F16: =IRR(C16:C17) -> 0.0177555112 | G16: =(B17-B16)/B16 -> 0.0177555112 | H16: 2013-01-01 | I16: 228.943 | J16: =-I16 -> -228.943 | K16: 2013-01-01 | L16: =XIRR(J16:J17,K16:K17,) -> 0.6282697141 | M16: =IRR(J16:J17) -> 0.01751527673 | N16: =(I17-I16)/I16 -> 0.01751527673 | P16: =E16-L16 -> 0.01082826853 | Q16: =F16-M16 -> 0.0002402344688 | S16: =(1+Q16)^(365/(K17-K16))-1 -> 0.006767028199
A17: 2013-01-14 | B17: 233.008 | C17: 233.008 | D17: 2013-01-14 | H17: 2013-01-14 | I17: 232.953 | J17: =I17 -> 232.953 | K17: 2013-01-14
A18: 2013-01-01 | B18: 228.943 | C18: -228.943 | D18: 2013-01-01 | E18: =XIRR(C18:C19,D18:D19,) -> 0.2168430269 | F18: =IRR(C18:C19) -> 0.00809808555 | G18: =(B19-B18)/B18 -> 0.00809808555 | H18: 2013-01-01 | I18: 228.943 | J18: =-I18 -> -228.943 | K18: 2013-01-01 | L18: =XIRR(J18:J19,K18:K19,) -> 0.2090411842 | M18: =IRR(J18:J19) -> 0.007831643684 | N18: =(I19-I18)/I18 -> 0.007831643684 | P18: =E18-L18 -> 0.00780184269 | Q18: =F18-M18 -> 0.0002664418654 | S18: =(1+Q18)^(365/(K19-K18))-1 -> 0.00650361239
A19: 2013-01-16 | B19: 230.797 | C19: 230.797 | D19: 2013-01-16 | H19: 2013-01-16 | I19: 230.736 | J19: =I19 -> 230.736 | K19: 2013-01-16
A20: 2013-01-01 | B20: 228.943 | C20: -228.943 | D20: 2013-01-01 | E20: =XIRR(C20:C21,D20:D21,) -> 0.4066386282 | F20: =IRR(C20:C21) -> 0.01506925305 | G20: =(B21-B20)/B20 -> 0.01506925305 | H20: 2013-01-01 | I20: 228.943 | J20: =-I20 -> -228.943 | K20: 2013-01-01 | L20: =XIRR(J20:J21,K20:K21,) -> 0.3974162638 | M20: =IRR(J20:J21) -> 0.01477660378 | N20: =(I21-I20)/I20 -> 0.01477660378 | P20: =E20-L20 -> 0.009222364426 | Q20: =F20-M20 -> 0.000292649262 | S20: =(1+Q20)^(365/(K21-K20))-1 -> 0.006697412639
A21: 2013-01-17 | B21: 232.393 | C21: 232.393 | D21: 2013-01-17 | H21: 2013-01-17 | I21: 232.326 | J21: =I21 -> 232.326 | K21: 2013-01-17
A22: 2013-01-01 | B22: 228.943 | C22: -228.943 | D22: 2013-01-01 | E22: =XIRR(C22:C23,D22:D23,) -> 0.6214288533 | F22: =IRR(C22:C23) -> 0.02276549185 | G22: =(B23-B22)/B22 -> 0.02276549185 | H22: 2013-01-01 | I22: 228.943 | J22: =-I22 -> -228.943 | K22: 2013-01-01 | L22: =XIRR(J22:J23,K22:K23,) -> 0.6109056175 | M22: =IRR(J22:J23) -> 0.02245537099 | N22: =(I23-I22)/I22 -> 0.02245537099 | P22: =E22-L22 -> 0.0105232358 | Q22: =F22-M22 -> 0.0003101208598 | S22: =(1+Q22)^(365/(K23-K22))-1 -> 0.006679655078
A23: 2013-01-18 | B23: 234.155 | C23: 234.155 | D23: 2013-01-18 | H23: 2013-01-18 | I23: 234.084 | J23: =I23 -> 234.084 | K23: 2013-01-18
A24: 2013-01-01 | B24: 228.943 | C24: -228.943 | D24: 2013-01-01 | E24: =XIRR(C24:C25,D24:D25,) -> 0.5907413423 | F24: =IRR(C24:C25) -> 0.02576187086 | G24: =(B25-B24)/B24 -> 0.02576187086 | H24: 2013-01-01 | I24: 228.943 | J24: =-I24 -> -228.943 | K24: 2013-01-01 | L24: =XIRR(J24:J25,K24:K25,) -> 0.5806349695 | M24: =IRR(J24:J25) -> 0.02540370311 | N24: =(I25-I24)/I24 -> 0.02540370311 | P24: =E24-L24 -> 0.01010637283 | Q24: =F24-M24 -> 0.0003581677535 | S24: =(1+Q24)^(365/(K25-K24))-1 -> 0.006556793457
A25: 2013-01-21 | B25: 234.841 | C25: 234.841 | D25: 2013-01-21 | H25: 2013-01-21 | I25: 234.759 | J25: =I25 -> 234.759 | K25: 2013-01-21
A26: 2013-01-01 | B26: 228.943 | C26: -228.943 | D26: 2013-01-01 | E26: =XIRR(C26:C27,D26:D27,) -> 0.2705317438 | F26: =IRR(C26:C27) -> 0.01453636931 | G26: =(B27-B26)/B26 -> 0.01453636931 | H26: 2013-01-01 | I26: 228.943 | J26: =-I26 -> -228.943 | K26: 2013-01-01 | L26: =XIRR(J26:J27,K26:K27,) -> 0.2623886049 | M26: =IRR(J26:J27) -> 0.01414325837 | N26: =(I27-I26)/I26 -> 0.01414325837 | P26: =E26-L26 -> 0.008143138885 | Q26: =F26-M26 -> 0.000393110949 | S26: =(1+Q26)^(365/(K27-K26))-1 -> 0.00654209302
A27: 2013-01-23 | B27: 232.271 | C27: 232.271 | D27: 2013-01-23 | H27: 2013-01-23 | I27: 232.181 | J27: =I27 -> 232.181 | K27: 2013-01-23
A28: 2013-01-01 | B28: 228.943 | C28: -228.943 | D28: 2013-01-01 | E28: =XIRR(C28:C29,D28:D29,) -> 0.03744870722 | F28: =IRR(C28:C29) -> 0.002319354599 | G28: =(B29-B28)/B28 -> 0.002319354599 | H28: 2013-01-01 | I28: 228.943 | J28: =-I28 -> -228.943 | K28: 2013-01-01 | L28: =XIRR(J28:J29,K28:K29,) -> 0.03086770475 | M28: =IRR(J28:J29) -> 0.001917507851 | N28: =(I29-I28)/I28 -> 0.001917507851 | P28: =E28-L28 -> 0.006581002474 | Q28: =F28-M28 -> 0.0004018467479 | S28: =(1+Q28)^(365/(K29-K28))-1 -> 0.006396221213
A29: 2013-01-24 | B29: 229.474 | C29: 229.474 | D29: 2013-01-24 | H29: 2013-01-24 | I29: 229.382 | J29: =I29 -> 229.382 | K29: 2013-01-24
A30: 2013-01-01 | B30: 228.943 | C30: -228.943 | D30: 2013-01-01 | E30: =XIRR(C30:C31,D30:D31,) -> 0.2836437643 | F30: =IRR(C30:C31) -> 0.01655433885 | G30: =(B31-B30)/B30 -> 0.01655433885 | H30: 2013-01-01 | I30: 228.943 | J30: =-I30 -> -228.943 | K30: 2013-01-01 | L30: =XIRR(J30:J31,K30:K31,) -> 0.2755312741 | M30: =IRR(J30:J31) -> 0.01613065261 | N30: =(I31-I30)/I30 -> 0.01613065261 | P30: =E30-L30 -> 0.008112490177 | Q30: =F30-M30 -> 0.000423686245 | S30: =(1+Q30)^(365/(K31-K30))-1 -> 0.006462992588
A31: 2013-01-25 | B31: 232.733 | C31: 232.733 | D31: 2013-01-25 | H31: 2013-01-25 | I31: 232.636 | J31: =I31 -> 232.636 | K31: 2013-01-25
A32: 2013-01-01 | B32: 228.943 | C32: -228.943 | D32: 2013-01-01 | E32: =XIRR(C32:C33,D32:D33,) -> 0.1418765008 | F32: =IRR(C32:C33) -> 0.01022962047 | G32: =(B33-B32)/B32 -> 0.01022962047 | H32: 2013-01-01 | I32: 228.943 | J32: =-I32 -> -228.943 | K32: 2013-01-01 | L32: =XIRR(J32:J33,K32:K33,) -> 0.1347532928 | M32: =IRR(J32:J33) -> 0.009744783636 | N32: =(I33-I32)/I32 -> 0.009744783636 | P32: =E32-L32 -> 0.007123208046 | Q32: =F32-M32 -> 0.0004848368371 | S32: =(1+Q32)^(365/(K33-K32))-1 -> 0.00633866771
A33: 2013-01-29 | B33: 231.285 | C33: 231.285 | D33: 2013-01-29 | H33: 2013-01-29 | I33: 231.174 | J33: =I33 -> 231.174 | K33: 2013-01-29
A34: 2013-01-01 | B34: 228.943 | C34: -228.943 | D34: 2013-01-01 | E34: =XIRR(C34:C35,D34:D35,) -> 0.1107143581 | F34: =IRR(C34:C35) -> 0.008377631113 | G34: =(B35-B34)/B34 -> 0.008377631113 | H34: 2013-01-01 | I34: 228.943 | J34: =-I34 -> -228.943 | K34: 2013-01-01 | L34: =XIRR(J34:J35,K34:K35,) -> 0.1037706435 | M34: =IRR(J34:J35) -> 0.007875322679 | N34: =(I35-I34)/I34 -> 0.007875322679 | P34: =E34-L34 -> 0.006943714619 | Q34: =F34-M34 -> 0.0005023084348 | S34: =(1+Q34)^(365/(K35-K34))-1 -> 0.006340587539
A35: 2013-01-30 | B35: 230.861 | C35: 230.861 | D35: 2013-01-30 | H35: 2013-01-30 | I35: 230.746 | J35: =I35 -> 230.746 | K35: 2013-01-30
A36: 2013-01-01 | B36: 228.943 | C36: -228.943 | D36: 2013-01-01 | E36: =XIRR(C36:C37,D36:D37,) -> 0.127245301 | F36: =IRR(C36:C37) -> 0.009893292217 | G36: =(B37-B36)/B36 -> 0.009893292217 | H36: 2013-01-01 | I36: 228.943 | J36: =-I36 -> -228.943 | K36: 2013-01-01 | L36: =XIRR(J36:J37,K36:K37,) -> 0.1202656686 | M36: =IRR(J36:J37) -> 0.009377880084 | N36: =(I37-I36)/I36 -> 0.009377880084 | P36: =E36-L36 -> 0.006979632378 | Q36: =F36-M36 -> 0.0005154121331 | S36: =(1+Q36)^(365/(K37-K36))-1 -> 0.006288924907
A37: 2013-01-31 | B37: 231.208 | C37: 231.208 | D37: 2013-01-31 | H37: 2013-01-31 | I37: 231.09 | J37: =I37 -> 231.09 | K37: 2013-01-31
A38: 2013-01-01 | B38: 228.943 | C38: -228.943 | D38: 2013-01-01 | E38: =XIRR(C38:C39,D38:D39,) -> 0.07249900997 | F38: =IRR(C38:C39) -> 0.005962182727 | G38: =(B39-B38)/B38 -> 0.005962182727 | H38: 2013-01-01 | I38: 228.943 | J38: =-I38 -> -228.943 | K38: 2013-01-01 | L38: =XIRR(J38:J39,K38:K39,) -> 0.06582879722 | M38: =IRR(J38:J39) -> 0.005429298996 | N38: =(I39-I38)/I38 -> 0.005429298996 | P38: =E38-L38 -> 0.006670212746 | Q38: =F38-M38 -> 0.0005328837309 | S38: =(1+Q38)^(365/(K39-K38))-1 -> 0.006292319035
A39: 2013-02-01 | B39: 230.308 | C39: 230.308 | D39: 2013-02-01 | H39: 2013-02-01 | I39: 230.186 | J39: =I39 -> 230.186 | K39: 2013-02-01
A40: 2013-01-01 | B40: 228.943 | C40: -228.943 | D40: 2013-01-01 | E40: =XIRR(C40:C41,D40:D41,) -> -0.01152136624 | F40: =IRR(C40:C41) -> -0.00107887116 | G40: =(B41-B40)/B40 -> -0.00107887116 | H40: 2013-01-01 | I40: 228.943 | J40: =-I40 -> -228.943 | K40: 2013-01-01 | L40: =XIRR(J40:J41,K40:K41,) -> -0.01762905419 | M40: =IRR(J40:J41) -> -0.001655433885 | N40: =(I41-I40)/I40 -> -0.001655433885 | P40: =E40-L40 -> 0.00610768795 | Q40: =F40-M40 -> 0.0005765627252 | S40: =(1+Q40)^(365/(K41-K40))-1 -> 0.006206970681
A41: 2013-02-04 | B41: 228.696 | C41: 228.696 | D41: 2013-02-04 | H41: 2013-02-04 | I41: 228.564 | J41: =I41 -> 228.564 | K41: 2013-02-04
A42: 2013-01-01 | B42: 228.943 | C42: -228.943 | D42: 2013-01-01 | E42: =XIRR(C42:C43,D42:D43,) -> -0.06984446943 | F42: =IRR(C42:C43) -> -0.006918752702 | G42: =(B43-B42)/B42 -> -0.006918752703 | H42: 2013-01-01 | I42: 228.943 | J42: =-I42 -> -228.943 | K42: 2013-01-01 | L42: =XIRR(J42:J43,K42:K43,) -> -0.07558809817 | M42: =IRR(J42:J43) -> -0.007508419126 | N42: =(I43-I42)/I42 -> -0.007508419126 | P42: =E42-L42 -> 0.00574362874 | Q42: =F42-M42 -> 0.0005896664235 | S42: =(1+Q42)^(365/(K43-K42))-1 -> 0.006166501154
A43: 2013-02-05 | B43: 227.359 | C43: 227.359 | D43: 2013-02-05 | H43: 2013-02-05 | I43: 227.224 | J43: =I43 -> 227.224 | K43: 2013-02-05
A44: 2013-01-01 | B44: 228.943 | C44: -228.943 | D44: 2013-01-01 | E44: =XIRR(C44:C45,D44:D45,) -> -0.06560004056 | F44: =IRR(C44:C45) -> -0.006669782435 | G44: =(B45-B44)/B44 -> -0.006669782435 | H44: 2013-01-01 | I44: 228.943 | J44: =-I44 -> -228.943 | K44: 2013-01-01 | L44: =XIRR(J44:J45,K44:K45,) -> -0.07137440741 | M44: =IRR(J44:J45) -> -0.007276920456 | N44: =(I45-I44)/I44 -> -0.007276920456 | P44: =E44-L44 -> 0.005774366856 | Q44: =F44-M44 -> 0.0006071380212 | S44: =(1+Q44)^(365/(K45-K44))-1 -> 0.006172810768
A45: 2013-02-06 | B45: 227.416 | C45: 227.416 | D45: 2013-02-06 | H45: 2013-02-06 | I45: 227.277 | J45: =I45 -> 227.277 | K45: 2013-02-06
A46: 2013-01-01 | B46: 228.943 | C46: -228.943 | D46: 2013-01-01 | E46: =XIRR(C46:C47,D46:D47,) -> -0.1230066445 | F46: =IRR(C46:C47) -> -0.01321726369 | G46: =(B47-B46)/B46 -> -0.01321726369 | H46: 2013-01-01 | I46: 228.943 | J46: =-I46 -> -228.943 | K46: 2013-01-01 | L46: =XIRR(J46:J47,K46:K47,) -> -0.128429367 | M46: =IRR(J46:J47) -> -0.0138375054 | N46: =(I47-I46)/I46 -> -0.01383750541 | P46: =E46-L46 -> 0.005422722548 | Q46: =F46-M46 -> 0.0006202417195 | S46: =(1+Q46)^(365/(K47-K46))-1 -> 0.006135449259
A47: 2013-02-07 | B47: 225.917 | C47: 225.917 | D47: 2013-02-07 | H47: 2013-02-07 | I47: 225.775 | J47: =I47 -> 225.775 | K47: 2013-02-07
A48: 2013-01-01 | B48: 228.943 | C48: -228.943 | D48: 2013-01-01 | E48: =XIRR(C48:C49,D48:D49,) -> -0.1794526033 | F48: =IRR(C48:C49) -> -0.02038061876 | G48: =(B49-B48)/B48 -> -0.02038061876 | H48: 2013-01-01 | I48: 228.943 | J48: =-I48 -> -228.943 | K48: 2013-01-01 | L48: =XIRR(J48:J49,K48:K49,) -> -0.1844991125 | M48: =IRR(J48:J49) -> -0.02100959627 | N48: =(I49-I48)/I48 -> -0.02100959628 | P48: =E48-L48 -> 0.005046509206 | Q48: =F48-M48 -> 0.0006289775183 | S48: =(1+Q48)^(365/(K49-K48))-1 -> 0.006057870527
A49: 2013-02-08 | B49: 224.277 | C49: 224.277 | D49: 2013-02-08 | H49: 2013-02-08 | I49: 224.133 | J49: =I49 -> 224.133 | K49: 2013-02-08
A50: 2013-01-01 | B50: 228.943 | C50: -228.943 | D50: 2013-01-01 | E50: =XIRR(C50:C51,D50:D51,) -> -0.1657051589 | F50: =IRR(C50:C51) -> -0.02014475219 | G50: =(B51-B50)/B50 -> -0.02014475219 | H50: 2013-01-01 | I50: 228.943 | J50: =-I50 -> -228.943 | K50: 2013-01-01 | L50: =XIRR(J50:J51,K50:K51,) -> -0.1707900606 | M50: =IRR(J50:J51) -> -0.0208174087 | N50: =(I51-I50)/I50 -> -0.0208174087 | P50: =E50-L50 -> 0.005084901676 | Q50: =F50-M50 -> 0.0006726565126 | S50: =(1+Q50)^(365/(K51-K50))-1 -> 0.006004223986
A51: 2013-02-11 | B51: 224.331 | C51: 224.331 | D51: 2013-02-11 | H51: 2013-02-11 | I51: 224.177 | J51: =I51 -> 224.177 | K51: 2013-02-11
A52: 2013-01-01 | B52: 228.943 | C52: -228.943 | D52: 2013-01-01 | E52: =XIRR(C52:C53,D52:D53,) -> -0.1345366362 | F52: =IRR(C52:C53) -> -0.01648882036 | G52: =(B53-B52)/B52 -> -0.01648882036 | H52: 2013-01-01 | I52: 228.943 | J52: =-I52 -> -228.943 | K52: 2013-01-01 | L52: =XIRR(J52:J53,K52:K53,) -> -0.1398333218 | M52: =IRR(J52:J53) -> -0.01718331637 | N52: =(I53-I52)/I52 -> -0.01718331637 | P52: =E52-L52 -> 0.005296685547 | Q52: =F52-M52 -> 0.0006944960098 | S52: =(1+Q52)^(365/(K53-K52))-1 -> 0.006051643847
A53: 2013-02-12 | B53: 225.168 | C53: 225.168 | D53: 2013-02-12 | H53: 2013-02-12 | I53: 225.009 | J53: =I53 -> 225.009 | K53: 2013-02-12
A54: 2013-01-01 | B54: 228.943 | C54: -228.943 | D54: 2013-01-01 | E54: =XIRR(C54:C55,D54:D55,) -> -0.2066596977 | F54: =IRR(C54:C55) -> -0.02813800815 | G54: =(B55-B54)/B54 -> -0.02813800815 | H54: 2013-01-01 | I54: 228.943 | J54: =-I54 -> -228.943 | K54: 2013-01-01 | L54: =XIRR(J54:J55,K54:K55,) -> -0.2115053497 | M54: =IRR(J54:J55) -> -0.02887181525 | N54: =(I55-I54)/I54 -> -0.02887181526 | P54: =E54-L54 -> 0.004845651984 | Q54: =F54-M54 -> 0.0007338071045 | S54: =(1+Q54)^(365/(K55-K54))-1 -> 0.005967543485
A55: 2013-02-15 | B55: 222.501 | C55: 222.501 | D55: 2013-02-15 | H55: 2013-02-15 | I55: 222.333 | J55: =I55 -> 222.333 | K55: 2013-02-15
A56: 2013-01-01 | B56: 228.943 | C56: -228.943 | D56: 2013-01-01 | E56: =XIRR(C56:C57,D56:D57,) -> -0.1812129237 | F56: =IRR(C56:C57) -> -0.02594969053 | G56: =(B57-B56)/B56 -> -0.02594969053 | H56: 2013-01-01 | I56: 228.943 | J56: =-I56 -> -228.943 | K56: 2013-01-01 | L56: =XIRR(J56:J57,K56:K57,) -> -0.1861973666 | M56: =IRR(J56:J57) -> -0.02673154453 | N56: =(I57-I56)/I56 -> -0.02673154453 | P56: =E56-L56 -> 0.00498444289 | Q56: =F56-M56 -> 0.0007818539983 | S56: =(1+Q56)^(365/(K57-K56))-1 -> 0.005960719936
A57: 2013-02-18 | B57: 223.002 | C57: 223.002 | D57: 2013-02-18 | H57: 2013-02-18 | I57: 222.823 | J57: =I57 -> 222.823 | K57: 2013-02-18
A58: 2013-01-01 | B58: 228.943 | C58: -228.943 | D58: 2013-01-01 | E58: =XIRR(C58:C59,D58:D59,) -> -0.1315725606 | F58: =IRR(C58:C59) -> -0.01876012807 | G58: =(B59-B58)/B58 -> -0.01876012807 | H58: 2013-01-01 | I58: 228.943 | J58: =-I58 -> -228.943 | K58: 2013-01-01 | L58: =XIRR(J58:J59,K58:K59,) -> -0.1368570019 | M58: =IRR(J58:J59) -> -0.01956382156 | N58: =(I59-I58)/I58 -> -0.01956382156 | P58: =E58-L58 -> 0.005284441262 | Q58: =F58-M58 -> 0.0008036934956 | S58: =(1+Q58)^(365/(K59-K58))-1 -> 0.006002233648
A59: 2013-02-19 | B59: 224.648 | C59: 224.648 | D59: 2013-02-19 | H59: 2013-02-19 | I59: 224.464 | J59: =I59 -> 224.464 | K59: 2013-02-19
A60: 2013-01-01 | B60: 228.943 | C60: -228.943 | D60: 2013-01-01 | E60: =XIRR(C60:C61,D60:D61,) -> -0.1486241948 | F60: =IRR(C60:C61) -> -0.02180018607 | G60: =(B61-B60)/B60 -> -0.02180018607 | H60: 2013-01-01 | I60: 228.943 | J60: =-I60 -> -228.943 | K60: 2013-01-01 | L60: =XIRR(J60:J61,K60:K61,) -> -0.1538001273 | M60: =IRR(J60:J61) -> -0.02261698326 | N60: =(I61-I60)/I60 -> -0.02261698327 | P60: =E60-L60 -> 0.005175932497 | Q60: =F60-M60 -> 0.0008167971939 | S60: =(1+Q60)^(365/(K61-K60))-1 -> 0.005977982963
A61: 2013-02-20 | B61: 223.952 | C61: 223.952 | D61: 2013-02-20 | H61: 2013-02-20 | I61: 223.765 | J61: =I61 -> 223.765 | K61: 2013-02-20
A62: 2013-01-01 | B62: 228.943 | C62: -228.943 | D62: 2013-01-01 | E62: =XIRR(C62:C63,D62:D63,) -> -0.2453689627 | F62: =IRR(C62:C63) -> -0.0385729199 | G62: =(B63-B62)/B62 -> -0.0385729199 | H62: 2013-01-01 | I62: 228.943 | J62: =-I62 -> -228.943 | K62: 2013-01-01 | L62: =XIRR(J62:J63,K62:K63,) -> -0.2499697156 | M62: =IRR(J62:J63) -> -0.03939408499 | N62: =(I63-I62)/I62 -> -0.03939408499 | P62: =E62-L62 -> 0.00460075289 | Q62: =F62-M62 -> 0.0008211650935 | S62: =(1+Q62)^(365/(K63-K62))-1 -> 0.005891843238
A63: 2013-02-21 | B63: 220.112 | C63: 220.112 | D63: 2013-02-21 | H63: 2013-02-21 | I63: 219.924 | J63: =I63 -> 219.924 | K63: 2013-02-21
A64: 2013-01-01 | B64: 228.943 | C64: -228.943 | D64: 2013-01-01 | E64: =XIRR(C64:C65,D64:D65,) -> -0.2399648212 | F64: =IRR(C64:C65) -> -0.03833705333 | G64: =(B65-B64)/B64 -> -0.03833705333 | H64: 2013-01-01 | I64: 228.943 | J64: =-I64 -> -228.943 | K64: 2013-01-01 | L64: =XIRR(J64:J65,K64:K65,) -> -0.2445808895 | M64: =IRR(J64:J65) -> -0.03917132212 | N64: =(I65-I64)/I64 -> -0.03917132212 | P64: =E64-L64 -> 0.004616068304 | Q64: =F64-M64 -> 0.0008342687918 | S64: =(1+Q64)^(365/(K65-K64))-1 -> 0.005870648935
A65: 2013-02-22 | B65: 220.166 | C65: 220.166 | D65: 2013-02-22 | H65: 2013-02-22 | I65: 219.975 | J65: =I65 -> 219.975 | K65: 2013-02-22
A66: 2013-01-01 | B66: 228.943 | C66: -228.943 | D66: 2013-01-01 | E66: =XIRR(C66:C67,D66:D67,) -> -0.3065046467 | F66: =IRR(C66:C67) -> -0.05460747872 | G66: =(B67-B66)/B66 -> -0.05460747872 | H66: 2013-01-01 | I66: 228.943 | J66: =-I66 -> -228.943 | K66: 2013-01-01 | L66: =XIRR(J66:J67,K66:K67,) -> -0.3107123218 | M66: =IRR(J66:J67) -> -0.0554897944 | N66: =(I67-I66)/I66 -> -0.0554897944 | P66: =E66-L66 -> 0.004207675159 | Q66: =F66-M66 -> 0.0008823156856 | S66: =(1+Q66)^(365/(K67-K66))-1 -> 0.005764825089
A67: 2013-02-26 | B67: 216.441 | C67: 216.441 | D67: 2013-02-26 | H67: 2013-02-26 | I67: 216.239 | J67: =I67 -> 216.239 | K67: 2013-02-26
A68: 2013-01-01 | B68: 228.943 | C68: -228.943 | D68: 2013-01-01 | E68: =XIRR(C68:C69,D68:D69,) -> -0.3670005567 | F68: =IRR(C68:C69) -> -0.07008731431 | G68: =(B69-B68)/B68 -> -0.07008731431 | H68: 2013-01-01 | I68: 228.943 | J68: =-I68 -> -228.943 | K68: 2013-01-01 | L68: =XIRR(J68:J69,K68:K69,) -> -0.370826567 | M68: =IRR(J68:J69) -> -0.07098273369 | N68: =(I69-I68)/I68 -> -0.07098273369 | P68: =E68-L68 -> 0.003826010227 | Q68: =F68-M68 -> 0.0008954193839 | S68: =(1+Q68)^(365/(K69-K68))-1 -> 0.005648337532
A69: 2013-02-28 | B69: 212.897 | C69: 212.897 | D69: 2013-02-28 | H69: 2013-02-28 | I69: 212.692 | J69: =I69 -> 212.692 | K69: 2013-02-28
A70: 2013-01-01 | B70: 228.943 | C70: -228.943 | D70: 2013-01-01 | E70: =XIRR(C70:C71,D70:D71,) -> -0.331484998 | F70: =IRR(C70:C71) -> -0.06302005303 | G70: =(B71-B70)/B70 -> -0.06302005303 | H70: 2013-01-01 | I70: 228.943 | J70: =-I70 -> -228.943 | K70: 2013-01-01 | L70: =XIRR(J70:J71,K70:K71,) -> -0.3355426036 | M70: =IRR(J70:J71) -> -0.06394167981 | N70: =(I71-I70)/I70 -> -0.06394167981 | P70: =E70-L70 -> 0.004057605565 | Q70: =F70-M70 -> 0.0009216267805 | S70: =(1+Q70)^(365/(K71-K70))-1 -> 0.005715233635
A71: 2013-03-01 | B71: 214.515 | C71: 214.515 | D71: 2013-03-01 | H71: 2013-03-01 | I71: 214.304 | J71: =I71 -> 214.304 | K71: 2013-03-01
A72: 2013-01-01 | B72: 228.943 | C72: -228.943 | D72: 2013-01-01 | E72: =XIRR(C72:C73,D72:D73,) -> -0.334776216 | F72: =IRR(C72:C73) -> -0.06689874772 | G72: =(B73-B72)/B72 -> -0.06689874772 | H72: 2013-01-01 | I72: 228.943 | J72: =-I72 -> -228.943 | K72: 2013-01-01 | L72: =XIRR(J72:J73,K72:K73,) -> -0.3388173796 | M72: =IRR(J72:J73) -> -0.0678640535 | N72: =(I73-I72)/I72 -> -0.0678640535 | P72: =E72-L72 -> 0.004041163623 | Q72: =F72-M72 -> 0.0009653057748 | S72: =(1+Q72)^(365/(K73-K72))-1 -> 0.005696269831
A73: 2013-03-04 | B73: 213.627 | C73: 213.627 | D73: 2013-03-04 | H73: 2013-03-04 | I73: 213.406 | J73: =I73 -> 213.406 | K73: 2013-03-04
A74: 2013-01-01 | B74: 228.943 | C74: =-B74 -> -228.943 | D74: 2013-01-01 | E74: =XIRR(C74:C75,D74:D75,) -> -0.2160962857 | F74: =IRR(C74:C75) -> -0.04179206178 | G74: =(B75-B74)/B74 -> -0.04179206178 | H74: 2013-01-01 | I74: 228.943 | J74: =-I74 -> -228.943 | K74: 2013-01-01 | L74: =XIRR(J74:J75,K74:K75,) -> -0.220832812 | M74: =IRR(J74:J75) -> -0.04280978235 | N74: =(I75-I74)/I74 -> -0.04280978235 | P74: =E74-L74 -> 0.00473652631 | Q74: =F74-M74 -> 0.001017720568 | S74: =(1+Q74)^(365/(K75-K74))-1 -> 0.005818095853
A75: 2013-03-06 | B75: 219.375 | C75: =B75 -> 219.375 | D75: 2013-03-06 | H75: 2013-03-06 | I75: 219.142 | J75: =I75 -> 219.142 | K75: 2013-03-06
A76: 2013-01-01 | B76: 228.943 | C76: -228.943 | D76: 2013-01-01 | E76: =XIRR(C76:C77,D76:D77,) -> -0.1887194879 | F76: =IRR(C76:C77) -> -0.03655931826 | G76: =(B77-B76)/B76 -> -0.03655931826 | H76: 2013-01-01 | I76: 228.943 | J76: =-I76 -> -228.943 | K76: 2013-01-01 | L76: =XIRR(J76:J77,K76:K77,) -> -0.1936228476 | M76: =IRR(J76:J77) -> -0.03759887832 | N76: =(I77-I76)/I76 -> -0.03759887832 | P76: =E76-L76 -> 0.004903359711 | Q76: =F76-M76 -> 0.001039560065 | S76: =(1+Q76)^(365/(K77-K76))-1 -> 0.005851551298
A77: 2013-03-07 | B77: 220.573 | C77: 220.573 | D77: 2013-03-07 | H77: 2013-03-07 | I77: 220.335 | J77: =I77 -> 220.335 | K77: 2013-03-07
A78: 2013-01-01 | B78: 228.943 | C78: -228.943 | D78: 2013-01-01 | E78: =XIRR(C78:C79,D78:D79,) -> -0.1329661559 | F78: =IRR(C78:C79) -> -0.02546922159 | G78: =(B79-B78)/B78 -> -0.0254692216 | H78: 2013-01-01 | I78: 228.943 | J78: =-I78 -> -228.943 | K78: 2013-01-01 | L78: =XIRR(J78:J79,K78:K79,) -> -0.1381970536 | M78: =IRR(J78:J79) -> -0.02653498906 | N78: =(I79-I78)/I78 -> -0.02653498906 | P78: =E78-L78 -> 0.005230897665 | Q78: =F78-M78 -> 0.001065767461 | S78: =(1+Q78)^(365/(K79-K78))-1 -> 0.005908263772
A79: 2013-03-08 | B79: 223.112 | C79: 223.112 | D79: 2013-03-08 | H79: 2013-03-08 | I79: 222.868 | J79: =I79 -> 222.868 | K79: 2013-03-08
A80: 2013-01-01 | B80: 228.943 | C80: -228.943 | D80: 2013-01-01 | E80: =XIRR(C80:C81,D80:D81,) -> -0.1316999253 | F80: =IRR(C80:C81) -> -0.02634280148 | G80: =(B81-B80)/B80 -> -0.02634280148 | H80: 2013-01-01 | I80: 228.943 | J80: =-I80 -> -228.943 | K80: 2013-01-01 | L80: =XIRR(J80:J81,K80:K81,) -> -0.1369414177 | M80: =IRR(J80:J81) -> -0.02745661584 | N80: =(I81-I80)/I80 -> -0.02745661584 | P80: =E80-L80 -> 0.005241492391 | Q80: =F80-M80 -> 0.001113814355 | S80: =(1+Q80)^(365/(K81-K80))-1 -> 0.00590600981
A81: 2013-03-11 | B81: 222.912 | C81: 222.912 | D81: 2013-03-11 | H81: 2013-03-11 | I81: 222.657 | J81: =I81 -> 222.657 | K81: 2013-03-11
A82: 2013-01-01 | B82: 228.943 | C82: -228.943 | D82: 2013-01-01 | E82: =XIRR(C82:C83,D82:D83,) -> -0.154729848 | F82: =IRR(C82:C83) -> -0.03172405359 | G82: =(B83-B82)/B82 -> -0.03172405359 | H82: 2013-01-01 | I82: 228.943 | J82: =-I82 -> -228.943 | K82: 2013-01-01 | L82: =XIRR(J82:J83,K82:K83,) -> -0.1598468859 | M82: =IRR(J82:J83) -> -0.03285097164 | N82: =(I83-I82)/I82 -> -0.03285097164 | P82: =E82-L82 -> 0.005117037892 | Q82: =F82-M82 -> 0.001126918054 | S82: =(1+Q82)^(365/(K83-K82))-1 -> 0.005890042756
A83: 2013-03-12 | B83: 221.68 | C83: 221.68 | D83: 2013-03-12 | H83: 2013-03-12 | I83: 221.422 | J83: =I83 -> 221.422 | K83: 2013-03-12
A84: 2013-01-01 | B84: 228.943 | C84: -228.943 | D84: 2013-01-01 | E84: =XIRR(C84:C85,D84:D85,) -> -0.2133436956 | F84: =IRR(C84:C85) -> -0.04560523799 | G84: =(B85-B84)/B84 -> -0.04560523799 | H84: 2013-01-01 | I84: 228.943 | J84: =-I84 -> -228.943 | K84: 2013-01-01 | L84: =XIRR(J84:J85,K84:K85,) -> -0.2181071512 | M84: =IRR(J84:J85) -> -0.04673215604 | N84: =(I85-I84)/I84 -> -0.04673215604 | P84: =E84-L84 -> 0.004763455689 | Q84: =F84-M84 -> 0.001126918054 | S84: =(1+Q84)^(365/(K85-K84))-1 -> 0.005806844013
A85: 2013-03-13 | B85: 218.502 | C85: 218.502 | D85: 2013-03-13 | H85: 2013-03-13 | I85: 218.244 | J85: =I85 -> 218.244 | K85: 2013-03-13
A86: 2013-01-01 | B86: 228.943 | C86: -228.943 | D86: 2013-01-01 | E86: =XIRR(C86:C87,D86:D87,) -> -0.1558689419 | F86: =IRR(C86:C87) -> -0.03287281114 | G86: =(B87-B86)/B86 -> -0.03287281114 | H86: 2013-01-01 | I86: 228.943 | J86: =-I86 -> -228.943 | K86: 2013-01-01 | L86: =XIRR(J86:J87,K86:K87,) -> -0.1609780807 | M86: =IRR(J86:J87) -> -0.03403030449 | N86: =(I87-I86)/I86 -> -0.03403030449 | P86: =E86-L86 -> 0.005109138787 | Q86: =F86-M86 -> 0.00115749335 | S86: =(1+Q86)^(365/(K87-K86))-1 -> 0.005881684432
A87: 2013-03-14 | B87: 221.417 | C87: 221.417 | D87: 2013-03-14 | H87: 2013-03-14 | I87: 221.152 | J87: =I87 -> 221.152 | K87: 2013-03-14
A88: 2013-01-01 | B88: 228.943 | C88: -228.943 | D88: 2013-01-01 | E88: =XIRR(C88:C89,D88:D89,) -> -0.1814184211 | F88: =IRR(C88:C89) -> -0.03924557641 | G88: =(B89-B88)/B88 -> -0.03924557641 | H88: 2013-01-01 | I88: 228.943 | J88: =-I88 -> -228.943 | K88: 2013-01-01 | L88: =XIRR(J88:J89,K88:K89,) -> -0.1863746338 | M88: =IRR(J88:J89) -> -0.04041180556 | N88: =(I89-I88)/I88 -> -0.04041180556 | P88: =E88-L88 -> 0.00495621264 | Q88: =F88-M88 -> 0.001166229149 | S88: =(1+Q88)^(365/(K89-K88))-1 -> 0.005844762519
A89: 2013-03-15 | B89: 219.958 | C89: 219.958 | D89: 2013-03-15 | H89: 2013-03-15 | I89: 219.691 | J89: =I89 -> 219.691 | K89: 2013-03-15
A90: 2013-01-01 | B90: 228.943 | C90: -228.943 | D90: 2013-01-01 | E90: =XIRR(C90:C91,D90:D91,) -> -0.2025636293 | F90: =IRR(C90:C91) -> -0.04603766003 | G90: =(B91-B90)/B90 -> -0.04603766003 | H90: 2013-01-01 | I90: 228.943 | J90: =-I90 -> -228.943 | K90: 2013-01-01 | L90: =XIRR(J90:J91,K90:K91,) -> -0.2073743455 | M90: =IRR(J90:J91) -> -0.04723883237 | N90: =(I91-I90)/I90 -> -0.04723883237 | P90: =E90-L90 -> 0.004810716212 | Q90: =F90-M90 -> 0.001201172344 | S90: =(1+Q90)^(365/(K91-K90))-1 -> 0.005781977829
A91: 2013-03-18 | B91: 218.403 | C91: 218.403 | D91: 2013-03-18 | H91: 2013-03-18 | I91: 218.128 | J91: =I91 -> 218.128 | K91: 2013-03-18
A92: 2013-01-01 | B92: 228.943 | C92: -228.943 | D92: 2013-01-01 | E92: =XIRR(C92:C93,D92:D93,) -> -0.2644239925 | F92: =IRR(C92:C93) -> -0.06273177166 | G92: =(B93-B92)/B92 -> -0.06273177166 | H92: 2013-01-01 | I92: 228.943 | J92: =-I92 -> -228.943 | K92: 2013-01-01 | L92: =XIRR(J92:J93,K92:K93,) -> -0.2688657172 | M92: =IRR(J92:J93) -> -0.06392857611 | N92: =(I93-I92)/I92 -> -0.06392857611 | P92: =E92-L92 -> 0.004441724718 | Q92: =F92-M92 -> 0.001196804445 | S92: =(1+Q92)^(365/(K93-K92))-1 -> 0.005685875375
A93: 2013-03-19 | B93: 214.581 | C93: 214.581 | D93: 2013-03-19 | H93: 2013-03-19 | I93: 214.307 | J93: =I93 -> 214.307 | K93: 2013-03-19
A94: 2013-01-01 | B94: 228.943 | C94: -228.943 | D94: 2013-01-01 | E94: =XIRR(C94:C95,D94:D95,) -> -0.3149008192 | F94: =IRR(C94:C95) -> -0.07763941243 | G94: =(B95-B94)/B94 -> -0.07763941243 | H94: 2013-01-01 | I94: 228.943 | J94: =-I94 -> -228.943 | K94: 2013-01-01 | L94: =XIRR(J94:J95,K94:K95,) -> -0.3190356053 | M94: =IRR(J94:J95) -> -0.07883184898 | N94: =(I95-I94)/I94 -> -0.07883184898 | P94: =E94-L94 -> 0.004134786129 | Q94: =F94-M94 -> 0.001192436545 | S94: =(1+Q94)^(365/(K95-K94))-1 -> 0.00559224583
A95: 2013-03-20 | B95: 211.168 | C95: 211.168 | D95: 2013-03-20 | H95: 2013-03-20 | I95: 210.895 | J95: =I95 -> 210.895 | K95: 2013-03-20
A96: 2013-01-01 | B96: 228.943 | C96: -228.943 | D96: 2013-01-01 | E96: =XIRR(C96:C97,D96:D97,) -> -0.3369497709 | F96: =IRR(C96:C97) -> -0.08509541676 | G96: =(B97-B96)/B96 -> -0.08509541676 | H96: 2013-01-01 | I96: 228.943 | J96: =-I96 -> -228.943 | K96: 2013-01-01 | L96: =XIRR(J96:J97,K96:K97,) -> -0.3409476571 | M96: =IRR(J96:J97) -> -0.08629222121 | N96: =(I97-I96)/I96 -> -0.08629222121 | P96: =E96-L96 -> 0.003997886181 | Q96: =F96-M96 -> 0.001196804445 | S96: =(1+Q96)^(365/(K97-K96))-1 -> 0.005541531066
A97: 2013-03-21 | B97: 209.461 | C97: 209.461 | D97: 2013-03-21 | H97: 2013-03-21 | I97: 209.187 | J97: =I97 -> 209.187 | K97: 2013-03-21
A98: 2013-01-01 | B98: 228.943 | C98: -228.943 | D98: 2013-01-01 | E98: =XIRR(C98:C99,D98:D99,) -> -0.3422587208 | F98: =IRR(C98:C99) -> -0.08773362802 | G98: =(B99-B98)/B98 -> -0.08773362802 | H98: 2013-01-01 | I98: 228.943 | J98: =-I98 -> -228.943 | K98: 2013-01-01 | L98: =XIRR(J98:J99,K98:K99,) -> -0.3462293692 | M98: =IRR(J98:J99) -> -0.08894353616 | N98: =(I99-I98)/I98 -> -0.08894353616 | P98: =E98-L98 -> 0.003970648348 | Q98: =F98-M98 -> 0.001209908143 | S98: =(1+Q98)^(365/(K99-K98))-1 -> 0.005532115069
A99: 2013-03-22 | B99: 208.857 | C99: 208.857 | D99: 2013-03-22 | H99: 2013-03-22 | I99: 208.58 | J99: =I99 -> 208.58 | K99: 2013-03-22
A100: 2013-01-01 | B100: 228.943 | C100: -228.943 | D100: 2013-01-01 | E100: =XIRR(C100:C101,D100:D101,) -> -0.345366811 | F100: =IRR(C100:C101) -> -0.09184818929 | G100: =(B101-B100)/B100 -> -0.09184818929 | H100: 2013-01-01 | I100: 228.943 | J100: =-I100 -> -228.943 | K100: 2013-01-01 | L100: =XIRR(J100:J101,K100:K101,) -> -0.3493175574 | M100: =IRR(J100:J101) -> -0.09309740853 | N100: =(I101-I100)/I100 -> -0.09309740853 | P100: =E100-L100 -> 0.003950746357 | Q100: =F100-M100 -> 0.001249219238 | S100: =(1+Q100)^(365/(K101-K100))-1 -> 0.005505224368
A101: 2013-03-25 | B101: 207.915 | C101: 207.915 | D101: 2013-03-25 | H101: 2013-03-25 | I101: 207.629 | J101: =I101 -> 207.629 | K101: 2013-03-25
A102: 2013-01-01 | B102: 228.943 | C102: -228.943 | D102: 2013-01-01 | E102: =XIRR(C102:C103,D102:D103,) -> -0.3413825907 | F102: =IRR(C102:C103) -> -0.09163416222 | G102: =(B103-B102)/B102 -> -0.09163416222 | H102: 2013-01-01 | I102: 228.943 | J102: =-I102 -> -228.943 | K102: 2013-01-01 | L102: =XIRR(J102:J103,K102:K103,) -> -0.3453503691 | M102: =IRR(J102:J103) -> -0.09289648515 | N102: =(I103-I102)/I102 -> -0.09289648515 | P102: =E102-L102 -> 0.003967778385 | Q102: =F102-M102 -> 0.001262322936 | S102: =(1+Q102)^(365/(K103-K102))-1 -> 0.005496686291
A103: 2013-03-26 | B103: 207.964 | C103: 207.964 | D103: 2013-03-26 | H103: 2013-03-26 | I103: 207.675 | J103: =I103 -> 207.675 | K103: 2013-03-26
A104: 2013-01-01 | B104: 228.943 | C104: -228.943 | D104: 2013-01-01 | E104: =XIRR(C104:C105,D104:D105,) -> -0.2958586775 | F104: =IRR(C104:C105) -> -0.07932542161 | G104: =(B105-B104)/B104 -> -0.07932542161 | H104: 2013-01-01 | I104: 228.943 | J104: =-I104 -> -228.943 | K104: 2013-01-01 | L104: =XIRR(J104:J105,K104:K105,) -> -0.3000599824 | M104: =IRR(J104:J105) -> -0.08062268774 | N104: =(I105-I104)/I104 -> -0.08062268774 | P104: =E104-L104 -> 0.004201304913 | Q104: =F104-M104 -> 0.001297266132 | S104: =(1+Q104)^(365/(K105-K104))-1 -> 0.005517435924
A105: 2013-03-28 | B105: 210.782 | C105: 210.782 | D105: 2013-03-28 | H105: 2013-03-28 | I105: 210.485 | J105: =I105 -> 210.485 | K105: 2013-03-28
A106: 2013-01-01 | B106: 228.943 | C106: -228.943 | D106: 2013-01-01 | E106: =XIRR(C106:C107,D106:D107,) -> -0.2698724307 | F106: =IRR(C106:C107) -> -0.07462556182 | G106: =(B107-B106)/B106 -> -0.07462556182 | H106: 2013-01-01 | I106: 228.943 | J106: =-I106 -> -228.943 | K106: 2013-01-01 | L106: =XIRR(J106:J107,K106:K107,) -> -0.2742233627 | M106: =IRR(J106:J107) -> -0.07598834644 | N106: =(I107-I106)/I106 -> -0.07598834644 | P106: =E106-L106 -> 0.004350931942 | Q106: =F106-M106 -> 0.001362784623 | S106: =(1+Q106)^(365/(K107-K106))-1 -> 0.005538366575
A107: 2013-04-01 | B107: 211.858 | C107: 211.858 | D107: 2013-04-01 | H107: 2013-04-01 | I107: 211.546 | J107: =I107 -> 211.546 | K107: 2013-04-01
A108: 2013-01-01 | B108: 228.943 | C108: -228.943 | D108: 2013-01-01 | E108: =XIRR(C108:C109,D108:D109,) -> -0.2296147265 | F108: =IRR(C108:C109) -> -0.06296763823 | G108: =(B109-B108)/B108 -> -0.06296763823 | H108: 2013-01-01 | I108: 228.943 | J108: =-I108 -> -228.943 | K108: 2013-01-01 | L108: =XIRR(J108:J109,K108:K109,) -> -0.2342136018 | M108: =IRR(J108:J109) -> -0.06436536605 | N108: =(I109-I108)/I108 -> -0.06436536605 | P108: =E108-L108 -> 0.004598875344 | Q108: =F108-M108 -> 0.001397727819 | S108: =(1+Q108)^(365/(K109-K108))-1 -> 0.005618079095
A109: 2013-04-02 | B109: 214.527 | C109: 214.527 | D109: 2013-04-02 | H109: 2013-04-02 | I109: 214.207 | J109: =I109 -> 214.207 | K109: 2013-04-02
A110: 2013-01-01 | B110: 228.943 | C110: -228.943 | D110: 2013-01-01 | E110: =XIRR(C110:C111,D110:D111,) -> -0.270025558 | F110: =IRR(C110:C111) -> -0.07626789201 | G110: =(B111-B110)/B110 -> -0.07626789201 | H110: 2013-01-01 | I110: 228.943 | J110: =-I110 -> -228.943 | K110: 2013-01-01 | L110: =XIRR(J110:J111,K110:K111,) -> -0.2743842684 | M110: =IRR(J110:J111) -> -0.07766125193 | N110: =(I111-I110)/I110 -> -0.07766125193 | P110: =E110-L110 -> 0.004358710349 | Q110: =F110-M110 -> 0.001393359919 | S110: =(1+Q110)^(365/(K111-K110))-1 -> 0.005539442638
A111: 2013-04-03 | B111: 211.482 | C111: 211.482 | D111: 2013-04-03 | H111: 2013-04-03 | I111: 211.163 | J111: =I111 -> 211.163 | K111: 2013-04-03
A112: 2013-01-01 | B112: 228.943 | C112: -228.943 | D112: 2013-01-01 | E112: =XIRR(C112:C113,D112:D113,) -> -0.3099185891 | F112: =IRR(C112:C113) -> -0.09111001428 | G112: =(B113-B112)/B112 -> -0.09111001428 | H112: 2013-01-01 | I112: 228.943 | J112: =-I112 -> -228.943 | K112: 2013-01-01 | L112: =XIRR(J112:J113,K112:K113,) -> -0.3140558563 | M112: =IRR(J112:J113) -> -0.0925164779 | N112: =(I113-I112)/I112 -> -0.0925164779 | P112: =E112-L112 -> 0.004137267172 | Q112: =F112-M112 -> 0.001406463618 | S112: =(1+Q112)^(365/(K113-K112))-1 -> 0.005472350268
A113: 2013-04-05 | B113: 208.084 | C113: 208.084 | D113: 2013-04-05 | H113: 2013-04-05 | I113: 207.762 | J113: =I113 -> 207.762 | K113: 2013-04-05
A114: 2013-01-01 | B114: 228.943 | C114: -228.943 | D114: 2013-01-01 | E114: =XIRR(C114:C115,D114:D115,) -> -0.3310806952 | F114: =IRR(C114:C115) -> -0.1023355158 | G114: =(B115-B114)/B114 -> -0.1023355158 | H114: 2013-01-01 | I114: 228.943 | J114: =-I114 -> -228.943 | K114: 2013-01-01 | L114: =XIRR(J114:J115,K114:K115,) -> -0.3350845091 | M114: =IRR(J114:J115) -> -0.1037812905 | N114: =(I115-I114)/I114 -> -0.1037812905 | P114: =E114-L114 -> 0.004003813863 | Q114: =F114-M114 -> 0.001445774712 | S114: =(1+Q114)^(365/(K115-K114))-1 -> 0.005395387287
A115: 2013-04-09 | B115: 205.514 | C115: 205.514 | D115: 2013-04-09 | H115: 2013-04-09 | I115: 205.183 | J115: =I115 -> 205.183 | K115: 2013-04-09
A116: 2013-01-01 | B116: 228.943 | C116: -228.943 | D116: 2013-01-01 | E116: =XIRR(C116:C117,D116:D117,) -> -0.2984865047 | F116: =IRR(C116:C117) -> -0.09167784121 | G116: =(B117-B116)/B116 -> -0.09167784121 | H116: 2013-01-01 | I116: 228.943 | J116: =-I116 -> -228.943 | K116: 2013-01-01 | L116: =XIRR(J116:J117,K116:K117,) -> -0.3026811443 | M116: =IRR(J116:J117) -> -0.09315419122 | N116: =(I117-I116)/I116 -> -0.09315419122 | P116: =E116-L116 -> 0.004194639623 | Q116: =F116-M116 -> 0.001476350009 | S116: =(1+Q116)^(365/(K117-K116))-1 -> 0.00545391333
A117: 2013-04-10 | B117: 207.954 | C117: 207.954 | D117: 2013-04-10 | H117: 2013-04-10 | I117: 207.616 | J117: =I117 -> 207.616 | K117: 2013-04-10
A118: 2013-01-01 | B118: 228.943 | C118: -228.943 | D118: 2013-01-01 | E118: =XIRR(C118:C119,D118:D119,) -> -0.2738381036 | F118: =IRR(C118:C119) -> -0.08393355551 | G118: =(B119-B118)/B118 -> -0.08393355551 | H118: 2013-01-01 | I118: 228.943 | J118: =-I118 -> -228.943 | K118: 2013-01-01 | L118: =XIRR(J118:J119,K118:K119,) -> -0.278176067 | M118: =IRR(J118:J119) -> -0.08543611292 | N118: =(I119-I118)/I118 -> -0.08543611292 | P118: =E118-L118 -> 0.004337963462 | Q118: =F118-M118 -> 0.001502557405 | S118: =(1+Q118)^(365/(K119-K118))-1 -> 0.005495262253
A119: 2013-04-11 | B119: 209.727 | C119: 209.727 | D119: 2013-04-11 | H119: 2013-04-11 | I119: 209.383 | J119: =I119 -> 209.383 | K119: 2013-04-11
A120: 2013-01-01 | B120: 228.943 | C120: -228.943 | D120: 2013-01-01 | E120: =XIRR(C120:C121,D120:D121,) -> -0.2942808278 | F120: =IRR(C120:C121) -> -0.09193991518 | G120: =(B121-B120)/B120 -> -0.09193991518 | H120: 2013-01-01 | I120: 228.943 | J120: =-I120 -> -228.943 | K120: 2013-01-01 | L120: =XIRR(J120:J121,K120:K121,) -> -0.2984673403 | M120: =IRR(J120:J121) -> -0.09343373678 | N120: =(I121-I120)/I120 -> -0.09343373678 | P120: =E120-L120 -> 0.00418651253 | Q120: =F120-M120 -> 0.001493821606 | S120: =(1+Q120)^(365/(K121-K120))-1 -> 0.005409012229
A121: 2013-04-12 | B121: 207.894 | C121: 207.894 | D121: 2013-04-12 | H121: 2013-04-12 | I121: 207.552 | J121: =I121 -> 207.552 | K121: 2013-04-12
A122: 2013-01-01 | B122: 228.943 | C122: -228.943 | D122: 2013-01-01 | E122: =XIRR(C122:C123,D122:D123,) -> -0.265608456 | F122: =IRR(C122:C123) -> -0.08420436528 | G122: =(B123-B122)/B122 -> -0.08420436528 | H122: 2013-01-01 | I122: 228.943 | J122: =-I122 -> -228.943 | K122: 2013-01-01 | L122: =XIRR(J122:J123,K122:K123,) -> -0.2699632369 | M122: =IRR(J122:J123) -> -0.08575496958 | N122: =(I123-I122)/I122 -> -0.08575496958 | P122: =E122-L122 -> 0.004354780912 | Q122: =F122-M122 -> 0.001550604299 | S122: =(1+Q122)^(365/(K123-K122))-1 -> 0.005452621569
A123: 2013-04-15 | B123: 209.665 | C123: 209.665 | D123: 2013-04-15 | H123: 2013-04-15 | I123: 209.31 | J123: =I123 -> 209.31 | K123: 2013-04-15
A124: 2013-01-01 | B124: 228.943 | C124: -228.943 | D124: 2013-01-01 | E124: =XIRR(C124:C125,D124:D125,) -> -0.2153390311 | F124: =IRR(C124:C125) -> -0.06738358456 | G124: =(B125-B124)/B124 -> -0.06738358456 | H124: 2013-01-01 | I124: 228.943 | J124: =-I124 -> -228.943 | K124: 2013-01-01 | L124: =XIRR(J124:J125,K124:K125,) -> -0.2199919797 | M124: =IRR(J124:J125) -> -0.06897786785 | N124: =(I125-I124)/I124 -> -0.06897786785 | P124: =E124-L124 -> 0.004652948678 | Q124: =F124-M124 -> 0.001594283293 | S124: =(1+Q124)^(365/(K125-K124))-1 -> 0.00555298026
A125: 2013-04-16 | B125: 213.516 | C125: 213.516 | D125: 2013-04-16 | H125: 2013-04-16 | I125: 213.151 | J125: =I125 -> 213.151 | K125: 2013-04-16
A126: 2013-01-01 | B126: 228.943 | C126: -228.943 | D126: 2013-01-01 | E126: =XIRR(C126:C127,D126:D127,) -> -0.2046918549 | F126: =IRR(C126:C127) -> -0.06434789445 | G126: =(B127-B126)/B126 -> -0.06434789445 | H126: 2013-01-01 | I126: 228.943 | J126: =-I126 -> -228.943 | K126: 2013-01-01 | L126: =XIRR(J126:J127,K126:K127,) -> -0.2094248407 | M126: =IRR(J126:J127) -> -0.06596838514 | N126: =(I127-I126)/I126 -> -0.06596838514 | P126: =E126-L126 -> 0.004732985795 | Q126: =F126-M126 -> 0.00162049069 | S126: =(1+Q126)^(365/(K127-K126))-1 -> 0.005591047131
A127: 2013-04-17 | B127: 214.211 | C127: 214.211 | D127: 2013-04-17 | H127: 2013-04-17 | I127: 213.84 | J127: =I127 -> 213.84 | K127: 2013-04-17
A128: 2013-01-01 | B128: 228.943 | C128: -228.943 | D128: 2013-01-01 | E128: =XIRR(C128:C129,D128:D129,) -> -0.1601359878 | F128: =IRR(C128:C129) -> -0.04987267573 | G128: =(B129-B128)/B128 -> -0.04987267573 | H128: 2013-01-01 | I128: 228.943 | J128: =-I128 -> -228.943 | K128: 2013-01-01 | L128: =XIRR(J128:J129,K128:K129,) -> -0.1651303213 | M128: =IRR(J128:J129) -> -0.05153247752 | N128: =(I129-I128)/I128 -> -0.05153247752 | P128: =E128-L128 -> 0.004994333535 | Q128: =F128-M128 -> 0.001659801785 | S128: =(1+Q128)^(365/(K129-K128))-1 -> 0.005673279452
A129: 2013-04-18 | B129: 217.525 | C129: 217.525 | D129: 2013-04-18 | H129: 2013-04-18 | I129: 217.145 | J129: =I129 -> 217.145 | K129: 2013-04-18
A130: 2013-01-01 | B130: 228.943 | C130: -228.943 | D130: 2013-01-01 | E130: =XIRR(C130:C131,D130:D131,) -> -0.1268085483 | F130: =IRR(C130:C131) -> -0.04039870186 | G130: =(B131-B130)/B130 -> -0.04039870186 | H130: 2013-01-01 | I130: 228.943 | J130: =-I130 -> -228.943 | K130: 2013-01-01 | L130: =XIRR(J130:J131,K130:K131,) -> -0.131999461 | M130: =IRR(J130:J131) -> -0.04213712583 | N130: =(I131-I130)/I130 -> -0.04213712583 | P130: =E130-L130 -> 0.005190912634 | Q130: =F130-M130 -> 0.001738423975 | S130: =(1+Q130)^(365/(K131-K130))-1 -> 0.005727817726
A131: 2013-04-22 | B131: 219.694 | C131: 219.694 | D131: 2013-04-22 | H131: 2013-04-22 | I131: 219.296 | J131: =I131 -> 219.296 | K131: 2013-04-22
A132: 2013-01-01 | B132: 228.943 | C132: -228.943 | D132: 2013-01-01 | E132: =XIRR(C132:C133,D132:D133,) -> -0.1360701021 | F132: =IRR(C132:C133) -> -0.04388865351 | G132: =(B133-B132)/B132 -> -0.04388865351 | H132: 2013-01-01 | I132: 228.943 | J132: =-I132 -> -228.943 | K132: 2013-01-01 | L132: =XIRR(J132:J133,K132:K133,) -> -0.1412172075 | M132: =IRR(J132:J133) -> -0.04564018118 | N132: =(I133-I132)/I132 -> -0.04564018118 | P132: =E132-L132 -> 0.005147105455 | Q132: =F132-M132 -> 0.001751527673 | S132: =(1+Q132)^(365/(K133-K132))-1 -> 0.00571940415
A133: 2013-04-23 | B133: 218.895 | C133: 218.895 | D133: 2013-04-23 | H133: 2013-04-23 | I133: 218.494 | J133: =I133 -> 218.494 | K133: 2013-04-23
A134: 2013-01-01 | B134: 228.943 | C134: -228.943 | D134: 2013-01-01 | E134: =XIRR(C134:C135,D134:D135,) -> -0.1301743988 | F134: =IRR(C134:C135) -> -0.04298886622 | G134: =(B135-B134)/B134 -> -0.04298886622 | H134: 2013-01-01 | I134: 228.943 | J134: =-I134 -> -228.943 | K134: 2013-01-01 | L134: =XIRR(J134:J135,K134:K135,) -> -0.1353551392 | M134: =IRR(J134:J135) -> -0.04478844079 | N134: =(I135-I134)/I134 -> -0.04478844079 | P134: =E134-L134 -> 0.005180740356 | Q134: =F134-M134 -> 0.001799574567 | S134: =(1+Q134)^(365/(K135-K134))-1 -> 0.005722873468
A135: 2013-04-26 | B135: 219.101 | C135: 219.101 | D135: 2013-04-26 | H135: 2013-04-26 | I135: 218.689 | J135: =I135 -> 218.689 | K135: 2013-04-26
A136: 2013-01-01 | B136: 228.943 | C136: -228.943 | D136: 2013-01-01 | E136: =XIRR(C136:C137,D136:D137,) -> -0.1103653599 | F136: =IRR(C136:C137) -> -0.03710093779 | G136: =(B137-B136)/B136 -> -0.03710093779 | H136: 2013-01-01 | I136: 228.943 | J136: =-I136 -> -228.943 | K136: 2013-01-01 | L136: =XIRR(J136:J137,K136:K137,) -> -0.1156474475 | M136: =IRR(J136:J137) -> -0.03895292715 | N136: =(I137-I136)/I136 -> -0.03895292715 | P136: =E136-L136 -> 0.005282087624 | Q136: =F136-M136 -> 0.00185198936 | S136: =(1+Q136)^(365/(K137-K136))-1 -> 0.005739722479
A137: 2013-04-29 | B137: 220.449 | C137: 220.449 | D137: 2013-04-29 | H137: 2013-04-29 | I137: 220.025 | J137: =I137 -> 220.025 | K137: 2013-04-29
A138: 2013-01-01 | B138: 228.943 | C138: =-B138 -> -228.943 | D138: 2013-01-01 | E138: =XIRR(C138:C139,D138:D139,) -> -0.09542801082 | F138: =IRR(C138:C139) -> -0.03216957933 | G138: =(B139-B138)/B138 -> -0.03216957933 | H138: 2013-01-01 | I138: 228.943 | J138: =-I138 -> -228.943 | K138: 2013-01-01 | L138: =XIRR(J138:J139,K138:K139,) -> -0.1008015413 | M138: =IRR(J138:J139) -> -0.03404777608 | N138: =(I139-I138)/I138 -> -0.03404777608 | P138: =E138-L138 -> 0.005373530462 | Q138: =F138-M138 -> 0.001878196756 | S138: =(1+Q138)^(365/(K139-K138))-1 -> 0.005772046788
A139: 2013-04-30 | B139: 221.578 | C139: =B139 -> 221.578 | D139: 2013-04-30 | H139: 2013-04-30 | I139: 221.148 | J139: =I139 -> 221.148 | K139: 2013-04-30
A140: 2013-01-01 | B140: 228.943 | C140: -228.943 | D140: 2013-01-01 | E140: =XIRR(C140:C141,D140:D141,) -> -0.06481755674 | F140: =IRR(C140:C141) -> -0.02197053415 | G140: =(B141-B140)/B140 -> -0.02197053415 | H140: 2013-01-01 | I140: 228.943 | J140: =-I140 -> -228.943 | K140: 2013-01-01 | L140: =XIRR(J140:J141,K140:K141,) -> -0.07036254108 | M140: =IRR(J140:J141) -> -0.0238967778 | N140: =(I141-I140)/I140 -> -0.0238967778 | P140: =E140-L140 -> 0.005544984341 | Q140: =F140-M140 -> 0.00192624365 | S140: =(1+Q140)^(365/(K141-K140))-1 -> 0.005821862127
A141: 2013-05-02 | B141: 223.913 | C141: 223.913 | D141: 2013-05-02 | H141: 2013-05-02 | I141: 223.472 | J141: =I141 -> 223.472 | K141: 2013-05-02
A142: 2013-01-01 | B142: 228.943 | C142: -228.943 | D142: 2013-01-01 | E142: =XIRR(C142:C143,D142:D143,) -> -0.09744859338 | F142: =IRR(C142:C143) -> -0.03368960833 | G142: =(B143-B142)/B142 -> -0.03368960833 | H142: 2013-01-01 | I142: 228.943 | J142: =-I142 -> -228.943 | K142: 2013-01-01 | L142: =XIRR(J142:J143,K142:K143,) -> -0.1027963001 | M142: =IRR(J142:J143) -> -0.03560711618 | N142: =(I143-I142)/I142 -> -0.03560711618 | P142: =E142-L142 -> 0.00534770675 | Q142: =F142-M142 -> 0.001917507851 | S142: =(1+Q142)^(365/(K143-K142))-1 -> 0.005747768509
A143: 2013-05-03 | B143: 221.23 | C143: 221.23 | D143: 2013-05-03 | H143: 2013-05-03 | I143: 220.791 | J143: =I143 -> 220.791 | K143: 2013-05-03
A144: 2013-01-01 | B144: 228.943 | C144: -228.943 | D144: 2013-01-01 | E144: =XIRR(C144:C145,D144:D145,) -> -0.08095245063 | F144: =IRR(C144:C145) -> -0.0284961759 | G144: =(B145-B144)/B144 -> -0.0284961759 | H144: 2013-01-01 | I144: 228.943 | J144: =-I144 -> -228.943 | K144: 2013-01-01 | L144: =XIRR(J144:J145,K144:K145,) -> -0.08638344705 | M144: =IRR(J144:J145) -> -0.03046609855 | N144: =(I145-I144)/I144 -> -0.03046609855 | P144: =E144-L144 -> 0.005430996418 | Q144: =F144-M144 -> 0.001969922648 | S144: =(1+Q144)^(365/(K145-K144))-1 -> 0.005763058788
A145: 2013-05-06 | B145: 222.419 | C145: 222.419 | D145: 2013-05-06 | H145: 2013-05-06 | I145: 221.968 | J145: =I145 -> 221.968 | K145: 2013-05-06
A146: 2013-01-01 | B146: 228.943 | C146: -228.943 | D146: 2013-01-01 | E146: =XIRR(C146:C147,D146:D147,) -> -0.04685516059 | F146: =IRR(C146:C147) -> -0.01655870675 | G146: =(B147-B146)/B146 -> -0.01655870675 | H146: 2013-01-01 | I146: 228.943 | J146: =-I146 -> -228.943 | K146: 2013-01-01 | L146: =XIRR(J146:J147,K146:K147,) -> -0.05247748792 | M146: =IRR(J146:J147) -> -0.01858104419 | N146: =(I147-I146)/I146 -> -0.01858104419 | P146: =E146-L146 -> 0.005622327328 | Q146: =F146-M146 -> 0.002022337437 | S146: =(1+Q146)^(365/(K147-K146))-1 -> 0.005823249994
A147: 2013-05-08 | B147: 225.152 | C147: 225.152 | D147: 2013-05-08 | H147: 2013-05-08 | I147: 224.689 | J147: =I147 -> 224.689 | K147: 2013-05-08
A148: 2013-01-01 | B148: 228.943 | C148: -228.943 | D148: 2013-01-01 | E148: =XIRR(C148:C149,D148:D149,) -> -0.04853720367 | F148: =IRR(C148:C149) -> -0.01729688176 | G148: =(B149-B148)/B148 -> -0.01729688176 | H148: 2013-01-01 | I148: 228.943 | J148: =-I148 -> -228.943 | K148: 2013-01-01 | L148: =XIRR(J148:J149,K148:K149,) -> -0.05415811837 | M148: =IRR(J148:J149) -> -0.01933669079 | N148: =(I149-I148)/I148 -> -0.01933669079 | P148: =E148-L148 -> 0.005620914698 | Q148: =F148-M148 -> 0.002039809035 | S148: =(1+Q148)^(365/(K149-K148))-1 -> 0.005827633559
A149: 2013-05-09 | B149: 224.983 | C149: 224.983 | D149: 2013-05-09 | H149: 2013-05-09 | I149: 224.516 | J149: =I149 -> 224.516 | K149: 2013-05-09
A150: 2013-01-01 | B150: 228.943 | C150: -228.943 | D150: 2013-01-01 | E150: =XIRR(C150:C151,D150:D151,) -> -0.0273758918 | F150: =IRR(C150:C151) -> -0.009762255233 | G150: =(B151-B150)/B150 -> -0.009762255234 | H150: 2013-01-01 | I150: 228.943 | J150: =-I150 -> -228.943 | K150: 2013-01-01 | L150: =XIRR(J150:J151,K150:K151,) -> -0.03311875761 | M150: =IRR(J150:J151) -> -0.01183263956 | N150: =(I151-I150)/I150 -> -0.01183263957 | P150: =E150-L150 -> 0.005742865801 | Q150: =F150-M150 -> 0.002070384331 | S150: =(1+Q150)^(365/(K151-K150))-1 -> 0.005869164779
A151: 2013-05-10 | B151: 226.708 | C151: 226.708 | D151: 2013-05-10 | H151: 2013-05-10 | I151: 226.234 | J151: =I151 -> 226.234 | K151: 2013-05-10
A152: 2013-01-01 | B152: 228.943 | C152: -228.943 | D152: 2013-01-01 | E152: =XIRR(C152:C153,D152:D153,) -> -0.07310560644 | F152: =IRR(C152:C153) -> -0.02708097648 | G152: =(B153-B152)/B152 -> -0.02708097649 | H152: 2013-01-01 | I152: 228.943 | J152: =-I152 -> -228.943 | K152: 2013-01-01 | L152: =XIRR(J152:J153,K152:K153,) -> -0.07856093347 | M152: =IRR(J152:J153) -> -0.02915572871 | N152: =(I153-I152)/I152 -> -0.02915572872 | P152: =E152-L152 -> 0.005455327034 | Q152: =F152-M152 -> 0.00207475223 | S152: =(1+Q152)^(365/(K153-K152))-1 -> 0.005747515009
A153: 2013-05-13 | B153: 222.743 | C153: 222.743 | D153: 2013-05-13 | H153: 2013-05-13 | I153: 222.268 | J153: =I153 -> 222.268 | K153: 2013-05-13
A154: 2013-01-01 | B154: 228.943 | C154: -228.943 | D154: 2013-01-01 | E154: =XIRR(C154:C155,D154:D155,) -> -0.06049455702 | F154: =IRR(C154:C155) -> -0.02248157838 | G154: =(B155-B154)/B154 -> -0.02248157838 | H154: 2013-01-01 | I154: 228.943 | J154: =-I154 -> -228.943 | K154: 2013-01-01 | L154: =XIRR(J154:J155,K154:K155,) -> -0.06602574885 | M154: =IRR(J154:J155) -> -0.02458253801 | N154: =(I155-I154)/I154 -> -0.02458253801 | P154: =E154-L154 -> 0.005531191826 | Q154: =F154-M154 -> 0.002100959627 | S154: =(1+Q154)^(365/(K155-K154))-1 -> 0.005776362293
A155: 2013-05-14 | B155: 223.796 | C155: 223.796 | D155: 2013-05-14 | H155: 2013-05-14 | I155: 223.315 | J155: =I155 -> 223.315 | K155: 2013-05-14
A156: 2013-01-01 | B156: 228.943 | C156: -228.943 | D156: 2013-01-01 | E156: =XIRR(C156:C157,D156:D157,) -> 0.03643210232 | F156: =IRR(C156:C157) -> 0.01342255496 | G156: =(B157-B156)/B156 -> 0.01342255496 | H156: 2013-01-01 | I156: 228.943 | J156: =-I156 -> -228.943 | K156: 2013-01-01 | L156: =XIRR(J156:J157,K156:K157,) -> 0.03034105599 | M156: =IRR(J156:J157) -> 0.01119929415 | N156: =(I157-I156)/I156 -> 0.01119929415 | P156: =E156-L156 -> 0.006091046333 | Q156: =F156-M156 -> 0.002223260812 | S156: =(1+Q156)^(365/(K157-K156))-1 -> 0.005978014005
A157: 2013-05-17 | B157: 232.016 | C157: 232.016 | D157: 2013-05-17 | H157: 2013-05-17 | I157: 231.507 | J157: =I157 -> 231.507 | K157: 2013-05-17
A158: 2013-01-01 | B158: 228.943 | C158: -228.943 | D158: 2013-01-01 | E158: =XIRR(C158:C159,D158:D159,) -> 0.01788755953 | F158: =IRR(C158:C159) -> 0.006774612021 | G158: =(B159-B158)/B158 -> 0.006774612021 | H158: 2013-01-01 | I158: 228.943 | J158: =-I158 -> -228.943 | K158: 2013-01-01 | L158: =XIRR(J158:J159,K158:K159,) -> 0.01190321743 | M158: =IRR(J158:J159) -> 0.004516408014 | N158: =(I159-I158)/I158 -> 0.004516408014 | P158: =E158-L158 -> 0.005984342098 | Q158: =F158-M158 -> 0.002258204007 | S158: =(1+Q158)^(365/(K159-K158))-1 -> 0.005940707398
A159: 2013-05-20 | B159: 230.494 | C159: 230.494 | D159: 2013-05-20 | H159: 2013-05-20 | I159: 229.977 | J159: =I159 -> 229.977 | K159: 2013-05-20
A160: 2013-01-01 | B160: 228.943 | C160: -228.943 | D160: 2013-01-01 | E160: =XIRR(C160:C161,D160:D161,) -> -0.02119679749 | F160: =IRR(C160:C161) -> -0.008242226231 | G160: =(B161-B160)/B160 -> -0.008242226231 | H160: 2013-01-01 | I160: 228.943 | J160: =-I160 -> -228.943 | K160: 2013-01-01 | L160: =XIRR(J160:J161,K160:K161,) -> -0.02691123784 | M160: =IRR(J160:J161) -> -0.01048295864 | N160: =(I161-I160)/I160 -> -0.01048295864 | P160: =E160-L160 -> 0.005714440346 | Q160: =F160-M160 -> 0.002240732409 | S160: =(1+Q160)^(365/(K161-K160))-1 -> 0.005810806162
A161: 2013-05-22 | B161: 227.056 | C161: 227.056 | D161: 2013-05-22 | H161: 2013-05-22 | I161: 226.543 | J161: =I161 -> 226.543 | K161: 2013-05-22
A162: 2013-01-01 | B162: 228.943 | C162: -228.943 | D162: 2013-01-01 | E162: =XIRR(C162:C163,D162:D163,) -> -0.08907921016 | F162: =IRR(C162:C163) -> -0.03564642728 | G162: =(B163-B162)/B162 -> -0.03564642728 | H162: 2013-01-01 | I162: 228.943 | J162: =-I162 -> -228.943 | K162: 2013-01-01 | L162: =XIRR(J162:J163,K162:K163,) -> -0.09438298643 | M162: =IRR(J162:J163) -> -0.03783474489 | N162: =(I163-I162)/I162 -> -0.03783474489 | P162: =E162-L162 -> 0.005303776264 | Q162: =F162-M162 -> 0.002188317616 | S162: =(1+Q162)^(365/(K163-K162))-1 -> 0.005634570156
A163: 2013-05-23 | B163: 220.782 | C163: 220.782 | D163: 2013-05-23 | H163: 2013-05-23 | I163: 220.281 | J163: =I163 -> 220.281 | K163: 2013-05-23
A164: 2013-01-01 | B164: 228.943 | C164: -228.943 | D164: 2013-01-01 | E164: =XIRR(C164:C165,D164:D165,) -> -0.07642320693 | F164: =IRR(C164:C165) -> -0.03066702192 | G164: =(B165-B164)/B164 -> -0.03066702192 | H164: 2013-01-01 | I164: 228.943 | J164: =-I164 -> -228.943 | K164: 2013-01-01 | L164: =XIRR(J164:J165,K164:K165,) -> -0.08180988729 | M164: =IRR(J164:J165) -> -0.03288591483 | N164: =(I165-I164)/I164 -> -0.03288591483 | P164: =E164-L164 -> 0.005386680365 | Q164: =F164-M164 -> 0.002218892912 | S164: =(1+Q164)^(365/(K165-K164))-1 -> 0.005673366525
A165: 2013-05-24 | B165: 221.922 | C165: 221.922 | D165: 2013-05-24 | H165: 2013-05-24 | I165: 221.414 | J165: =I165 -> 221.414 | K165: 2013-05-24
A166: 2013-01-01 | B166: 228.943 | C166: -228.943 | D166: 2013-01-01 | E166: =XIRR(C166:C167,D166:D167,) -> -0.05078934729 | F166: =IRR(C166:C167) -> -0.02063395692 | G166: =(B167-B166)/B166 -> -0.02063395692 | H166: 2013-01-01 | I166: 228.943 | J166: =-I166 -> -228.943 | K166: 2013-01-01 | L166: =XIRR(J166:J167,K166:K167,) -> -0.05631484687 | M166: =IRR(J166:J167) -> -0.02291836833 | N166: =(I167-I166)/I166 -> -0.02291836833 | P166: =E166-L166 -> 0.005525499582 | Q166: =F166-M166 -> 0.002284411403 | S166: =(1+Q166)^(365/(K167-K166))-1 -> 0.005720816987
A167: 2013-05-27 | B167: 224.219 | C167: 224.219 | D167: 2013-05-27 | H167: 2013-05-27 | I167: 223.696 | J167: =I167 -> 223.696 | K167: 2013-05-27
A168: 2013-01-01 | B168: 228.943 | C168: -228.943 | D168: 2013-01-01 | E168: =XIRR(C168:C169,D168:D169,) -> -0.04910673797 | F168: =IRR(C168:C169) -> -0.02021027068 | G168: =(B169-B168)/B168 -> -0.02021027068 | H168: 2013-01-01 | I168: 228.943 | J168: =-I168 -> -228.943 | K168: 2013-01-01 | L168: =XIRR(J168:J169,K168:K169,) -> -0.0546380192 | M168: =IRR(J168:J169) -> -0.02252525738 | N168: =(I169-I168)/I168 -> -0.02252525738 | P168: =E168-L168 -> 0.005531281233 | Q168: =F168-M168 -> 0.002314986699 | S168: =(1+Q168)^(365/(K169-K168))-1 -> 0.005718950607
A169: 2013-05-29 | B169: 224.316 | C169: 224.316 | D169: 2013-05-29 | H169: 2013-05-29 | I169: 223.786 | J169: =I169 -> 223.786 | K169: 2013-05-29
A170: 2013-01-01 | B170: 228.943 | C170: -228.943 | D170: 2013-01-01 | E170: =XIRR(C170:C171,D170:D171,) -> -0.0459989816 | F170: =IRR(C170:C171) -> -0.01903967363 | G170: =(B171-B170)/B170 -> -0.01903967363 | H170: 2013-01-01 | I170: 228.943 | J170: =-I170 -> -228.943 | K170: 2013-01-01 | L170: =XIRR(J170:J171,K170:K171,) -> -0.05153575242 | M170: =IRR(J170:J171) -> -0.02136776403 | N170: =(I171-I170)/I170 -> -0.02136776403 | P170: =E170-L170 -> 0.005536770821 | Q170: =F170-M170 -> 0.002328090398 | S170: =(1+Q170)^(365/(K171-K170))-1 -> 0.00571266733
A171: 2013-05-30 | B171: 224.584 | C171: 224.584 | D171: 2013-05-30 | H171: 2013-05-30 | I171: 224.051 | J171: =I171 -> 224.051 | K171: 2013-05-30
A172: 2013-01-01 | B172: 228.943 | C172: -228.943 | D172: 2013-01-01 | E172: =XIRR(C172:C173,D172:D173,) -> -0.08841489851 | F172: =IRR(C172:C173) -> -0.03732806856 | G172: =(B173-B172)/B172 -> -0.03732806856 | H172: 2013-01-01 | I172: 228.943 | J172: =-I172 -> -228.943 | K172: 2013-01-01 | L172: =XIRR(J172:J173,K172:K173,) -> -0.09370981157 | M172: =IRR(J172:J173) -> -0.03962995156 | N172: =(I173-I172)/I172 -> -0.03962995156 | P172: =E172-L172 -> 0.005294913054 | Q172: =F172-M172 -> 0.002301883001 | S172: =(1+Q172)^(365/(K173-K172))-1 -> 0.005610491992
A173: 2013-05-31 | B173: 220.397 | C173: 220.397 | D173: 2013-05-31 | H173: 2013-05-31 | I173: 219.87 | J173: =I173 -> 219.87 | K173: 2013-05-31
A174: 2013-01-01 | B174: 228.943 | C174: -228.943 | D174: 2013-01-01 | E174: =XIRR(C174:C175,D174:D175,) -> -0.08869505823 | F174: =IRR(C174:C175) -> -0.03818417685 | G174: =(B175-B174)/B174 -> -0.03818417685 | H174: 2013-01-01 | I174: 228.943 | J174: =-I174 -> -228.943 | K174: 2013-01-01 | L174: =XIRR(J174:J175,K174:K175,) -> -0.09398786724 | M174: =IRR(J174:J175) -> -0.04052973884 | N174: =(I175-I174)/I174 -> -0.04052973884 | P174: =E174-L174 -> 0.00529280901 | Q174: =F174-M174 -> 0.002345561996 | S174: =(1+Q174)^(365/(K175-K174))-1 -> 0.005604717548
A175: 2013-06-03 | B175: 220.201 | C175: 220.201 | D175: 2013-06-03 | H175: 2013-06-03 | I175: 219.664 | J175: =I175 -> 219.664 | K175: 2013-06-03
A176: 2013-01-01 | B176: 228.943 | C176: -228.943 | D176: 2013-01-01 | E176: =XIRR(C176:C177,D176:D177,) -> -0.09169421494 | F176: =IRR(C176:C177) -> -0.03976535644 | G176: =(B177-B176)/B176 -> -0.03976535644 | H176: 2013-01-01 | I176: 228.943 | J176: =-I176 -> -228.943 | K176: 2013-01-01 | L176: =XIRR(J176:J177,K176:K177,) -> -0.09696357846 | M176: =IRR(J176:J177) -> -0.04211965424 | N176: =(I177-I176)/I176 -> -0.04211965424 | P176: =E176-L176 -> 0.005269363523 | Q176: =F176-M176 -> 0.002354297795 | S176: =(1+Q176)^(365/(K177-K176))-1 -> 0.005588993811
A177: 2013-06-04 | B177: 219.839 | C177: 219.839 | D177: 2013-06-04 | H177: 2013-06-04 | I177: 219.3 | J177: =I177 -> 219.3 | K177: 2013-06-04
A178: 2013-01-01 | B178: 228.943 | C178: -228.943 | D178: 2013-01-01 | E178: =XIRR(C178:C179,D178:D179,) -> -0.09085784256 | F178: =IRR(C178:C179) -> -0.03964305526 | G178: =(B179-B178)/B178 -> -0.03964305526 | H178: 2013-01-01 | I178: 228.943 | J178: =-I178 -> -228.943 | K178: 2013-01-01 | L178: =XIRR(J178:J179,K178:K179,) -> -0.09612657428 | M178: =IRR(J178:J179) -> -0.04201045675 | N178: =(I179-I178)/I178 -> -0.04201045675 | P178: =E178-L178 -> 0.005268731713 | Q178: =F178-M178 -> 0.002367401493 | S178: =(1+Q178)^(365/(K179-K178))-1 -> 0.005583791696
A179: 2013-06-05 | B179: 219.867 | C179: 219.867 | D179: 2013-06-05 | H179: 2013-06-05 | I179: 219.325 | J179: =I179 -> 219.325 | K179: 2013-06-05
A180: 2013-01-01 | B180: 228.943 | C180: -228.943 | D180: 2013-01-01 | E180: =XIRR(C180:C181,D180:D181,) -> -0.08727931082 | F180: =IRR(C180:C181) -> -0.03828027064 | G180: =(B181-B180)/B180 -> -0.03828027064 | H180: 2013-01-01 | I180: 228.943 | J180: =-I180 -> -228.943 | K180: 2013-01-01 | L180: =XIRR(J180:J181,K180:K181,) -> -0.09256620705 | M180: =IRR(J180:J181) -> -0.04066514373 | N180: =(I181-I180)/I180 -> -0.04066514373 | P180: =E180-L180 -> 0.005286896229 | Q180: =F180-M180 -> 0.002384873091 | S180: =(1+Q180)^(365/(K181-K180))-1 -> 0.0055889083
A181: 2013-06-06 | B181: 220.179 | C181: 220.179 | D181: 2013-06-06 | H181: 2013-06-06 | I181: 219.633 | J181: =I181 -> 219.633 | K181: 2013-06-06
A182: 2013-01-01 | B182: 228.943 | C182: -228.943 | D182: 2013-01-01 | E182: =XIRR(C182:C183,D182:D183,) -> -0.1027614918 | F182: =IRR(C182:C183) -> -0.04557029479 | G182: =(B183-B182)/B182 -> -0.04557029479 | H182: 2013-01-01 | I182: 228.943 | J182: =-I182 -> -228.943 | K182: 2013-01-01 | L182: =XIRR(J182:J183,K182:K183,) -> -0.1079650845 | M182: =IRR(J182:J183) -> -0.04795516788 | N182: =(I183-I182)/I182 -> -0.04795516788 | P182: =E182-L182 -> 0.005203592777 | Q182: =F182-M182 -> 0.002384873091 | S182: =(1+Q182)^(365/(K183-K182))-1 -> 0.005553211499
A183: 2013-06-07 | B183: 218.51 | C183: 218.51 | D183: 2013-06-07 | H183: 2013-06-07 | I183: 217.964 | J183: =I183 -> 217.964 | K183: 2013-06-07
A184: 2013-01-01 | B184: 228.943 | C184: -228.943 | D184: 2013-01-01 | E184: =XIRR(C184:C185,D184:D185,) -> -0.1126532372 | F184: =IRR(C184:C185) -> -0.05104327278 | G184: =(B185-B184)/B184 -> -0.05104327278 | H184: 2013-01-01 | I184: 228.943 | J184: =-I184 -> -228.943 | K184: 2013-01-01 | L184: =XIRR(J184:J185,K184:K185,) -> -0.1177880447 | M184: =IRR(J184:J185) -> -0.05345435327 | N184: =(I185-I184)/I184 -> -0.05345435327 | P184: =E184-L184 -> 0.005134807527 | Q184: =F184-M184 -> 0.002411080487 | S184: =(1+Q184)^(365/(K185-K184))-1 -> 0.005508775001
A185: 2013-06-10 | B185: 217.257 | C185: 217.257 | D185: 2013-06-10 | H185: 2013-06-10 | I185: 216.705 | J185: =I185 -> 216.705 | K185: 2013-06-10
A186: 2013-01-01 | B186: 228.943 | C186: -228.943 | D186: 2013-01-01 | E186: =XIRR(C186:C187,D186:D187,) -> -0.1444862571 | F186: =IRR(C186:C187) -> -0.06651874047 | G186: =(B187-B186)/B186 -> -0.06651874047 | H186: 2013-01-01 | I186: 228.943 | J186: =-I186 -> -228.943 | K186: 2013-01-01 | L186: =XIRR(J186:J187,K186:K187,) -> -0.1494243111 | M186: =IRR(J186:J187) -> -0.06889924566 | N186: =(I187-I186)/I186 -> -0.06889924566 | P186: =E186-L186 -> 0.004938054085 | Q186: =F186-M186 -> 0.002380505191 | S186: =(1+Q186)^(365/(K187-K186))-1 -> 0.005404938367
A187: 2013-06-11 | B187: 213.714 | C187: 213.714 | D187: 2013-06-11 | H187: 2013-06-11 | I187: 213.169 | J187: =I187 -> 213.169 | K187: 2013-06-11
A188: 2013-01-01 | B188: 228.943 | C188: -228.943 | D188: 2013-01-01 | E188: =XIRR(C188:C189,D188:D189,) -> -0.1537309263 | F188: =IRR(C188:C189) -> -0.07140641994 | G188: =(B189-B188)/B188 -> -0.07140641994 | H188: 2013-01-01 | I188: 228.943 | J188: =-I188 -> -228.943 | K188: 2013-01-01 | L188: =XIRR(J188:J189,K188:K189,) -> -0.1586200032 | M188: =IRR(J188:J189) -> -0.07379129303 | N188: =(I189-I188)/I188 -> -0.07379129303 | P188: =E188-L188 -> 0.004889076948 | Q188: =F188-M188 -> 0.002384873091 | S188: =(1+Q188)^(365/(K189-K188))-1 -> 0.005381355751
A189: 2013-06-12 | B189: 212.595 | C189: 212.595 | D189: 2013-06-12 | H189: 2013-06-12 | I189: 212.049 | J189: =I189 -> 212.049 | K189: 2013-06-12
A190: 2013-01-01 | B190: 228.943 | C190: -228.943 | D190: 2013-01-01 | E190: =XIRR(C190:C191,D190:D191,) -> -0.1369035985 | F190: =IRR(C190:C191) -> -0.0640115662 | G190: =(B191-B190)/B190 -> -0.0640115662 | H190: 2013-01-01 | I190: 228.943 | J190: =-I190 -> -228.943 | K190: 2013-01-01 | L190: =XIRR(J190:J191,K190:K191,) -> -0.1418797601 | M190: =IRR(J190:J191) -> -0.06644011828 | N190: =(I191-I190)/I190 -> -0.06644011828 | P190: =E190-L190 -> 0.004976161569 | Q190: =F190-M190 -> 0.002428552085 | S190: =(1+Q190)^(365/(K191-K190))-1 -> 0.005413054571
A191: 2013-06-14 | B191: 214.288 | C191: 214.288 | D191: 2013-06-14 | H191: 2013-06-14 | I191: 213.732 | J191: =I191 -> 213.732 | K191: 2013-06-14
A192: 2013-01-01 | B192: 228.943 | C192: -228.943 | D192: 2013-01-01 | E192: =XIRR(C192:C193,D192:D193,) -> -0.1228265475 | F192: =IRR(C192:C193) -> -0.05819789205 | G192: =(B193-B192)/B192 -> -0.05819789205 | H192: 2013-01-01 | I192: 228.943 | J192: =-I192 -> -228.943 | K192: 2013-01-01 | L192: =XIRR(J192:J193,K192:K193,) -> -0.1278778914 | M192: =IRR(J192:J193) -> -0.06068322683 | N192: =(I193-I192)/I192 -> -0.06068322683 | P192: =E192-L192 -> 0.005051343888 | Q192: =F192-M192 -> 0.002485334778 | S192: =(1+Q192)^(365/(K193-K192))-1 -> 0.005440023578
A193: 2013-06-17 | B193: 215.619 | C193: 215.619 | D193: 2013-06-17 | H193: 2013-06-17 | I193: 215.05 | J193: =I193 -> 215.05 | K193: 2013-06-17
A194: 2013-01-01 | B194: 228.943 | C194: -228.943 | D194: 2013-01-01 | E194: =XIRR(C194:C195,D194:D195,) -> -0.1327219676 | F194: =IRR(C194:C195) -> -0.06343937137 | G194: =(B195-B194)/B194 -> -0.06343937137 | H194: 2013-01-01 | I194: 228.943 | J194: =-I194 -> -228.943 | K194: 2013-01-01 | L194: =XIRR(J194:J195,K194:K195,) -> -0.1376969088 | M194: =IRR(J194:J195) -> -0.06591597035 | N194: =(I195-I194)/I194 -> -0.06591597035 | P194: =E194-L194 -> 0.004974941164 | Q194: =F194-M194 -> 0.002476598979 | S194: =(1+Q194)^(365/(K195-K194))-1 -> 0.005388520301
A195: 2013-06-18 | B195: 214.419 | C195: 214.419 | D195: 2013-06-18 | H195: 2013-06-18 | I195: 213.852 | J195: =I195 -> 213.852 | K195: 2013-06-18
A196: 2013-01-01 | B196: 228.943 | C196: -228.943 | D196: 2013-01-01 | E196: =XIRR(C196:C197,D196:D197,) -> -0.1298824403 | F196: =IRR(C196:C197) -> -0.06238670761 | G196: =(B197-B196)/B196 -> -0.06238670761 | H196: 2013-01-01 | I196: 228.943 | J196: =-I196 -> -228.943 | K196: 2013-01-01 | L196: =XIRR(J196:J197,K196:K197,) -> -0.1348735686 | M196: =IRR(J196:J197) -> -0.06488077818 | N196: =(I197-I196)/I196 -> -0.06488077818 | P196: =E196-L196 -> 0.004991128296 | Q196: =F196-M196 -> 0.002494070577 | S196: =(1+Q196)^(365/(K197-K196))-1 -> 0.005394393625
A197: 2013-06-19 | B197: 214.66 | C197: 214.66 | D197: 2013-06-19 | H197: 2013-06-19 | I197: 214.089 | J197: =I197 -> 214.089 | K197: 2013-06-19
A198: 2013-01-01 | B198: 228.943 | C198: -228.943 | D198: 2013-01-01 | E198: =XIRR(C198:C199,D198:D199,) -> -0.1857784458 | F198: =IRR(C198:C199) -> -0.09179577449 | G198: =(B199-B198)/B198 -> -0.09179577449 | H198: 2013-01-01 | I198: 228.943 | J198: =-I198 -> -228.943 | K198: 2013-01-01 | L198: =XIRR(J198:J199,K198:K199,) -> -0.1904437192 | M198: =IRR(J198:J199) -> -0.09423743028 | N198: =(I199-I198)/I198 -> -0.09423743028 | P198: =E198-L198 -> 0.004665273428 | Q198: =F198-M198 -> 0.002441655783 | S198: =(1+Q198)^(365/(K199-K198))-1 -> 0.005218940604
A199: 2013-06-21 | B199: 207.927 | C199: 207.927 | D199: 2013-06-21 | H199: 2013-06-21 | I199: 207.368 | J199: =I199 -> 207.368 | K199: 2013-06-21
A200: 2013-01-01 | B200: 228.943 | C200: -228.943 | D200: 2013-01-01 | E200: =XIRR(C200:C201,D200:D201,) -> -0.2149637766 | F200: =IRR(C200:C201) -> -0.1095600215 | G200: =(B201-B200)/B200 -> -0.1095600215 | H200: 2013-01-01 | I200: 228.943 | J200: =-I200 -> -228.943 | K200: 2013-01-01 | L200: =XIRR(J200:J201,K200:K201,) -> -0.219446861 | M200: =IRR(J200:J201) -> -0.1120016773 | N200: =(I201-I200)/I200 -> -0.1120016773 | P200: =E200-L200 -> 0.004483084381 | Q200: =F200-M200 -> 0.002441655783 | S200: =(1+Q200)^(365/(K201-K200))-1 -> 0.005099346904
... 57 more rows

Sheet Raw Data
A1: NAV_Date | B1: Direct | D1: Regular
A2: 2013-01-01 | B2: 228.943 | C2: 2013-01-01 | D2: 228.943
A3: 2013-01-02 | B3: 231.032 | C3: 2013-01-02 | D3: 231.028
A4: 2013-01-03 | B4: 231.435 | C4: 2013-01-03 | D4: 231.428
A5: 2013-01-04 | B5: 232.035 | C5: 2013-01-04 | D5: 232.023
A6: 2013-01-08 | B6: 231.139 | C6: 2013-01-08 | D6: 231.11
A7: 2013-01-09 | B7: 230.498 | C7: 2013-01-09 | D7: 230.465
A8: 2013-01-10 | B8: 230.44 | C8: 2013-01-10 | D8: 230.402
A9: 2013-01-11 | B9: 229.727 | C9: 2013-01-11 | D9: 229.686
A10: 2013-01-14 | B10: 233.008 | C10: 2013-01-14 | D10: 232.953
A11: 2013-01-16 | B11: 230.797 | C11: 2013-01-16 | D11: 230.736
A12: 2013-01-17 | B12: 232.393 | C12: 2013-01-17 | D12: 232.326
A13: 2013-01-18 | B13: 234.155 | C13: 2013-01-18 | D13: 234.084
A14: 2013-01-21 | B14: 234.841 | C14: 2013-01-21 | D14: 234.759
A15: 2013-01-23 | B15: 232.271 | C15: 2013-01-23 | D15: 232.181
A16: 2013-01-24 | B16: 229.474 | C16: 2013-01-24 | D16: 229.382
A17: 2013-01-25 | B17: 232.733 | C17: 2013-01-25 | D17: 232.636
A18: 2013-01-29 | B18: 231.285 | C18: 2013-01-29 | D18: 231.174
A19: 2013-01-30 | B19: 230.861 | C19: 2013-01-30 | D19: 230.746
A20: 2013-01-31 | B20: 231.208 | C20: 2013-01-31 | D20: 231.09
A21: 2013-02-01 | B21: 230.308 | C21: 2013-02-01 | D21: 230.186
A22: 2013-02-04 | B22: 228.696 | C22: 2013-02-04 | D22: 228.564
A23: 2013-02-05 | B23: 227.359 | C23: 2013-02-05 | D23: 227.224
A24: 2013-02-06 | B24: 227.416 | C24: 2013-02-06 | D24: 227.277
A25: 2013-02-07 | B25: 225.917 | C25: 2013-02-07 | D25: 225.775
A26: 2013-02-08 | B26: 224.277 | C26: 2013-02-08 | D26: 224.133
A27: 2013-02-11 | B27: 224.331 | C27: 2013-02-11 | D27: 224.177
A28: 2013-02-12 | B28: 225.168 | C28: 2013-02-12 | D28: 225.009
A29: 2013-02-15 | B29: 222.501 | C29: 2013-02-15 | D29: 222.333
A30: 2013-02-18 | B30: 223.002 | C30: 2013-02-18 | D30: 222.823
A31: 2013-02-19 | B31: 224.648 | C31: 2013-02-19 | D31: 224.464
A32: 2013-02-20 | B32: 223.952 | C32: 2013-02-20 | D32: 223.765
A33: 2013-02-21 | B33: 220.112 | C33: 2013-02-21 | D33: 219.924
A34: 2013-02-22 | B34: 220.166 | C34: 2013-02-22 | D34: 219.975
A35: 2013-02-26 | B35: 216.441 | C35: 2013-02-26 | D35: 216.239
A36: 2013-02-28 | B36: 212.897 | C36: 2013-02-28 | D36: 212.692
A37: 2013-03-01 | B37: 214.515 | C37: 2013-03-01 | D37: 214.304
A38: 2013-03-04 | B38: 213.627 | C38: 2013-03-04 | D38: 213.406
A39: 2013-03-06 | B39: 219.375 | C39: 2013-03-06 | D39: 219.142
A40: 2013-03-07 | B40: 220.573 | C40: 2013-03-07 | D40: 220.335
A41: 2013-03-08 | B41: 223.112 | C41: 2013-03-08 | D41: 222.868
A42: 2013-03-11 | B42: 222.912 | C42: 2013-03-11 | D42: 222.657
A43: 2013-03-12 | B43: 221.68 | C43: 2013-03-12 | D43: 221.422
A44: 2013-03-13 | B44: 218.502 | C44: 2013-03-13 | D44: 218.244
A45: 2013-03-14 | B45: 221.417 | C45: 2013-03-14 | D45: 221.152
A46: 2013-03-15 | B46: 219.958 | C46: 2013-03-15 | D46: 219.691
A47: 2013-03-18 | B47: 218.403 | C47: 2013-03-18 | D47: 218.128
A48: 2013-03-19 | B48: 214.581 | C48: 2013-03-19 | D48: 214.307
A49: 2013-03-20 | B49: 211.168 | C49: 2013-03-20 | D49: 210.895
A50: 2013-03-21 | B50: 209.461 | C50: 2013-03-21 | D50: 209.187
A51: 2013-03-22 | B51: 208.857 | C51: 2013-03-22 | D51: 208.58
A52: 2013-03-25 | B52: 207.915 | C52: 2013-03-25 | D52: 207.629
A53: 2013-03-26 | B53: 207.964 | C53: 2013-03-26 | D53: 207.675
A54: 2013-03-28 | B54: 210.782 | C54: 2013-03-28 | D54: 210.485
A55: 2013-04-01 | B55: 211.858 | C55: 2013-04-01 | D55: 211.546
A56: 2013-04-02 | B56: 214.527 | C56: 2013-04-02 | D56: 214.207
A57: 2013-04-03 | B57: 211.482 | C57: 2013-04-03 | D57: 211.163
A58: 2013-04-05 | B58: 208.084 | C58: 2013-04-05 | D58: 207.762
A59: 2013-04-09 | B59: 205.514 | C59: 2013-04-09 | D59: 205.183
A60: 2013-04-10 | B60: 207.954 | C60: 2013-04-10 | D60: 207.616
A61: 2013-04-11 | B61: 209.727 | C61: 2013-04-11 | D61: 209.383
A62: 2013-04-12 | B62: 207.894 | C62: 2013-04-12 | D62: 207.552
A63: 2013-04-15 | B63: 209.665 | C63: 2013-04-15 | D63: 209.31
A64: 2013-04-16 | B64: 213.516 | C64: 2013-04-16 | D64: 213.151
A65: 2013-04-17 | B65: 214.211 | C65: 2013-04-17 | D65: 213.84
A66: 2013-04-18 | B66: 217.525 | C66: 2013-04-18 | D66: 217.145
A67: 2013-04-22 | B67: 219.694 | C67: 2013-04-22 | D67: 219.296
A68: 2013-04-23 | B68: 218.895 | C68: 2013-04-23 | D68: 218.494
A69: 2013-04-26 | B69: 219.101 | C69: 2013-04-26 | D69: 218.689
A70: 2013-04-29 | B70: 220.449 | C70: 2013-04-29 | D70: 220.025
A71: 2013-04-30 | B71: 221.578 | C71: 2013-04-30 | D71: 221.148
A72: 2013-05-02 | B72: 223.913 | C72: 2013-05-02 | D72: 223.472
A73: 2013-05-03 | B73: 221.23 | C73: 2013-05-03 | D73: 220.791
A74: 2013-05-06 | B74: 222.419 | C74: 2013-05-06 | D74: 221.968
A75: 2013-05-08 | B75: 225.152 | C75: 2013-05-08 | D75: 224.689
A76: 2013-05-09 | B76: 224.983 | C76: 2013-05-09 | D76: 224.516
A77: 2013-05-10 | B77: 226.708 | C77: 2013-05-10 | D77: 226.234
A78: 2013-05-13 | B78: 222.743 | C78: 2013-05-13 | D78: 222.268
A79: 2013-05-14 | B79: 223.796 | C79: 2013-05-14 | D79: 223.315
A80: 2013-05-17 | B80: 232.016 | C80: 2013-05-17 | D80: 231.507
A81: 2013-05-20 | B81: 230.494 | C81: 2013-05-20 | D81: 229.977
A82: 2013-05-22 | B82: 227.056 | C82: 2013-05-22 | D82: 226.543
A83: 2013-05-23 | B83: 220.782 | C83: 2013-05-23 | D83: 220.281
A84: 2013-05-24 | B84: 221.922 | C84: 2013-05-24 | D84: 221.414
A85: 2013-05-27 | B85: 224.219 | C85: 2013-05-27 | D85: 223.696
A86: 2013-05-29 | B86: 224.316 | C86: 2013-05-29 | D86: 223.786
A87: 2013-05-30 | B87: 224.584 | C87: 2013-05-30 | D87: 224.051
A88: 2013-05-31 | B88: 220.397 | C88: 2013-05-31 | D88: 219.87
A89: 2013-06-03 | B89: 220.201 | C89: 2013-06-03 | D89: 219.664
A90: 2013-06-04 | B90: 219.839 | C90: 2013-06-04 | D90: 219.3
A91: 2013-06-05 | B91: 219.867 | C91: 2013-06-05 | D91: 219.325
A92: 2013-06-06 | B92: 220.179 | C92: 2013-06-06 | D92: 219.633
A93: 2013-06-07 | B93: 218.51 | C93: 2013-06-07 | D93: 217.964
A94: 2013-06-10 | B94: 217.257 | C94: 2013-06-10 | D94: 216.705
A95: 2013-06-11 | B95: 213.714 | C95: 2013-06-11 | D95: 213.169
A96: 2013-06-12 | B96: 212.595 | C96: 2013-06-12 | D96: 212.049
A97: 2013-06-14 | B97: 214.288 | C97: 2013-06-14 | D97: 213.732
A98: 2013-06-17 | B98: 215.619 | C98: 2013-06-17 | D98: 215.05
A99: 2013-06-18 | B99: 214.419 | C99: 2013-06-18 | D99: 213.852
A100: 2013-06-19 | B100: 214.66 | C100: 2013-06-19 | D100: 214.089
A101: 2013-06-21 | B101: 207.927 | C101: 2013-06-21 | D101: 207.368
J103: =248*2 -> 496 | K103: =M107 -> 0 | L103: =K103-#REF! -> 
J104: =J103*5 -> 2480 | K104: =M108 -> 0 | L104: =K104-#REF! -> 
J105: =3650 -> 3650 | K105: =M109 -> 0 | L105: =K105-#REF! -> 
K107: =(K103/B101)-1 -> -1 | L107: =(L103/D101)-1 -> 
K108: =(K104/B101)^(1/5)-1 -> -1 | L108: =(L104/D101)^(1/5)-1 -> 
K109: =(K105/B101)^(1/10)-1 -> -1 | L109: =(L105/D101)^(1/10)-1 -> 
I111: 2013-06-21 | J111: =J112+1 -> 1 | K111: 207.927 | L111: 207.368
I112: 2013-01-01 | J112: 0 | K112: -228.943 | L112: -228.943
K114: =_xludf.XIRR(K111:K112,I111:I112) -> 

Sheet calculation (old)
A1: NAV_Date | B1: Direct NAV | C1: For XIRR | D1: NAV_Date | E1: XIRR | F1: IRR | G1: % diff | H1: NAV_Date | I1: Regular NAV | J1: For XIRR | K1: NAV_Date | L1: XIRR | M1: IRR | N1: % diff | P1: XIRR difference | Q1: IRR difference | S1: Annualised IRR difference
A2: 2013-01-01 | B2: 228.943 | C2: 228.943 | D2: 2013-01-01 | E2: =XIRR(C2:C3,D2:D3,) -> 26.5321703 | F2: =IRR(C2:C3) -> 0.009124541917 | G2: =(B3-B2)/B2 -> 0.009124541917 | H2: 2013-01-01 | I2: 228.943 | J2: 228.943 | K2: 2013-01-01 | L2: =XIRR(J2:J3,K2:K3,) -> 26.3587286 | M2: =IRR(J2:J3) -> 0.009107070319 | N2: =(I3-I2)/I2 -> 0.009107070319 | P2: =E2-L2 -> 0.1734416962 | Q2: =F2-M2 -> 1.747159773e-05 | S2: =(1+Q2)^(365/(K3-K2))-1 -> 0.006397454315
A3: 2013-01-02 | B3: 231.032 | C3: -231.032 | D3: 2013-01-02 | H3: 2013-01-02 | I3: 231.028 | J3: -231.028 | K3: 2013-01-02
A4: 2013-01-01 | B4: 228.943 | C4: 228.943 | D4: 2013-01-01 | E4: =XIRR(C4:C5,D4:D5,) -> 6.211980391 | F4: =IRR(C4:C5) -> 0.01088480539 | G4: =(B5-B4)/B4 -> 0.01088480539 | H4: 2013-01-01 | I4: 228.943 | J4: 228.943 | K4: 2013-01-01 | L4: =XIRR(J4:J5,K4:K5,) -> 6.172280073 | M4: =IRR(J4:J5) -> 0.01085423009 | N4: =(I5-I4)/I4 -> 0.01085423009 | P4: =E4-L4 -> 0.03970031738 | Q4: =F4-M4 -> 3.057529603e-05 | S4: =(1+Q4)^(365/(K5-K4))-1 -> 0.005595502896
A5: 2013-01-03 | B5: 231.435 | C5: -231.435 | D5: 2013-01-03 | H5: 2013-01-03 | I5: 231.428 | J5: -231.428 | K5: 2013-01-03
A6: 2013-01-01 | B6: 228.943 | C6: 228.943 | D6: 2013-01-01 | E6: =XIRR(C6:C7,D6:D7,) -> 4.115000844 | F6: =IRR(C6:C7) -> 0.01350554505 | G6: =(B7-B6)/B6 -> 0.01350554505 | H6: 2013-01-01 | I6: 228.943 | J6: 228.943 | K6: 2013-01-01 | L6: =XIRR(J6:J7,K6:K7,) -> 4.082916713 | M6: =IRR(J6:J7) -> 0.01345313026 | N6: =(I7-I6)/I6 -> 0.01345313026 | P6: =E6-L6 -> 0.03208413124 | Q6: =F6-M6 -> 5.24147932e-05 | S6: =(1+Q6)^(365/(K7-K6))-1 -> 0.006397342188
A7: 2013-01-04 | B7: 232.035 | C7: -232.035 | D7: 2013-01-04 | H7: 2013-01-04 | I7: 232.023 | J7: -232.023 | K7: 2013-01-04
A8: 2013-01-01 | B8: 228.943 | C8: 228.943 | D8: 2013-01-01 | E8: =XIRR(C8:C9,D8:D9,) -> 0.6450421035 | F8: =IRR(C8:C9) -> 0.009591907156 | G8: =(B9-B8)/B8 -> 0.009591907156 | H8: 2013-01-01 | I8: 228.943 | J8: 228.943 | K8: 2013-01-01 | L8: =XIRR(J8:J9,K8:K9,) -> 0.6343144715 | M8: =IRR(J8:J9) -> 0.009465238072 | N8: =(I9-I8)/I8 -> 0.009465238072 | P8: =E8-L8 -> 0.01072763205 | Q8: =F8-M8 -> 0.0001266690836 | S8: =(1+Q8)^(365/(K9-K8))-1 -> 0.006626327249
A9: 2013-01-08 | B9: 231.139 | C9: -231.139 | D9: 2013-01-08 | H9: 2013-01-08 | I9: 231.11 | J9: -231.11 | K9: 2013-01-08
A10: 2013-01-01 | B10: 228.943 | C10: 228.943 | D10: 2013-01-01 | E10: =XIRR(C10:C11,D10:D11,) -> 0.3618460357 | F10: =IRR(C10:C11) -> 0.006792083619 | G10: =(B11-B10)/B10 -> 0.006792083619 | H10: 2013-01-01 | I10: 228.943 | J10: 228.943 | K10: 2013-01-01 | L10: =XIRR(J10:J11,K10:K11,) -> 0.3529787481 | M10: =IRR(J10:J11) -> 0.006647942938 | N10: =(I11-I10)/I10 -> 0.006647942938 | P10: =E10-L10 -> 0.008867287636 | Q10: =F10-M10 -> 0.0001441406813 | S10: =(1+Q10)^(365/(K11-K10))-1 -> 0.006597613661
A11: 2013-01-09 | B11: 230.498 | C11: -230.498 | D11: 2013-01-09 | H11: 2013-01-09 | I11: 230.465 | J11: -230.465 | K11: 2013-01-09
A12: 2013-01-01 | B12: 228.943 | C12: 228.943 | D12: 2013-01-01 | E12: =XIRR(C12:C13,D12:D13,) -> 0.3025439441 | F12: =IRR(C12:C13) -> 0.006538745452 | G12: =(B13-B12)/B12 -> 0.006538745452 | H12: 2013-01-01 | I12: 228.943 | J12: 228.943 | K12: 2013-01-01 | L12: =XIRR(J12:J13,K12:K13,) -> 0.2938612878 | M12: =IRR(J12:J13) -> 0.006372765273 | N12: =(I13-I12)/I12 -> 0.006372765273 | P12: =E12-L12 -> 0.008682656288 | Q12: =F12-M12 -> 0.0001659801785 | S12: =(1+Q12)^(365/(K13-K12))-1 -> 0.006753562915
A13: 2013-01-10 | B13: 230.44 | C13: -230.44 | D13: 2013-01-10 | H13: 2013-01-10 | I13: 230.402 | J13: -230.402 | K13: 2013-01-10
A14: 2013-01-01 | B14: 228.943 | C14: 228.943 | D14: 2013-01-01 | E14: =XIRR(C14:C15,D14:D15,) -> 0.1328972399 | F14: =IRR(C14:C15) -> 0.003424433156 | G14: =(B15-B14)/B14 -> 0.003424433156 | H14: 2013-01-01 | I14: 228.943 | J14: 228.943 | K14: 2013-01-01 | L14: =XIRR(J14:J15,K14:K15,) -> 0.1255405962 | M14: =IRR(J14:J15) -> 0.003245349279 | N14: =(I15-I14)/I14 -> 0.003245349279 | P14: =E14-L14 -> 0.007356643677 | Q14: =F14-M14 -> 0.0001790838768 | S14: =(1+Q14)^(365/(K15-K14))-1 -> 0.00655738238
A15: 2013-01-11 | B15: 229.727 | C15: -229.727 | D15: 2013-01-11 | H15: 2013-01-11 | I15: 229.686 | J15: -229.686 | K15: 2013-01-11
A16: 2013-01-01 | B16: 228.943 | C16: 228.943 | D16: 2013-01-01 | E16: =XIRR(C16:C17,D16:D17,) -> 0.6390979826 | F16: =IRR(C16:C17) -> 0.0177555112 | G16: =(B17-B16)/B16 -> 0.0177555112 | H16: 2013-01-01 | I16: 228.943 | J16: 228.943 | K16: 2013-01-01 | L16: =XIRR(J16:J17,K16:K17,) -> 0.6282697141 | M16: =IRR(J16:J17) -> 0.01751527673 | N16: =(I17-I16)/I16 -> 0.01751527673 | P16: =E16-L16 -> 0.01082826853 | Q16: =F16-M16 -> 0.0002402344688 | S16: =(1+Q16)^(365/(K17-K16))-1 -> 0.006767028199
A17: 2013-01-14 | B17: 233.008 | C17: -233.008 | D17: 2013-01-14 | H17: 2013-01-14 | I17: 232.953 | J17: -232.953 | K17: 2013-01-14
A18: 2013-01-01 | B18: 228.943 | C18: 228.943 | D18: 2013-01-01 | E18: =XIRR(C18:C19,D18:D19,) -> 0.2168430269 | F18: =IRR(C18:C19) -> 0.00809808555 | G18: =(B19-B18)/B18 -> 0.00809808555 | H18: 2013-01-01 | I18: 228.943 | J18: 228.943 | K18: 2013-01-01 | L18: =XIRR(J18:J19,K18:K19,) -> 0.2090411842 | M18: =IRR(J18:J19) -> 0.007831643684 | N18: =(I19-I18)/I18 -> 0.007831643684 | P18: =E18-L18 -> 0.00780184269 | Q18: =F18-M18 -> 0.0002664418654 | S18: =(1+Q18)^(365/(K19-K18))-1 -> 0.00650361239
A19: 2013-01-16 | B19: 230.797 | C19: -230.797 | D19: 2013-01-16 | H19: 2013-01-16 | I19: 230.736 | J19: -230.736 | K19: 2013-01-16
A20: 2013-01-01 | B20: 228.943 | C20: 228.943 | D20: 2013-01-01 | E20: =XIRR(C20:C21,D20:D21,) -> 0.4066386282 | F20: =IRR(C20:C21) -> 0.01506925305 | G20: =(B21-B20)/B20 -> 0.01506925305 | H20: 2013-01-01 | I20: 228.943 | J20: 228.943 | K20: 2013-01-01 | L20: =XIRR(J20:J21,K20:K21,) -> 0.3974162638 | M20: =IRR(J20:J21) -> 0.01477660378 | N20: =(I21-I20)/I20 -> 0.01477660378 | P20: =E20-L20 -> 0.009222364426 | Q20: =F20-M20 -> 0.000292649262 | S20: =(1+Q20)^(365/(K21-K20))-1 -> 0.006697412639
A21: 2013-01-17 | B21: 232.393 | C21: -232.393 | D21: 2013-01-17 | H21: 2013-01-17 | I21: 232.326 | J21: -232.326 | K21: 2013-01-17
A22: 2013-01-01 | B22: 228.943 | C22: 228.943 | D22: 2013-01-01 | E22: =XIRR(C22:C23,D22:D23,) -> 0.6214288533 | F22: =IRR(C22:C23) -> 0.02276549185 | G22: =(B23-B22)/B22 -> 0.02276549185 | H22: 2013-01-01 | I22: 228.943 | J22: 228.943 | K22: 2013-01-01 | L22: =XIRR(J22:J23,K22:K23,) -> 0.6109056175 | M22: =IRR(J22:J23) -> 0.02245537099 | N22: =(I23-I22)/I22 -> 0.02245537099 | P22: =E22-L22 -> 0.0105232358 | Q22: =F22-M22 -> 0.0003101208598 | S22: =(1+Q22)^(365/(K23-K22))-1 -> 0.006679655078
A23: 2013-01-18 | B23: 234.155 | C23: -234.155 | D23: 2013-01-18 | H23: 2013-01-18 | I23: 234.084 | J23: -234.084 | K23: 2013-01-18
A24: 2013-01-01 | B24: 228.943 | C24: 228.943 | D24: 2013-01-01 | E24: =XIRR(C24:C25,D24:D25,) -> 0.5907413423 | F24: =IRR(C24:C25) -> 0.02576187086 | G24: =(B25-B24)/B24 -> 0.02576187086 | H24: 2013-01-01 | I24: 228.943 | J24: 228.943 | K24: 2013-01-01 | L24: =XIRR(J24:J25,K24:K25,) -> 0.5806349695 | M24: =IRR(J24:J25) -> 0.02540370311 | N24: =(I25-I24)/I24 -> 0.02540370311 | P24: =E24-L24 -> 0.01010637283 | Q24: =F24-M24 -> 0.0003581677535 | S24: =(1+Q24)^(365/(K25-K24))-1 -> 0.006556793457
A25: 2013-01-21 | B25: 234.841 | C25: -234.841 | D25: 2013-01-21 | H25: 2013-01-21 | I25: 234.759 | J25: -234.759 | K25: 2013-01-21
A26: 2013-01-01 | B26: 228.943 | C26: 228.943 | D26: 2013-01-01 | E26: =XIRR(C26:C27,D26:D27,) -> 0.2705317438 | F26: =IRR(C26:C27) -> 0.01453636931 | G26: =(B27-B26)/B26 -> 0.01453636931 | H26: 2013-01-01 | I26: 228.943 | J26: 228.943 | K26: 2013-01-01 | L26: =XIRR(J26:J27,K26:K27,) -> 0.2623886049 | M26: =IRR(J26:J27) -> 0.01414325837 | N26: =(I27-I26)/I26 -> 0.01414325837 | P26: =E26-L26 -> 0.008143138885 | Q26: =F26-M26 -> 0.000393110949 | S26: =(1+Q26)^(365/(K27-K26))-1 -> 0.00654209302
A27: 2013-01-23 | B27: 232.271 | C27: -232.271 | D27: 2013-01-23 | H27: 2013-01-23 | I27: 232.181 | J27: -232.181 | K27: 2013-01-23
A28: 2013-01-01 | B28: 228.943 | C28: 228.943 | D28: 2013-01-01 | E28: =XIRR(C28:C29,D28:D29,) -> 0.03744870722 | F28: =IRR(C28:C29) -> 0.002319354599 | G28: =(B29-B28)/B28 -> 0.002319354599 | H28: 2013-01-01 | I28: 228.943 | J28: 228.943 | K28: 2013-01-01 | L28: =XIRR(J28:J29,K28:K29,) -> 0.03086770475 | M28: =IRR(J28:J29) -> 0.001917507851 | N28: =(I29-I28)/I28 -> 0.001917507851 | P28: =E28-L28 -> 0.006581002474 | Q28: =F28-M28 -> 0.0004018467479 | S28: =(1+Q28)^(365/(K29-K28))-1 -> 0.006396221213
A29: 2013-01-24 | B29: 229.474 | C29: -229.474 | D29: 2013-01-24 | H29: 2013-01-24 | I29: 229.382 | J29: -229.382 | K29: 2013-01-24
A30: 2013-01-01 | B30: 228.943 | C30: 228.943 | D30: 2013-01-01 | E30: =XIRR(C30:C31,D30:D31,) -> 0.2836437643 | F30: =IRR(C30:C31) -> 0.01655433885 | G30: =(B31-B30)/B30 -> 0.01655433885 | H30: 2013-01-01 | I30: 228.943 | J30: 228.943 | K30: 2013-01-01 | L30: =XIRR(J30:J31,K30:K31,) -> 0.2755312741 | M30: =IRR(J30:J31) -> 0.01613065261 | N30: =(I31-I30)/I30 -> 0.01613065261 | P30: =E30-L30 -> 0.008112490177 | Q30: =F30-M30 -> 0.000423686245 | S30: =(1+Q30)^(365/(K31-K30))-1 -> 0.006462992588
A31: 2013-01-25 | B31: 232.733 | C31: -232.733 | D31: 2013-01-25 | H31: 2013-01-25 | I31: 232.636 | J31: -232.636 | K31: 2013-01-25
A32: 2013-01-01 | B32: 228.943 | C32: 228.943 | D32: 2013-01-01 | E32: =XIRR(C32:C33,D32:D33,) -> 0.1418765008 | F32: =IRR(C32:C33) -> 0.01022962047 | G32: =(B33-B32)/B32 -> 0.01022962047 | H32: 2013-01-01 | I32: 228.943 | J32: 228.943 | K32: 2013-01-01 | L32: =XIRR(J32:J33,K32:K33,) -> 0.1347532928 | M32: =IRR(J32:J33) -> 0.009744783636 | N32: =(I33-I32)/I32 -> 0.009744783636 | P32: =E32-L32 -> 0.007123208046 | Q32: =F32-M32 -> 0.0004848368371 | S32: =(1+Q32)^(365/(K33-K32))-1 -> 0.00633866771
A33: 2013-01-29 | B33: 231.285 | C33: -231.285 | D33: 2013-01-29 | H33: 2013-01-29 | I33: 231.174 | J33: -231.174 | K33: 2013-01-29
A34: 2013-01-01 | B34: 228.943 | C34: 228.943 | D34: 2013-01-01 | E34: =XIRR(C34:C35,D34:D35,) -> 0.1107143581 | F34: =IRR(C34:C35) -> 0.008377631113 | G34: =(B35-B34)/B34 -> 0.008377631113 | H34: 2013-01-01 | I34: 228.943 | J34: 228.943 | K34: 2013-01-01 | L34: =XIRR(J34:J35,K34:K35,) -> 0.1037706435 | M34: =IRR(J34:J35) -> 0.007875322679 | N34: =(I35-I34)/I34 -> 0.007875322679 | P34: =E34-L34 -> 0.006943714619 | Q34: =F34-M34 -> 0.0005023084348 | S34: =(1+Q34)^(365/(K35-K34))-1 -> 0.006340587539
A35: 2013-01-30 | B35: 230.861 | C35: -230.861 | D35: 2013-01-30 | H35: 2013-01-30 | I35: 230.746 | J35: -230.746 | K35: 2013-01-30
A36: 2013-01-01 | B36: 228.943 | C36: 228.943 | D36: 2013-01-01 | E36: =XIRR(C36:C37,D36:D37,) -> 0.127245301 | F36: =IRR(C36:C37) -> 0.009893292217 | G36: =(B37-B36)/B36 -> 0.009893292217 | H36: 2013-01-01 | I36: 228.943 | J36: 228.943 | K36: 2013-01-01 | L36: =XIRR(J36:J37,K36:K37,) -> 0.1202656686 | M36: =IRR(J36:J37) -> 0.009377880084 | N36: =(I37-I36)/I36 -> 0.009377880084 | P36: =E36-L36 -> 0.006979632378 | Q36: =F36-M36 -> 0.0005154121331 | S36: =(1+Q36)^(365/(K37-K36))-1 -> 0.006288924907
A37: 2013-01-31 | B37: 231.208 | C37: -231.208 | D37: 2013-01-31 | H37: 2013-01-31 | I37: 231.09 | J37: -231.09 | K37: 2013-01-31
A38: 2013-01-01 | B38: 228.943 | C38: 228.943 | D38: 2013-01-01 | E38: =XIRR(C38:C39,D38:D39,) -> 0.07249900997 | F38: =IRR(C38:C39) -> 0.005962182727 | G38: =(B39-B38)/B38 -> 0.005962182727 | H38: 2013-01-01 | I38: 228.943 | J38: 228.943 | K38: 2013-01-01 | L38: =XIRR(J38:J39,K38:K39,) -> 0.06582879722 | M38: =IRR(J38:J39) -> 0.005429298996 | N38: =(I39-I38)/I38 -> 0.005429298996 | P38: =E38-L38 -> 0.006670212746 | Q38: =F38-M38 -> 0.0005328837309 | S38: =(1+Q38)^(365/(K39-K38))-1 -> 0.006292319035
A39: 2013-02-01 | B39: 230.308 | C39: -230.308 | D39: 2013-02-01 | H39: 2013-02-01 | I39: 230.186 | J39: -230.186 | K39: 2013-02-01
A40: 2013-01-01 | B40: 228.943 | C40: 228.943 | D40: 2013-01-01 | E40: =XIRR(C40:C41,D40:D41,) -> -0.01152136624 | F40: =IRR(C40:C41) -> -0.00107887116 | G40: =(B41-B40)/B40 -> -0.00107887116 | H40: 2013-01-01 | I40: 228.943 | J40: 228.943 | K40: 2013-01-01 | L40: =XIRR(J40:J41,K40:K41,) -> -0.01762905419 | M40: =IRR(J40:J41) -> -0.001655433885 | N40: =(I41-I40)/I40 -> -0.001655433885 | P40: =E40-L40 -> 0.00610768795 | Q40: =F40-M40 -> 0.0005765627252 | S40: =(1+Q40)^(365/(K41-K40))-1 -> 0.006206970681
A41: 2013-02-04 | B41: 228.696 | C41: -228.696 | D41: 2013-02-04 | H41: 2013-02-04 | I41: 228.564 | J41: -228.564 | K41: 2013-02-04
A42: 2013-01-01 | B42: 228.943 | C42: 228.943 | D42: 2013-01-01 | E42: =XIRR(C42:C43,D42:D43,) -> -0.06984446943 | F42: =IRR(C42:C43) -> -0.006918752702 | G42: =(B43-B42)/B42 -> -0.006918752703 | H42: 2013-01-01 | I42: 228.943 | J42: 228.943 | K42: 2013-01-01 | L42: =XIRR(J42:J43,K42:K43,) -> -0.07558809817 | M42: =IRR(J42:J43) -> -0.007508419126 | N42: =(I43-I42)/I42 -> -0.007508419126 | P42: =E42-L42 -> 0.00574362874 | Q42: =F42-M42 -> 0.0005896664235 | S42: =(1+Q42)^(365/(K43-K42))-1 -> 0.006166501154
A43: 2013-02-05 | B43: 227.359 | C43: -227.359 | D43: 2013-02-05 | H43: 2013-02-05 | I43: 227.224 | J43: -227.224 | K43: 2013-02-05
A44: 2013-01-01 | B44: 228.943 | C44: 228.943 | D44: 2013-01-01 | E44: =XIRR(C44:C45,D44:D45,) -> -0.06560004056 | F44: =IRR(C44:C45) -> -0.006669782435 | G44: =(B45-B44)/B44 -> -0.006669782435 | H44: 2013-01-01 | I44: 228.943 | J44: 228.943 | K44: 2013-01-01 | L44: =XIRR(J44:J45,K44:K45,) -> -0.07137440741 | M44: =IRR(J44:J45) -> -0.007276920456 | N44: =(I45-I44)/I44 -> -0.007276920456 | P44: =E44-L44 -> 0.005774366856 | Q44: =F44-M44 -> 0.0006071380212 | S44: =(1+Q44)^(365/(K45-K44))-1 -> 0.006172810768
A45: 2013-02-06 | B45: 227.416 | C45: -227.416 | D45: 2013-02-06 | H45: 2013-02-06 | I45: 227.277 | J45: -227.277 | K45: 2013-02-06
A46: 2013-01-01 | B46: 228.943 | C46: 228.943 | D46: 2013-01-01 | E46: =XIRR(C46:C47,D46:D47,) -> -0.1230066445 | F46: =IRR(C46:C47) -> -0.01321726369 | G46: =(B47-B46)/B46 -> -0.01321726369 | H46: 2013-01-01 | I46: 228.943 | J46: 228.943 | K46: 2013-01-01 | L46: =XIRR(J46:J47,K46:K47,) -> -0.128429367 | M46: =IRR(J46:J47) -> -0.0138375054 | N46: =(I47-I46)/I46 -> -0.01383750541 | P46: =E46-L46 -> 0.005422722548 | Q46: =F46-M46 -> 0.0006202417195 | S46: =(1+Q46)^(365/(K47-K46))-1 -> 0.006135449259
A47: 2013-02-07 | B47: 225.917 | C47: -225.917 | D47: 2013-02-07 | H47: 2013-02-07 | I47: 225.775 | J47: -225.775 | K47: 2013-02-07
A48: 2013-01-01 | B48: 228.943 | C48: 228.943 | D48: 2013-01-01 | E48: =XIRR(C48:C49,D48:D49,) -> -0.1794526033 | F48: =IRR(C48:C49) -> -0.02038061876 | G48: =(B49-B48)/B48 -> -0.02038061876 | H48: 2013-01-01 | I48: 228.943 | J48: 228.943 | K48: 2013-01-01 | L48: =XIRR(J48:J49,K48:K49,) -> -0.1844991125 | M48: =IRR(J48:J49) -> -0.02100959627 | N48: =(I49-I48)/I48 -> -0.02100959628 | P48: =E48-L48 -> 0.005046509206 | Q48: =F48-M48 -> 0.0006289775183 | S48: =(1+Q48)^(365/(K49-K48))-1 -> 0.006057870527
A49: 2013-02-08 | B49: 224.277 | C49: -224.277 | D49: 2013-02-08 | H49: 2013-02-08 | I49: 224.133 | J49: -224.133 | K49: 2013-02-08
A50: 2013-01-01 | B50: 228.943 | C50: 228.943 | D50: 2013-01-01 | E50: =XIRR(C50:C51,D50:D51,) -> -0.1657051589 | F50: =IRR(C50:C51) -> -0.02014475219 | G50: =(B51-B50)/B50 -> -0.02014475219 | H50: 2013-01-01 | I50: 228.943 | J50: 228.943 | K50: 2013-01-01 | L50: =XIRR(J50:J51,K50:K51,) -> -0.1707900606 | M50: =IRR(J50:J51) -> -0.0208174087 | N50: =(I51-I50)/I50 -> -0.0208174087 | P50: =E50-L50 -> 0.005084901676 | Q50: =F50-M50 -> 0.0006726565126 | S50: =(1+Q50)^(365/(K51-K50))-1 -> 0.006004223986
A51: 2013-02-11 | B51: 224.331 | C51: -224.331 | D51: 2013-02-11 | H51: 2013-02-11 | I51: 224.177 | J51: -224.177 | K51: 2013-02-11
A52: 2013-01-01 | B52: 228.943 | C52: 228.943 | D52: 2013-01-01 | E52: =XIRR(C52:C53,D52:D53,) -> -0.1345366362 | F52: =IRR(C52:C53) -> -0.01648882036 | G52: =(B53-B52)/B52 -> -0.01648882036 | H52: 2013-01-01 | I52: 228.943 | J52: 228.943 | K52: 2013-01-01 | L52: =XIRR(J52:J53,K52:K53,) -> -0.1398333218 | M52: =IRR(J52:J53) -> -0.01718331637 | N52: =(I53-I52)/I52 -> -0.01718331637 | P52: =E52-L52 -> 0.005296685547 | Q52: =F52-M52 -> 0.0006944960098 | S52: =(1+Q52)^(365/(K53-K52))-1 -> 0.006051643847
A53: 2013-02-12 | B53: 225.168 | C53: -225.168 | D53: 2013-02-12 | H53: 2013-02-12 | I53: 225.009 | J53: -225.009 | K53: 2013-02-12
A54: 2013-01-01 | B54: 228.943 | C54: 228.943 | D54: 2013-01-01 | E54: =XIRR(C54:C55,D54:D55,) -> -0.2066596977 | F54: =IRR(C54:C55) -> -0.02813800815 | G54: =(B55-B54)/B54 -> -0.02813800815 | H54: 2013-01-01 | I54: 228.943 | J54: 228.943 | K54: 2013-01-01 | L54: =XIRR(J54:J55,K54:K55,) -> -0.2115053497 | M54: =IRR(J54:J55) -> -0.02887181525 | N54: =(I55-I54)/I54 -> -0.02887181526 | P54: =E54-L54 -> 0.004845651984 | Q54: =F54-M54 -> 0.0007338071045 | S54: =(1+Q54)^(365/(K55-K54))-1 -> 0.005967543485
A55: 2013-02-15 | B55: 222.501 | C55: -222.501 | D55: 2013-02-15 | H55: 2013-02-15 | I55: 222.333 | J55: -222.333 | K55: 2013-02-15
A56: 2013-01-01 | B56: 228.943 | C56: 228.943 | D56: 2013-01-01 | E56: =XIRR(C56:C57,D56:D57,) -> -0.1812129237 | F56: =IRR(C56:C57) -> -0.02594969053 | G56: =(B57-B56)/B56 -> -0.02594969053 | H56: 2013-01-01 | I56: 228.943 | J56: 228.943 | K56: 2013-01-01 | L56: =XIRR(J56:J57,K56:K57,) -> -0.1861973666 | M56: =IRR(J56:J57) -> -0.02673154453 | N56: =(I57-I56)/I56 -> -0.02673154453 | P56: =E56-L56 -> 0.00498444289 | Q56: =F56-M56 -> 0.0007818539983 | S56: =(1+Q56)^(365/(K57-K56))-1 -> 0.005960719936
A57: 2013-02-18 | B57: 223.002 | C57: -223.002 | D57: 2013-02-18 | H57: 2013-02-18 | I57: 222.823 | J57: -222.823 | K57: 2013-02-18
A58: 2013-01-01 | B58: 228.943 | C58: 228.943 | D58: 2013-01-01 | E58: =XIRR(C58:C59,D58:D59,) -> -0.1315725606 | F58: =IRR(C58:C59) -> -0.01876012807 | G58: =(B59-B58)/B58 -> -0.01876012807 | H58: 2013-01-01 | I58: 228.943 | J58: 228.943 | K58: 2013-01-01 | L58: =XIRR(J58:J59,K58:K59,) -> -0.1368570019 | M58: =IRR(J58:J59) -> -0.01956382156 | N58: =(I59-I58)/I58 -> -0.01956382156 | P58: =E58-L58 -> 0.005284441262 | Q58: =F58-M58 -> 0.0008036934956 | S58: =(1+Q58)^(365/(K59-K58))-1 -> 0.006002233648
A59: 2013-02-19 | B59: 224.648 | C59: -224.648 | D59: 2013-02-19 | H59: 2013-02-19 | I59: 224.464 | J59: -224.464 | K59: 2013-02-19
A60: 2013-01-01 | B60: 228.943 | C60: 228.943 | D60: 2013-01-01 | E60: =XIRR(C60:C61,D60:D61,) -> -0.1486241948 | F60: =IRR(C60:C61) -> -0.02180018607 | G60: =(B61-B60)/B60 -> -0.02180018607 | H60: 2013-01-01 | I60: 228.943 | J60: 228.943 | K60: 2013-01-01 | L60: =XIRR(J60:J61,K60:K61,) -> -0.1538001273 | M60: =IRR(J60:J61) -> -0.02261698326 | N60: =(I61-I60)/I60 -> -0.02261698327 | P60: =E60-L60 -> 0.005175932497 | Q60: =F60-M60 -> 0.0008167971939 | S60: =(1+Q60)^(365/(K61-K60))-1 -> 0.005977982963
A61: 2013-02-20 | B61: 223.952 | C61: -223.952 | D61: 2013-02-20 | H61: 2013-02-20 | I61: 223.765 | J61: -223.765 | K61: 2013-02-20
A62: 2013-01-01 | B62: 228.943 | C62: 228.943 | D62: 2013-01-01 | E62: =XIRR(C62:C63,D62:D63,) -> -0.2453689627 | F62: =IRR(C62:C63) -> -0.0385729199 | G62: =(B63-B62)/B62 -> -0.0385729199 | H62: 2013-01-01 | I62: 228.943 | J62: 228.943 | K62: 2013-01-01 | L62: =XIRR(J62:J63,K62:K63,) -> -0.2499697156 | M62: =IRR(J62:J63) -> -0.03939408499 | N62: =(I63-I62)/I62 -> -0.03939408499 | P62: =E62-L62 -> 0.00460075289 | Q62: =F62-M62 -> 0.0008211650935 | S62: =(1+Q62)^(365/(K63-K62))-1 -> 0.005891843238
A63: 2013-02-21 | B63: 220.112 | C63: -220.112 | D63: 2013-02-21 | H63: 2013-02-21 | I63: 219.924 | J63: -219.924 | K63: 2013-02-21
A64: 2013-01-01 | B64: 228.943 | C64: 228.943 | D64: 2013-01-01 | E64: =XIRR(C64:C65,D64:D65,) -> -0.2399648212 | F64: =IRR(C64:C65) -> -0.03833705333 | G64: =(B65-B64)/B64 -> -0.03833705333 | H64: 2013-01-01 | I64: 228.943 | J64: 228.943 | K64: 2013-01-01 | L64: =XIRR(J64:J65,K64:K65,) -> -0.2445808895 | M64: =IRR(J64:J65) -> -0.03917132212 | N64: =(I65-I64)/I64 -> -0.03917132212 | P64: =E64-L64 -> 0.004616068304 | Q64: =F64-M64 -> 0.0008342687918 | S64: =(1+Q64)^(365/(K65-K64))-1 -> 0.005870648935
A65: 2013-02-22 | B65: 220.166 | C65: -220.166 | D65: 2013-02-22 | H65: 2013-02-22 | I65: 219.975 | J65: -219.975 | K65: 2013-02-22
A66: 2013-01-01 | B66: 228.943 | C66: 228.943 | D66: 2013-01-01 | E66: =XIRR(C66:C67,D66:D67,) -> -0.3065046467 | F66: =IRR(C66:C67) -> -0.05460747872 | G66: =(B67-B66)/B66 -> -0.05460747872 | H66: 2013-01-01 | I66: 228.943 | J66: 228.943 | K66: 2013-01-01 | L66: =XIRR(J66:J67,K66:K67,) -> -0.3107123218 | M66: =IRR(J66:J67) -> -0.0554897944 | N66: =(I67-I66)/I66 -> -0.0554897944 | P66: =E66-L66 -> 0.004207675159 | Q66: =F66-M66 -> 0.0008823156856 | S66: =(1+Q66)^(365/(K67-K66))-1 -> 0.005764825089
A67: 2013-02-26 | B67: 216.441 | C67: -216.441 | D67: 2013-02-26 | H67: 2013-02-26 | I67: 216.239 | J67: -216.239 | K67: 2013-02-26
A68: 2013-01-01 | B68: 228.943 | C68: 228.943 | D68: 2013-01-01 | E68: =XIRR(C68:C69,D68:D69,) -> -0.3670005567 | F68: =IRR(C68:C69) -> -0.07008731431 | G68: =(B69-B68)/B68 -> -0.07008731431 | H68: 2013-01-01 | I68: 228.943 | J68: 228.943 | K68: 2013-01-01 | L68: =XIRR(J68:J69,K68:K69,) -> -0.370826567 | M68: =IRR(J68:J69) -> -0.07098273369 | N68: =(I69-I68)/I68 -> -0.07098273369 | P68: =E68-L68 -> 0.003826010227 | Q68: =F68-M68 -> 0.0008954193839 | S68: =(1+Q68)^(365/(K69-K68))-1 -> 0.005648337532
A69: 2013-02-28 | B69: 212.897 | C69: -212.897 | D69: 2013-02-28 | H69: 2013-02-28 | I69: 212.692 | J69: -212.692 | K69: 2013-02-28
A70: 2013-01-01 | B70: 228.943 | C70: 228.943 | D70: 2013-01-01 | E70: =XIRR(C70:C71,D70:D71,) -> -0.331484998 | F70: =IRR(C70:C71) -> -0.06302005303 | G70: =(B71-B70)/B70 -> -0.06302005303 | H70: 2013-01-01 | I70: 228.943 | J70: 228.943 | K70: 2013-01-01 | L70: =XIRR(J70:J71,K70:K71,) -> -0.3355426036 | M70: =IRR(J70:J71) -> -0.06394167981 | N70: =(I71-I70)/I70 -> -0.06394167981 | P70: =E70-L70 -> 0.004057605565 | Q70: =F70-M70 -> 0.0009216267805 | S70: =(1+Q70)^(365/(K71-K70))-1 -> 0.005715233635
A71: 2013-03-01 | B71: 214.515 | C71: -214.515 | D71: 2013-03-01 | H71: 2013-03-01 | I71: 214.304 | J71: -214.304 | K71: 2013-03-01
A72: 2013-01-01 | B72: 228.943 | C72: 228.943 | D72: 2013-01-01 | E72: =XIRR(C72:C73,D72:D73,) -> -0.334776216 | F72: =IRR(C72:C73) -> -0.06689874772 | G72: =(B73-B72)/B72 -> -0.06689874772 | H72: 2013-01-01 | I72: 228.943 | J72: 228.943 | K72: 2013-01-01 | L72: =XIRR(J72:J73,K72:K73,) -> -0.3388173796 | M72: =IRR(J72:J73) -> -0.0678640535 | N72: =(I73-I72)/I72 -> -0.0678640535 | P72: =E72-L72 -> 0.004041163623 | Q72: =F72-M72 -> 0.0009653057748 | S72: =(1+Q72)^(365/(K73-K72))-1 -> 0.005696269831
A73: 2013-03-04 | B73: 213.627 | C73: -213.627 | D73: 2013-03-04 | H73: 2013-03-04 | I73: 213.406 | J73: -213.406 | K73: 2013-03-04
A74: 2013-01-01 | B74: 228.943 | C74: 228.943 | D74: 2013-01-01 | E74: =XIRR(C74:C75,D74:D75,) -> -0.2160962857 | F74: =IRR(C74:C75) -> -0.04179206178 | G74: =(B75-B74)/B74 -> -0.04179206178 | H74: 2013-01-01 | I74: 228.943 | J74: 228.943 | K74: 2013-01-01 | L74: =XIRR(J74:J75,K74:K75,) -> -0.220832812 | M74: =IRR(J74:J75) -> -0.04280978235 | N74: =(I75-I74)/I74 -> -0.04280978235 | P74: =E74-L74 -> 0.00473652631 | Q74: =F74-M74 -> 0.001017720568 | S74: =(1+Q74)^(365/(K75-K74))-1 -> 0.005818095853
A75: 2013-03-06 | B75: 219.375 | C75: -219.375 | D75: 2013-03-06 | H75: 2013-03-06 | I75: 219.142 | J75: -219.142 | K75: 2013-03-06
A76: 2013-01-01 | B76: 228.943 | C76: 228.943 | D76: 2013-01-01 | E76: =XIRR(C76:C77,D76:D77,) -> -0.1887194879 | F76: =IRR(C76:C77) -> -0.03655931826 | G76: =(B77-B76)/B76 -> -0.03655931826 | H76: 2013-01-01 | I76: 228.943 | J76: 228.943 | K76: 2013-01-01 | L76: =XIRR(J76:J77,K76:K77,) -> -0.1936228476 | M76: =IRR(J76:J77) -> -0.03759887832 | N76: =(I77-I76)/I76 -> -0.03759887832 | P76: =E76-L76 -> 0.004903359711 | Q76: =F76-M76 -> 0.001039560065 | S76: =(1+Q76)^(365/(K77-K76))-1 -> 0.005851551298
A77: 2013-03-07 | B77: 220.573 | C77: -220.573 | D77: 2013-03-07 | H77: 2013-03-07 | I77: 220.335 | J77: -220.335 | K77: 2013-03-07
A78: 2013-01-01 | B78: 228.943 | C78: 228.943 | D78: 2013-01-01 | E78: =XIRR(C78:C79,D78:D79,) -> -0.1329661559 | F78: =IRR(C78:C79) -> -0.02546922159 | G78: =(B79-B78)/B78 -> -0.0254692216 | H78: 2013-01-01 | I78: 228.943 | J78: 228.943 | K78: 2013-01-01 | L78: =XIRR(J78:J79,K78:K79,) -> -0.1381970536 | M78: =IRR(J78:J79) -> -0.02653498906 | N78: =(I79-I78)/I78 -> -0.02653498906 | P78: =E78-L78 -> 0.005230897665 | Q78: =F78-M78 -> 0.001065767461 | S78: =(1+Q78)^(365/(K79-K78))-1 -> 0.005908263771
A79: 2013-03-08 | B79: 223.112 | C79: -223.112 | D79: 2013-03-08 | H79: 2013-03-08 | I79: 222.868 | J79: -222.868 | K79: 2013-03-08
A80: 2013-01-01 | B80: 228.943 | C80: 228.943 | D80: 2013-01-01 | E80: =XIRR(C80:C81,D80:D81,) -> -0.1316999253 | F80: =IRR(C80:C81) -> -0.02634280148 | G80: =(B81-B80)/B80 -> -0.02634280148 | H80: 2013-01-01 | I80: 228.943 | J80: 228.943 | K80: 2013-01-01 | L80: =XIRR(J80:J81,K80:K81,) -> -0.1369414177 | M80: =IRR(J80:J81) -> -0.02745661584 | N80: =(I81-I80)/I80 -> -0.02745661584 | P80: =E80-L80 -> 0.005241492391 | Q80: =F80-M80 -> 0.001113814355 | S80: =(1+Q80)^(365/(K81-K80))-1 -> 0.00590600981
A81: 2013-03-11 | B81: 222.912 | C81: -222.912 | D81: 2013-03-11 | H81: 2013-03-11 | I81: 222.657 | J81: -222.657 | K81: 2013-03-11
A82: 2013-01-01 | B82: 228.943 | C82: 228.943 | D82: 2013-01-01 | E82: =XIRR(C82:C83,D82:D83,) -> -0.154729848 | F82: =IRR(C82:C83) -> -0.03172405359 | G82: =(B83-B82)/B82 -> -0.03172405359 | H82: 2013-01-01 | I82: 228.943 | J82: 228.943 | K82: 2013-01-01 | L82: =XIRR(J82:J83,K82:K83,) -> -0.1598468859 | M82: =IRR(J82:J83) -> -0.03285097164 | N82: =(I83-I82)/I82 -> -0.03285097164 | P82: =E82-L82 -> 0.005117037892 | Q82: =F82-M82 -> 0.001126918054 | S82: =(1+Q82)^(365/(K83-K82))-1 -> 0.005890042756
A83: 2013-03-12 | B83: 221.68 | C83: -221.68 | D83: 2013-03-12 | H83: 2013-03-12 | I83: 221.422 | J83: -221.422 | K83: 2013-03-12
A84: 2013-01-01 | B84: 228.943 | C84: 228.943 | D84: 2013-01-01 | E84: =XIRR(C84:C85,D84:D85,) -> -0.2133436956 | F84: =IRR(C84:C85) -> -0.04560523799 | G84: =(B85-B84)/B84 -> -0.04560523799 | H84: 2013-01-01 | I84: 228.943 | J84: 228.943 | K84: 2013-01-01 | L84: =XIRR(J84:J85,K84:K85,) -> -0.2181071512 | M84: =IRR(J84:J85) -> -0.04673215604 | N84: =(I85-I84)/I84 -> -0.04673215604 | P84: =E84-L84 -> 0.004763455689 | Q84: =F84-M84 -> 0.001126918054 | S84: =(1+Q84)^(365/(K85-K84))-1 -> 0.005806844013
A85: 2013-03-13 | B85: 218.502 | C85: -218.502 | D85: 2013-03-13 | H85: 2013-03-13 | I85: 218.244 | J85: -218.244 | K85: 2013-03-13
A86: 2013-01-01 | B86: 228.943 | C86: 228.943 | D86: 2013-01-01 | E86: =XIRR(C86:C87,D86:D87,) -> -0.1558689419 | F86: =IRR(C86:C87) -> -0.03287281114 | G86: =(B87-B86)/B86 -> -0.03287281114 | H86: 2013-01-01 | I86: 228.943 | J86: 228.943 | K86: 2013-01-01 | L86: =XIRR(J86:J87,K86:K87,) -> -0.1609780807 | M86: =IRR(J86:J87) -> -0.03403030449 | N86: =(I87-I86)/I86 -> -0.03403030449 | P86: =E86-L86 -> 0.005109138787 | Q86: =F86-M86 -> 0.00115749335 | S86: =(1+Q86)^(365/(K87-K86))-1 -> 0.005881684432
A87: 2013-03-14 | B87: 221.417 | C87: -221.417 | D87: 2013-03-14 | H87: 2013-03-14 | I87: 221.152 | J87: -221.152 | K87: 2013-03-14
A88: 2013-01-01 | B88: 228.943 | C88: 228.943 | D88: 2013-01-01 | E88: =XIRR(C88:C89,D88:D89,) -> -0.1814184211 | F88: =IRR(C88:C89) -> -0.03924557641 | G88: =(B89-B88)/B88 -> -0.03924557641 | H88: 2013-01-01 | I88: 228.943 | J88: 228.943 | K88: 2013-01-01 | L88: =XIRR(J88:J89,K88:K89,) -> -0.1863746338 | M88: =IRR(J88:J89) -> -0.04041180556 | N88: =(I89-I88)/I88 -> -0.04041180556 | P88: =E88-L88 -> 0.00495621264 | Q88: =F88-M88 -> 0.001166229149 | S88: =(1+Q88)^(365/(K89-K88))-1 -> 0.005844762519
A89: 2013-03-15 | B89: 219.958 | C89: -219.958 | D89: 2013-03-15 | H89: 2013-03-15 | I89: 219.691 | J89: -219.691 | K89: 2013-03-15
A90: 2013-01-01 | B90: 228.943 | C90: 228.943 | D90: 2013-01-01 | E90: =XIRR(C90:C91,D90:D91,) -> -0.2025636293 | F90: =IRR(C90:C91) -> -0.04603766003 | G90: =(B91-B90)/B90 -> -0.04603766003 | H90: 2013-01-01 | I90: 228.943 | J90: 228.943 | K90: 2013-01-01 | L90: =XIRR(J90:J91,K90:K91,) -> -0.2073743455 | M90: =IRR(J90:J91) -> -0.04723883237 | N90: =(I91-I90)/I90 -> -0.04723883237 | P90: =E90-L90 -> 0.004810716212 | Q90: =F90-M90 -> 0.001201172344 | S90: =(1+Q90)^(365/(K91-K90))-1 -> 0.005781977829
A91: 2013-03-18 | B91: 218.403 | C91: -218.403 | D91: 2013-03-18 | H91: 2013-03-18 | I91: 218.128 | J91: -218.128 | K91: 2013-03-18
A92: 2013-01-01 | B92: 228.943 | C92: 228.943 | D92: 2013-01-01 | E92: =XIRR(C92:C93,D92:D93,) -> -0.2644239925 | F92: =IRR(C92:C93) -> -0.06273177166 | G92: =(B93-B92)/B92 -> -0.06273177166 | H92: 2013-01-01 | I92: 228.943 | J92: 228.943 | K92: 2013-01-01 | L92: =XIRR(J92:J93,K92:K93,) -> -0.2688657172 | M92: =IRR(J92:J93) -> -0.06392857611 | N92: =(I93-I92)/I92 -> -0.06392857611 | P92: =E92-L92 -> 0.004441724718 | Q92: =F92-M92 -> 0.001196804445 | S92: =(1+Q92)^(365/(K93-K92))-1 -> 0.005685875375
A93: 2013-03-19 | B93: 214.581 | C93: -214.581 | D93: 2013-03-19 | H93: 2013-03-19 | I93: 214.307 | J93: -214.307 | K93: 2013-03-19
A94: 2013-01-01 | B94: 228.943 | C94: 228.943 | D94: 2013-01-01 | E94: =XIRR(C94:C95,D94:D95,) -> -0.3149008192 | F94: =IRR(C94:C95) -> -0.07763941243 | G94: =(B95-B94)/B94 -> -0.07763941243 | H94: 2013-01-01 | I94: 228.943 | J94: 228.943 | K94: 2013-01-01 | L94: =XIRR(J94:J95,K94:K95,) -> -0.3190356053 | M94: =IRR(J94:J95) -> -0.07883184898 | N94: =(I95-I94)/I94 -> -0.07883184898 | P94: =E94-L94 -> 0.004134786129 | Q94: =F94-M94 -> 0.001192436545 | S94: =(1+Q94)^(365/(K95-K94))-1 -> 0.00559224583
A95: 2013-03-20 | B95: 211.168 | C95: -211.168 | D95: 2013-03-20 | H95: 2013-03-20 | I95: 210.895 | J95: -210.895 | K95: 2013-03-20
A96: 2013-01-01 | B96: 228.943 | C96: 228.943 | D96: 2013-01-01 | E96: =XIRR(C96:C97,D96:D97,) -> -0.3369497709 | F96: =IRR(C96:C97) -> -0.08509541676 | G96: =(B97-B96)/B96 -> -0.08509541676 | H96: 2013-01-01 | I96: 228.943 | J96: 228.943 | K96: 2013-01-01 | L96: =XIRR(J96:J97,K96:K97,) -> -0.3409476571 | M96: =IRR(J96:J97) -> -0.08629222121 | N96: =(I97-I96)/I96 -> -0.08629222121 | P96: =E96-L96 -> 0.003997886181 | Q96: =F96-M96 -> 0.001196804445 | S96: =(1+Q96)^(365/(K97-K96))-1 -> 0.005541531066
A97: 2013-03-21 | B97: 209.461 | C97: -209.461 | D97: 2013-03-21 | H97: 2013-03-21 | I97: 209.187 | J97: -209.187 | K97: 2013-03-21
A98: 2013-01-01 | B98: 228.943 | C98: 228.943 | D98: 2013-01-01 | E98: =XIRR(C98:C99,D98:D99,) -> -0.3422587208 | F98: =IRR(C98:C99) -> -0.08773362802 | G98: =(B99-B98)/B98 -> -0.08773362802 | H98: 2013-01-01 | I98: 228.943 | J98: 228.943 | K98: 2013-01-01 | L98: =XIRR(J98:J99,K98:K99,) -> -0.3462293692 | M98: =IRR(J98:J99) -> -0.08894353616 | N98: =(I99-I98)/I98 -> -0.08894353616 | P98: =E98-L98 -> 0.003970648348 | Q98: =F98-M98 -> 0.001209908143 | S98: =(1+Q98)^(365/(K99-K98))-1 -> 0.005532115069
A99: 2013-03-22 | B99: 208.857 | C99: -208.857 | D99: 2013-03-22 | H99: 2013-03-22 | I99: 208.58 | J99: -208.58 | K99: 2013-03-22
A100: 2013-01-01 | B100: 228.943 | C100: 228.943 | D100: 2013-01-01 | E100: =XIRR(C100:C101,D100:D101,) -> -0.345366811 | F100: =IRR(C100:C101) -> -0.09184818929 | G100: =(B101-B100)/B100 -> -0.09184818929 | H100: 2013-01-01 | I100: 228.943 | J100: 228.943 | K100: 2013-01-01 | L100: =XIRR(J100:J101,K100:K101,) -> -0.3493175574 | M100: =IRR(J100:J101) -> -0.09309740853 | N100: =(I101-I100)/I100 -> -0.09309740853 | P100: =E100-L100 -> 0.003950746357 | Q100: =F100-M100 -> 0.001249219238 | S100: =(1+Q100)^(365/(K101-K100))-1 -> 0.005505224368
A101: 2013-03-25 | B101: 207.915 | C101: -207.915 | D101: 2013-03-25 | H101: 2013-03-25 | I101: 207.629 | J101: -207.629 | K101: 2013-03-25
A102: 2013-01-01 | B102: 228.943 | C102: 228.943 | D102: 2013-01-01 | E102: =XIRR(C102:C103,D102:D103,) -> -0.3413825907 | F102: =IRR(C102:C103) -> -0.09163416222 | G102: =(B103-B102)/B102 -> -0.09163416222 | H102: 2013-01-01 | I102: 228.943 | J102: 228.943 | K102: 2013-01-01 | L102: =XIRR(J102:J103,K102:K103,) -> -0.3453503691 | M102: =IRR(J102:J103) -> -0.09289648515 | N102: =(I103-I102)/I102 -> -0.09289648515 | P102: =E102-L102 -> 0.003967778385 | Q102: =F102-M102 -> 0.001262322936 | S102: =(1+Q102)^(365/(K103-K102))-1 -> 0.005496686291
A103: 2013-03-26 | B103: 207.964 | C103: -207.964 | D103: 2013-03-26 | H103: 2013-03-26 | I103: 207.675 | J103: -207.675 | K103: 2013-03-26
A104: 2013-01-01 | B104: 228.943 | C104: 228.943 | D104: 2013-01-01 | E104: =XIRR(C104:C105,D104:D105,) -> -0.2958586775 | F104: =IRR(C104:C105) -> -0.07932542161 | G104: =(B105-B104)/B104 -> -0.07932542161 | H104: 2013-01-01 | I104: 228.943 | J104: 228.943 | K104: 2013-01-01 | L104: =XIRR(J104:J105,K104:K105,) -> -0.3000599824 | M104: =IRR(J104:J105) -> -0.08062268774 | N104: =(I105-I104)/I104 -> -0.08062268774 | P104: =E104-L104 -> 0.004201304913 | Q104: =F104-M104 -> 0.001297266132 | S104: =(1+Q104)^(365/(K105-K104))-1 -> 0.005517435924
A105: 2013-03-28 | B105: 210.782 | C105: -210.782 | D105: 2013-03-28 | H105: 2013-03-28 | I105: 210.485 | J105: -210.485 | K105: 2013-03-28
A106: 2013-01-01 | B106: 228.943 | C106: 228.943 | D106: 2013-01-01 | E106: =XIRR(C106:C107,D106:D107,) -> -0.2698724307 | F106: =IRR(C106:C107) -> -0.07462556182 | G106: =(B107-B106)/B106 -> -0.07462556182 | H106: 2013-01-01 | I106: 228.943 | J106: 228.943 | K106: 2013-01-01 | L106: =XIRR(J106:J107,K106:K107,) -> -0.2742233627 | M106: =IRR(J106:J107) -> -0.07598834644 | N106: =(I107-I106)/I106 -> -0.07598834644 | P106: =E106-L106 -> 0.004350931942 | Q106: =F106-M106 -> 0.001362784623 | S106: =(1+Q106)^(365/(K107-K106))-1 -> 0.005538366575
A107: 2013-04-01 | B107: 211.858 | C107: -211.858 | D107: 2013-04-01 | H107: 2013-04-01 | I107: 211.546 | J107: -211.546 | K107: 2013-04-01
A108: 2013-01-01 | B108: 228.943 | C108: 228.943 | D108: 2013-01-01 | E108: =XIRR(C108:C109,D108:D109,) -> -0.2296147265 | F108: =IRR(C108:C109) -> -0.06296763823 | G108: =(B109-B108)/B108 -> -0.06296763823 | H108: 2013-01-01 | I108: 228.943 | J108: 228.943 | K108: 2013-01-01 | L108: =XIRR(J108:J109,K108:K109,) -> -0.2342136018 | M108: =IRR(J108:J109) -> -0.06436536605 | N108: =(I109-I108)/I108 -> -0.06436536605 | P108: =E108-L108 -> 0.004598875344 | Q108: =F108-M108 -> 0.001397727819 | S108: =(1+Q108)^(365/(K109-K108))-1 -> 0.005618079095
A109: 2013-04-02 | B109: 214.527 | C109: -214.527 | D109: 2013-04-02 | H109: 2013-04-02 | I109: 214.207 | J109: -214.207 | K109: 2013-04-02
A110: 2013-01-01 | B110: 228.943 | C110: 228.943 | D110: 2013-01-01 | E110: =XIRR(C110:C111,D110:D111,) -> -0.270025558 | F110: =IRR(C110:C111) -> -0.07626789201 | G110: =(B111-B110)/B110 -> -0.07626789201 | H110: 2013-01-01 | I110: 228.943 | J110: 228.943 | K110: 2013-01-01 | L110: =XIRR(J110:J111,K110:K111,) -> -0.2743842684 | M110: =IRR(J110:J111) -> -0.07766125193 | N110: =(I111-I110)/I110 -> -0.07766125193 | P110: =E110-L110 -> 0.004358710349 | Q110: =F110-M110 -> 0.001393359919 | S110: =(1+Q110)^(365/(K111-K110))-1 -> 0.005539442638
A111: 2013-04-03 | B111: 211.482 | C111: -211.482 | D111: 2013-04-03 | H111: 2013-04-03 | I111: 211.163 | J111: -211.163 | K111: 2013-04-03
A112: 2013-01-01 | B112: 228.943 | C112: 228.943 | D112: 2013-01-01 | E112: =XIRR(C112:C113,D112:D113,) -> -0.3099185891 | F112: =IRR(C112:C113) -> -0.09111001428 | G112: =(B113-B112)/B112 -> -0.09111001428 | H112: 2013-01-01 | I112: 228.943 | J112: 228.943 | K112: 2013-01-01 | L112: =XIRR(J112:J113,K112:K113,) -> -0.3140558563 | M112: =IRR(J112:J113) -> -0.0925164779 | N112: =(I113-I112)/I112 -> -0.0925164779 | P112: =E112-L112 -> 0.004137267172 | Q112: =F112-M112 -> 0.001406463618 | S112: =(1+Q112)^(365/(K113-K112))-1 -> 0.005472350268
A113: 2013-04-05 | B113: 208.084 | C113: -208.084 | D113: 2013-04-05 | H113: 2013-04-05 | I113: 207.762 | J113: -207.762 | K113: 2013-04-05
A114: 2013-01-01 | B114: 228.943 | C114: 228.943 | D114: 2013-01-01 | E114: =XIRR(C114:C115,D114:D115,) -> -0.3310806952 | F114: =IRR(C114:C115) -> -0.1023355158 | G114: =(B115-B114)/B114 -> -0.1023355158 | H114: 2013-01-01 | I114: 228.943 | J114: 228.943 | K114: 2013-01-01 | L114: =XIRR(J114:J115,K114:K115,) -> -0.3350845091 | M114: =IRR(J114:J115) -> -0.1037812905 | N114: =(I115-I114)/I114 -> -0.1037812905 | P114: =E114-L114 -> 0.004003813863 | Q114: =F114-M114 -> 0.001445774712 | S114: =(1+Q114)^(365/(K115-K114))-1 -> 0.005395387287
A115: 2013-04-09 | B115: 205.514 | C115: -205.514 | D115: 2013-04-09 | H115: 2013-04-09 | I115: 205.183 | J115: -205.183 | K115: 2013-04-09
A116: 2013-01-01 | B116: 228.943 | C116: 228.943 | D116: 2013-01-01 | E116: =XIRR(C116:C117,D116:D117,) -> -0.2984865047 | F116: =IRR(C116:C117) -> -0.09167784121 | G116: =(B117-B116)/B116 -> -0.09167784121 | H116: 2013-01-01 | I116: 228.943 | J116: 228.943 | K116: 2013-01-01 | L116: =XIRR(J116:J117,K116:K117,) -> -0.3026811443 | M116: =IRR(J116:J117) -> -0.09315419122 | N116: =(I117-I116)/I116 -> -0.09315419122 | P116: =E116-L116 -> 0.004194639623 | Q116: =F116-M116 -> 0.001476350009 | S116: =(1+Q116)^(365/(K117-K116))-1 -> 0.00545391333
A117: 2013-04-10 | B117: 207.954 | C117: -207.954 | D117: 2013-04-10 | H117: 2013-04-10 | I117: 207.616 | J117: -207.616 | K117: 2013-04-10
A118: 2013-01-01 | B118: 228.943 | C118: 228.943 | D118: 2013-01-01 | E118: =XIRR(C118:C119,D118:D119,) -> -0.2738381036 | F118: =IRR(C118:C119) -> -0.08393355551 | G118: =(B119-B118)/B118 -> -0.08393355551 | H118: 2013-01-01 | I118: 228.943 | J118: 228.943 | K118: 2013-01-01 | L118: =XIRR(J118:J119,K118:K119,) -> -0.278176067 | M118: =IRR(J118:J119) -> -0.08543611292 | N118: =(I119-I118)/I118 -> -0.08543611292 | P118: =E118-L118 -> 0.004337963462 | Q118: =F118-M118 -> 0.001502557405 | S118: =(1+Q118)^(365/(K119-K118))-1 -> 0.005495262253
A119: 2013-04-11 | B119: 209.727 | C119: -209.727 | D119: 2013-04-11 | H119: 2013-04-11 | I119: 209.383 | J119: -209.383 | K119: 2013-04-11
A120: 2013-01-01 | B120: 228.943 | C120: 228.943 | D120: 2013-01-01 | E120: =XIRR(C120:C121,D120:D121,) -> -0.2942808278 | F120: =IRR(C120:C121) -> -0.09193991518 | G120: =(B121-B120)/B120 -> -0.09193991518 | H120: 2013-01-01 | I120: 228.943 | J120: 228.943 | K120: 2013-01-01 | L120: =XIRR(J120:J121,K120:K121,) -> -0.2984673403 | M120: =IRR(J120:J121) -> -0.09343373678 | N120: =(I121-I120)/I120 -> -0.09343373678 | P120: =E120-L120 -> 0.00418651253 | Q120: =F120-M120 -> 0.001493821606 | S120: =(1+Q120)^(365/(K121-K120))-1 -> 0.005409012229
A121: 2013-04-12 | B121: 207.894 | C121: -207.894 | D121: 2013-04-12 | H121: 2013-04-12 | I121: 207.552 | J121: -207.552 | K121: 2013-04-12
A122: 2013-01-01 | B122: 228.943 | C122: 228.943 | D122: 2013-01-01 | E122: =XIRR(C122:C123,D122:D123,) -> -0.265608456 | F122: =IRR(C122:C123) -> -0.08420436528 | G122: =(B123-B122)/B122 -> -0.08420436528 | H122: 2013-01-01 | I122: 228.943 | J122: 228.943 | K122: 2013-01-01 | L122: =XIRR(J122:J123,K122:K123,) -> -0.2699632369 | M122: =IRR(J122:J123) -> -0.08575496958 | N122: =(I123-I122)/I122 -> -0.08575496958 | P122: =E122-L122 -> 0.004354780912 | Q122: =F122-M122 -> 0.001550604299 | S122: =(1+Q122)^(365/(K123-K122))-1 -> 0.005452621569
A123: 2013-04-15 | B123: 209.665 | C123: -209.665 | D123: 2013-04-15 | H123: 2013-04-15 | I123: 209.31 | J123: -209.31 | K123: 2013-04-15
A124: 2013-01-01 | B124: 228.943 | C124: 228.943 | D124: 2013-01-01 | E124: =XIRR(C124:C125,D124:D125,) -> -0.2153390311 | F124: =IRR(C124:C125) -> -0.06738358456 | G124: =(B125-B124)/B124 -> -0.06738358456 | H124: 2013-01-01 | I124: 228.943 | J124: 228.943 | K124: 2013-01-01 | L124: =XIRR(J124:J125,K124:K125,) -> -0.2199919797 | M124: =IRR(J124:J125) -> -0.06897786785 | N124: =(I125-I124)/I124 -> -0.06897786785 | P124: =E124-L124 -> 0.004652948678 | Q124: =F124-M124 -> 0.001594283293 | S124: =(1+Q124)^(365/(K125-K124))-1 -> 0.00555298026
A125: 2013-04-16 | B125: 213.516 | C125: -213.516 | D125: 2013-04-16 | H125: 2013-04-16 | I125: 213.151 | J125: -213.151 | K125: 2013-04-16
A126: 2013-01-01 | B126: 228.943 | C126: 228.943 | D126: 2013-01-01 | E126: =XIRR(C126:C127,D126:D127,) -> -0.2046918549 | F126: =IRR(C126:C127) -> -0.06434789445 | G126: =(B127-B126)/B126 -> -0.06434789445 | H126: 2013-01-01 | I126: 228.943 | J126: 228.943 | K126: 2013-01-01 | L126: =XIRR(J126:J127,K126:K127,) -> -0.2094248407 | M126: =IRR(J126:J127) -> -0.06596838514 | N126: =(I127-I126)/I126 -> -0.06596838514 | P126: =E126-L126 -> 0.004732985795 | Q126: =F126-M126 -> 0.00162049069 | S126: =(1+Q126)^(365/(K127-K126))-1 -> 0.005591047131
A127: 2013-04-17 | B127: 214.211 | C127: -214.211 | D127: 2013-04-17 | H127: 2013-04-17 | I127: 213.84 | J127: -213.84 | K127: 2013-04-17
A128: 2013-01-01 | B128: 228.943 | C128: 228.943 | D128: 2013-01-01 | E128: =XIRR(C128:C129,D128:D129,) -> -0.1601359878 | F128: =IRR(C128:C129) -> -0.04987267573 | G128: =(B129-B128)/B128 -> -0.04987267573 | H128: 2013-01-01 | I128: 228.943 | J128: 228.943 | K128: 2013-01-01 | L128: =XIRR(J128:J129,K128:K129,) -> -0.1651303213 | M128: =IRR(J128:J129) -> -0.05153247752 | N128: =(I129-I128)/I128 -> -0.05153247752 | P128: =E128-L128 -> 0.004994333535 | Q128: =F128-M128 -> 0.001659801785 | S128: =(1+Q128)^(365/(K129-K128))-1 -> 0.005673279452
A129: 2013-04-18 | B129: 217.525 | C129: -217.525 | D129: 2013-04-18 | H129: 2013-04-18 | I129: 217.145 | J129: -217.145 | K129: 2013-04-18
A130: 2013-01-01 | B130: 228.943 | C130: 228.943 | D130: 2013-01-01 | E130: =XIRR(C130:C131,D130:D131,) -> -0.1268085483 | F130: =IRR(C130:C131) -> -0.04039870186 | G130: =(B131-B130)/B130 -> -0.04039870186 | H130: 2013-01-01 | I130: 228.943 | J130: 228.943 | K130: 2013-01-01 | L130: =XIRR(J130:J131,K130:K131,) -> -0.131999461 | M130: =IRR(J130:J131) -> -0.04213712583 | N130: =(I131-I130)/I130 -> -0.04213712583 | P130: =E130-L130 -> 0.005190912634 | Q130: =F130-M130 -> 0.001738423975 | S130: =(1+Q130)^(365/(K131-K130))-1 -> 0.005727817726
A131: 2013-04-22 | B131: 219.694 | C131: -219.694 | D131: 2013-04-22 | H131: 2013-04-22 | I131: 219.296 | J131: -219.296 | K131: 2013-04-22
A132: 2013-01-01 | B132: 228.943 | C132: 228.943 | D132: 2013-01-01 | E132: =XIRR(C132:C133,D132:D133,) -> -0.1360701021 | F132: =IRR(C132:C133) -> -0.04388865351 | G132: =(B133-B132)/B132 -> -0.04388865351 | H132: 2013-01-01 | I132: 228.943 | J132: 228.943 | K132: 2013-01-01 | L132: =XIRR(J132:J133,K132:K133,) -> -0.1412172075 | M132: =IRR(J132:J133) -> -0.04564018118 | N132: =(I133-I132)/I132 -> -0.04564018118 | P132: =E132-L132 -> 0.005147105455 | Q132: =F132-M132 -> 0.001751527673 | S132: =(1+Q132)^(365/(K133-K132))-1 -> 0.00571940415
A133: 2013-04-23 | B133: 218.895 | C133: -218.895 | D133: 2013-04-23 | H133: 2013-04-23 | I133: 218.494 | J133: -218.494 | K133: 2013-04-23
A134: 2013-01-01 | B134: 228.943 | C134: 228.943 | D134: 2013-01-01 | E134: =XIRR(C134:C135,D134:D135,) -> -0.1301743988 | F134: =IRR(C134:C135) -> -0.04298886622 | G134: =(B135-B134)/B134 -> -0.04298886622 | H134: 2013-01-01 | I134: 228.943 | J134: 228.943 | K134: 2013-01-01 | L134: =XIRR(J134:J135,K134:K135,) -> -0.1353551392 | M134: =IRR(J134:J135) -> -0.04478844079 | N134: =(I135-I134)/I134 -> -0.04478844079 | P134: =E134-L134 -> 0.005180740356 | Q134: =F134-M134 -> 0.001799574567 | S134: =(1+Q134)^(365/(K135-K134))-1 -> 0.005722873468
A135: 2013-04-26 | B135: 219.101 | C135: -219.101 | D135: 2013-04-26 | H135: 2013-04-26 | I135: 218.689 | J135: -218.689 | K135: 2013-04-26
A136: 2013-01-01 | B136: 228.943 | C136: 228.943 | D136: 2013-01-01 | E136: =XIRR(C136:C137,D136:D137,) -> -0.1103653599 | F136: =IRR(C136:C137) -> -0.03710093779 | G136: =(B137-B136)/B136 -> -0.03710093779 | H136: 2013-01-01 | I136: 228.943 | J136: 228.943 | K136: 2013-01-01 | L136: =XIRR(J136:J137,K136:K137,) -> -0.1156474475 | M136: =IRR(J136:J137) -> -0.03895292715 | N136: =(I137-I136)/I136 -> -0.03895292715 | P136: =E136-L136 -> 0.005282087624 | Q136: =F136-M136 -> 0.00185198936 | S136: =(1+Q136)^(365/(K137-K136))-1 -> 0.005739722479
A137: 2013-04-29 | B137: 220.449 | C137: -220.449 | D137: 2013-04-29 | H137: 2013-04-29 | I137: 220.025 | J137: -220.025 | K137: 2013-04-29
A138: 2013-01-01 | B138: 228.943 | C138: 228.943 | D138: 2013-01-01 | E138: =XIRR(C138:C139,D138:D139,) -> -0.09542801082 | F138: =IRR(C138:C139) -> -0.03216957933 | G138: =(B139-B138)/B138 -> -0.03216957933 | H138: 2013-01-01 | I138: 228.943 | J138: 228.943 | K138: 2013-01-01 | L138: =XIRR(J138:J139,K138:K139,) -> -0.1008015413 | M138: =IRR(J138:J139) -> -0.03404777608 | N138: =(I139-I138)/I138 -> -0.03404777608 | P138: =E138-L138 -> 0.005373530462 | Q138: =F138-M138 -> 0.001878196756 | S138: =(1+Q138)^(365/(K139-K138))-1 -> 0.005772046788
A139: 2013-04-30 | B139: 221.578 | C139: -221.578 | D139: 2013-04-30 | H139: 2013-04-30 | I139: 221.148 | J139: -221.148 | K139: 2013-04-30
A140: 2013-01-01 | B140: 228.943 | C140: 228.943 | D140: 2013-01-01 | E140: =XIRR(C140:C141,D140:D141,) -> -0.06481755674 | F140: =IRR(C140:C141) -> -0.02197053415 | G140: =(B141-B140)/B140 -> -0.02197053415 | H140: 2013-01-01 | I140: 228.943 | J140: 228.943 | K140: 2013-01-01 | L140: =XIRR(J140:J141,K140:K141,) -> -0.07036254108 | M140: =IRR(J140:J141) -> -0.0238967778 | N140: =(I141-I140)/I140 -> -0.0238967778 | P140: =E140-L140 -> 0.005544984341 | Q140: =F140-M140 -> 0.00192624365 | S140: =(1+Q140)^(365/(K141-K140))-1 -> 0.005821862126
A141: 2013-05-02 | B141: 223.913 | C141: -223.913 | D141: 2013-05-02 | H141: 2013-05-02 | I141: 223.472 | J141: -223.472 | K141: 2013-05-02
A142: 2013-01-01 | B142: 228.943 | C142: 228.943 | D142: 2013-01-01 | E142: =XIRR(C142:C143,D142:D143,) -> -0.09744859338 | F142: =IRR(C142:C143) -> -0.03368960833 | G142: =(B143-B142)/B142 -> -0.03368960833 | H142: 2013-01-01 | I142: 228.943 | J142: 228.943 | K142: 2013-01-01 | L142: =XIRR(J142:J143,K142:K143,) -> -0.1027963001 | M142: =IRR(J142:J143) -> -0.03560711618 | N142: =(I143-I142)/I142 -> -0.03560711618 | P142: =E142-L142 -> 0.00534770675 | Q142: =F142-M142 -> 0.001917507851 | S142: =(1+Q142)^(365/(K143-K142))-1 -> 0.005747768509
A143: 2013-05-03 | B143: 221.23 | C143: -221.23 | D143: 2013-05-03 | H143: 2013-05-03 | I143: 220.791 | J143: -220.791 | K143: 2013-05-03
A144: 2013-01-01 | B144: 228.943 | C144: 228.943 | D144: 2013-01-01 | E144: =XIRR(C144:C145,D144:D145,) -> -0.08095245063 | F144: =IRR(C144:C145) -> -0.0284961759 | G144: =(B145-B144)/B144 -> -0.0284961759 | H144: 2013-01-01 | I144: 228.943 | J144: 228.943 | K144: 2013-01-01 | L144: =XIRR(J144:J145,K144:K145,) -> -0.08638344705 | M144: =IRR(J144:J145) -> -0.03046609855 | N144: =(I145-I144)/I144 -> -0.03046609855 | P144: =E144-L144 -> 0.005430996418 | Q144: =F144-M144 -> 0.001969922648 | S144: =(1+Q144)^(365/(K145-K144))-1 -> 0.005763058789
A145: 2013-05-06 | B145: 222.419 | C145: -222.419 | D145: 2013-05-06 | H145: 2013-05-06 | I145: 221.968 | J145: -221.968 | K145: 2013-05-06
A146: 2013-01-01 | B146: 228.943 | C146: 228.943 | D146: 2013-01-01 | E146: =XIRR(C146:C147,D146:D147,) -> -0.04685516059 | F146: =IRR(C146:C147) -> -0.01655870675 | G146: =(B147-B146)/B146 -> -0.01655870675 | H146: 2013-01-01 | I146: 228.943 | J146: 228.943 | K146: 2013-01-01 | L146: =XIRR(J146:J147,K146:K147,) -> -0.05247748792 | M146: =IRR(J146:J147) -> -0.01858104419 | N146: =(I147-I146)/I146 -> -0.01858104419 | P146: =E146-L146 -> 0.005622327328 | Q146: =F146-M146 -> 0.002022337437 | S146: =(1+Q146)^(365/(K147-K146))-1 -> 0.005823249994
A147: 2013-05-08 | B147: 225.152 | C147: -225.152 | D147: 2013-05-08 | H147: 2013-05-08 | I147: 224.689 | J147: -224.689 | K147: 2013-05-08
A148: 2013-01-01 | B148: 228.943 | C148: 228.943 | D148: 2013-01-01 | E148: =XIRR(C148:C149,D148:D149,) -> -0.04853720367 | F148: =IRR(C148:C149) -> -0.01729688176 | G148: =(B149-B148)/B148 -> -0.01729688176 | H148: 2013-01-01 | I148: 228.943 | J148: 228.943 | K148: 2013-01-01 | L148: =XIRR(J148:J149,K148:K149,) -> -0.05415811837 | M148: =IRR(J148:J149) -> -0.01933669079 | N148: =(I149-I148)/I148 -> -0.01933669079 | P148: =E148-L148 -> 0.005620914698 | Q148: =F148-M148 -> 0.002039809035 | S148: =(1+Q148)^(365/(K149-K148))-1 -> 0.005827633558
A149: 2013-05-09 | B149: 224.983 | C149: -224.983 | D149: 2013-05-09 | H149: 2013-05-09 | I149: 224.516 | J149: -224.516 | K149: 2013-05-09
A150: 2013-01-01 | B150: 228.943 | C150: 228.943 | D150: 2013-01-01 | E150: =XIRR(C150:C151,D150:D151,) -> -0.0273758918 | F150: =IRR(C150:C151) -> -0.009762255233 | G150: =(B151-B150)/B150 -> -0.009762255234 | H150: 2013-01-01 | I150: 228.943 | J150: 228.943 | K150: 2013-01-01 | L150: =XIRR(J150:J151,K150:K151,) -> -0.03311875761 | M150: =IRR(J150:J151) -> -0.01183263956 | N150: =(I151-I150)/I150 -> -0.01183263957 | P150: =E150-L150 -> 0.005742865801 | Q150: =F150-M150 -> 0.002070384331 | S150: =(1+Q150)^(365/(K151-K150))-1 -> 0.005869164779
A151: 2013-05-10 | B151: 226.708 | C151: -226.708 | D151: 2013-05-10 | H151: 2013-05-10 | I151: 226.234 | J151: -226.234 | K151: 2013-05-10
A152: 2013-01-01 | B152: 228.943 | C152: 228.943 | D152: 2013-01-01 | E152: =XIRR(C152:C153,D152:D153,) -> -0.07310560644 | F152: =IRR(C152:C153) -> -0.02708097648 | G152: =(B153-B152)/B152 -> -0.02708097649 | H152: 2013-01-01 | I152: 228.943 | J152: 228.943 | K152: 2013-01-01 | L152: =XIRR(J152:J153,K152:K153,) -> -0.07856093347 | M152: =IRR(J152:J153) -> -0.02915572871 | N152: =(I153-I152)/I152 -> -0.02915572872 | P152: =E152-L152 -> 0.005455327034 | Q152: =F152-M152 -> 0.00207475223 | S152: =(1+Q152)^(365/(K153-K152))-1 -> 0.005747515009
A153: 2013-05-13 | B153: 222.743 | C153: -222.743 | D153: 2013-05-13 | H153: 2013-05-13 | I153: 222.268 | J153: -222.268 | K153: 2013-05-13
A154: 2013-01-01 | B154: 228.943 | C154: 228.943 | D154: 2013-01-01 | E154: =XIRR(C154:C155,D154:D155,) -> -0.06049455702 | F154: =IRR(C154:C155) -> -0.02248157838 | G154: =(B155-B154)/B154 -> -0.02248157838 | H154: 2013-01-01 | I154: 228.943 | J154: 228.943 | K154: 2013-01-01 | L154: =XIRR(J154:J155,K154:K155,) -> -0.06602574885 | M154: =IRR(J154:J155) -> -0.02458253801 | N154: =(I155-I154)/I154 -> -0.02458253801 | P154: =E154-L154 -> 0.005531191826 | Q154: =F154-M154 -> 0.002100959627 | S154: =(1+Q154)^(365/(K155-K154))-1 -> 0.005776362292
A155: 2013-05-14 | B155: 223.796 | C155: -223.796 | D155: 2013-05-14 | H155: 2013-05-14 | I155: 223.315 | J155: -223.315 | K155: 2013-05-14
A156: 2013-01-01 | B156: 228.943 | C156: 228.943 | D156: 2013-01-01 | E156: =XIRR(C156:C157,D156:D157,) -> 0.03643210232 | F156: =IRR(C156:C157) -> 0.01342255496 | G156: =(B157-B156)/B156 -> 0.01342255496 | H156: 2013-01-01 | I156: 228.943 | J156: 228.943 | K156: 2013-01-01 | L156: =XIRR(J156:J157,K156:K157,) -> 0.03034105599 | M156: =IRR(J156:J157) -> 0.01119929415 | N156: =(I157-I156)/I156 -> 0.01119929415 | P156: =E156-L156 -> 0.006091046333 | Q156: =F156-M156 -> 0.002223260812 | S156: =(1+Q156)^(365/(K157-K156))-1 -> 0.005978014005
A157: 2013-05-17 | B157: 232.016 | C157: -232.016 | D157: 2013-05-17 | H157: 2013-05-17 | I157: 231.507 | J157: -231.507 | K157: 2013-05-17
A158: 2013-01-01 | B158: 228.943 | C158: 228.943 | D158: 2013-01-01 | E158: =XIRR(C158:C159,D158:D159,) -> 0.01788755953 | F158: =IRR(C158:C159) -> 0.006774612021 | G158: =(B159-B158)/B158 -> 0.006774612021 | H158: 2013-01-01 | I158: 228.943 | J158: 228.943 | K158: 2013-01-01 | L158: =XIRR(J158:J159,K158:K159,) -> 0.01190321743 | M158: =IRR(J158:J159) -> 0.004516408014 | N158: =(I159-I158)/I158 -> 0.004516408014 | P158: =E158-L158 -> 0.005984342098 | Q158: =F158-M158 -> 0.002258204007 | S158: =(1+Q158)^(365/(K159-K158))-1 -> 0.005940707398
A159: 2013-05-20 | B159: 230.494 | C159: -230.494 | D159: 2013-05-20 | H159: 2013-05-20 | I159: 229.977 | J159: -229.977 | K159: 2013-05-20
A160: 2013-01-01 | B160: 228.943 | C160: 228.943 | D160: 2013-01-01 | E160: =XIRR(C160:C161,D160:D161,) -> -0.02119679749 | F160: =IRR(C160:C161) -> -0.008242226231 | G160: =(B161-B160)/B160 -> -0.008242226231 | H160: 2013-01-01 | I160: 228.943 | J160: 228.943 | K160: 2013-01-01 | L160: =XIRR(J160:J161,K160:K161,) -> -0.02691123784 | M160: =IRR(J160:J161) -> -0.01048295864 | N160: =(I161-I160)/I160 -> -0.01048295864 | P160: =E160-L160 -> 0.005714440346 | Q160: =F160-M160 -> 0.002240732409 | S160: =(1+Q160)^(365/(K161-K160))-1 -> 0.005810806162
A161: 2013-05-22 | B161: 227.056 | C161: -227.056 | D161: 2013-05-22 | H161: 2013-05-22 | I161: 226.543 | J161: -226.543 | K161: 2013-05-22
A162: 2013-01-01 | B162: 228.943 | C162: 228.943 | D162: 2013-01-01 | E162: =XIRR(C162:C163,D162:D163,) -> -0.08907921016 | F162: =IRR(C162:C163) -> -0.03564642728 | G162: =(B163-B162)/B162 -> -0.03564642728 | H162: 2013-01-01 | I162: 228.943 | J162: 228.943 | K162: 2013-01-01 | L162: =XIRR(J162:J163,K162:K163,) -> -0.09438298643 | M162: =IRR(J162:J163) -> -0.03783474489 | N162: =(I163-I162)/I162 -> -0.03783474489 | P162: =E162-L162 -> 0.005303776264 | Q162: =F162-M162 -> 0.002188317616 | S162: =(1+Q162)^(365/(K163-K162))-1 -> 0.005634570156
A163: 2013-05-23 | B163: 220.782 | C163: -220.782 | D163: 2013-05-23 | H163: 2013-05-23 | I163: 220.281 | J163: -220.281 | K163: 2013-05-23
A164: 2013-01-01 | B164: 228.943 | C164: 228.943 | D164: 2013-01-01 | E164: =XIRR(C164:C165,D164:D165,) -> -0.07642320693 | F164: =IRR(C164:C165) -> -0.03066702192 | G164: =(B165-B164)/B164 -> -0.03066702192 | H164: 2013-01-01 | I164: 228.943 | J164: 228.943 | K164: 2013-01-01 | L164: =XIRR(J164:J165,K164:K165,) -> -0.08180988729 | M164: =IRR(J164:J165) -> -0.03288591483 | N164: =(I165-I164)/I164 -> -0.03288591483 | P164: =E164-L164 -> 0.005386680365 | Q164: =F164-M164 -> 0.002218892912 | S164: =(1+Q164)^(365/(K165-K164))-1 -> 0.005673366525
A165: 2013-05-24 | B165: 221.922 | C165: -221.922 | D165: 2013-05-24 | H165: 2013-05-24 | I165: 221.414 | J165: -221.414 | K165: 2013-05-24
A166: 2013-01-01 | B166: 228.943 | C166: 228.943 | D166: 2013-01-01 | E166: =XIRR(C166:C167,D166:D167,) -> -0.05078934729 | F166: =IRR(C166:C167) -> -0.02063395692 | G166: =(B167-B166)/B166 -> -0.02063395692 | H166: 2013-01-01 | I166: 228.943 | J166: 228.943 | K166: 2013-01-01 | L166: =XIRR(J166:J167,K166:K167,) -> -0.05631484687 | M166: =IRR(J166:J167) -> -0.02291836833 | N166: =(I167-I166)/I166 -> -0.02291836833 | P166: =E166-L166 -> 0.005525499582 | Q166: =F166-M166 -> 0.002284411403 | S166: =(1+Q166)^(365/(K167-K166))-1 -> 0.005720816986
A167: 2013-05-27 | B167: 224.219 | C167: -224.219 | D167: 2013-05-27 | H167: 2013-05-27 | I167: 223.696 | J167: -223.696 | K167: 2013-05-27
A168: 2013-01-01 | B168: 228.943 | C168: 228.943 | D168: 2013-01-01 | E168: =XIRR(C168:C169,D168:D169,) -> -0.04910673797 | F168: =IRR(C168:C169) -> -0.02021027068 | G168: =(B169-B168)/B168 -> -0.02021027068 | H168: 2013-01-01 | I168: 228.943 | J168: 228.943 | K168: 2013-01-01 | L168: =XIRR(J168:J169,K168:K169,) -> -0.0546380192 | M168: =IRR(J168:J169) -> -0.02252525738 | N168: =(I169-I168)/I168 -> -0.02252525738 | P168: =E168-L168 -> 0.005531281233 | Q168: =F168-M168 -> 0.002314986699 | S168: =(1+Q168)^(365/(K169-K168))-1 -> 0.005718950607
A169: 2013-05-29 | B169: 224.316 | C169: -224.316 | D169: 2013-05-29 | H169: 2013-05-29 | I169: 223.786 | J169: -223.786 | K169: 2013-05-29
A170: 2013-01-01 | B170: 228.943 | C170: 228.943 | D170: 2013-01-01 | E170: =XIRR(C170:C171,D170:D171,) -> -0.0459989816 | F170: =IRR(C170:C171) -> -0.01903967363 | G170: =(B171-B170)/B170 -> -0.01903967363 | H170: 2013-01-01 | I170: 228.943 | J170: 228.943 | K170: 2013-01-01 | L170: =XIRR(J170:J171,K170:K171,) -> -0.05153575242 | M170: =IRR(J170:J171) -> -0.02136776403 | N170: =(I171-I170)/I170 -> -0.02136776403 | P170: =E170-L170 -> 0.005536770821 | Q170: =F170-M170 -> 0.002328090398 | S170: =(1+Q170)^(365/(K171-K170))-1 -> 0.00571266733
A171: 2013-05-30 | B171: 224.584 | C171: -224.584 | D171: 2013-05-30 | H171: 2013-05-30 | I171: 224.051 | J171: -224.051 | K171: 2013-05-30
A172: 2013-01-01 | B172: 228.943 | C172: 228.943 | D172: 2013-01-01 | E172: =XIRR(C172:C173,D172:D173,) -> -0.08841489851 | F172: =IRR(C172:C173) -> -0.03732806856 | G172: =(B173-B172)/B172 -> -0.03732806856 | H172: 2013-01-01 | I172: 228.943 | J172: 228.943 | K172: 2013-01-01 | L172: =XIRR(J172:J173,K172:K173,) -> -0.09370981157 | M172: =IRR(J172:J173) -> -0.03962995156 | N172: =(I173-I172)/I172 -> -0.03962995156 | P172: =E172-L172 -> 0.005294913054 | Q172: =F172-M172 -> 0.002301883001 | S172: =(1+Q172)^(365/(K173-K172))-1 -> 0.005610491992
A173: 2013-05-31 | B173: 220.397 | C173: -220.397 | D173: 2013-05-31 | H173: 2013-05-31 | I173: 219.87 | J173: -219.87 | K173: 2013-05-31
A174: 2013-01-01 | B174: 228.943 | C174: 228.943 | D174: 2013-01-01 | E174: =XIRR(C174:C175,D174:D175,) -> -0.08869505823 | F174: =IRR(C174:C175) -> -0.03818417685 | G174: =(B175-B174)/B174 -> -0.03818417685 | H174: 2013-01-01 | I174: 228.943 | J174: 228.943 | K174: 2013-01-01 | L174: =XIRR(J174:J175,K174:K175,) -> -0.09398786724 | M174: =IRR(J174:J175) -> -0.04052973884 | N174: =(I175-I174)/I174 -> -0.04052973884 | P174: =E174-L174 -> 0.00529280901 | Q174: =F174-M174 -> 0.002345561996 | S174: =(1+Q174)^(365/(K175-K174))-1 -> 0.005604717548
A175: 2013-06-03 | B175: 220.201 | C175: -220.201 | D175: 2013-06-03 | H175: 2013-06-03 | I175: 219.664 | J175: -219.664 | K175: 2013-06-03
A176: 2013-01-01 | B176: 228.943 | C176: 228.943 | D176: 2013-01-01 | E176: =XIRR(C176:C177,D176:D177,) -> -0.09169421494 | F176: =IRR(C176:C177) -> -0.03976535644 | G176: =(B177-B176)/B176 -> -0.03976535644 | H176: 2013-01-01 | I176: 228.943 | J176: 228.943 | K176: 2013-01-01 | L176: =XIRR(J176:J177,K176:K177,) -> -0.09696357846 | M176: =IRR(J176:J177) -> -0.04211965424 | N176: =(I177-I176)/I176 -> -0.04211965424 | P176: =E176-L176 -> 0.005269363523 | Q176: =F176-M176 -> 0.002354297795 | S176: =(1+Q176)^(365/(K177-K176))-1 -> 0.005588993811
A177: 2013-06-04 | B177: 219.839 | C177: -219.839 | D177: 2013-06-04 | H177: 2013-06-04 | I177: 219.3 | J177: -219.3 | K177: 2013-06-04
A178: 2013-01-01 | B178: 228.943 | C178: 228.943 | D178: 2013-01-01 | E178: =XIRR(C178:C179,D178:D179,) -> -0.09085784256 | F178: =IRR(C178:C179) -> -0.03964305526 | G178: =(B179-B178)/B178 -> -0.03964305526 | H178: 2013-01-01 | I178: 228.943 | J178: 228.943 | K178: 2013-01-01 | L178: =XIRR(J178:J179,K178:K179,) -> -0.09612657428 | M178: =IRR(J178:J179) -> -0.04201045675 | N178: =(I179-I178)/I178 -> -0.04201045675 | P178: =E178-L178 -> 0.005268731713 | Q178: =F178-M178 -> 0.002367401493 | S178: =(1+Q178)^(365/(K179-K178))-1 -> 0.005583791696
A179: 2013-06-05 | B179: 219.867 | C179: -219.867 | D179: 2013-06-05 | H179: 2013-06-05 | I179: 219.325 | J179: -219.325 | K179: 2013-06-05
A180: 2013-01-01 | B180: 228.943 | C180: 228.943 | D180: 2013-01-01 | E180: =XIRR(C180:C181,D180:D181,) -> -0.08727931082 | F180: =IRR(C180:C181) -> -0.03828027064 | G180: =(B181-B180)/B180 -> -0.03828027064 | H180: 2013-01-01 | I180: 228.943 | J180: 228.943 | K180: 2013-01-01 | L180: =XIRR(J180:J181,K180:K181,) -> -0.09256620705 | M180: =IRR(J180:J181) -> -0.04066514373 | N180: =(I181-I180)/I180 -> -0.04066514373 | P180: =E180-L180 -> 0.005286896229 | Q180: =F180-M180 -> 0.002384873091 | S180: =(1+Q180)^(365/(K181-K180))-1 -> 0.0055889083
A181: 2013-06-06 | B181: 220.179 | C181: -220.179 | D181: 2013-06-06 | H181: 2013-06-06 | I181: 219.633 | J181: -219.633 | K181: 2013-06-06
A182: 2013-01-01 | B182: 228.943 | C182: 228.943 | D182: 2013-01-01 | E182: =XIRR(C182:C183,D182:D183,) -> -0.1027614918 | F182: =IRR(C182:C183) -> -0.04557029479 | G182: =(B183-B182)/B182 -> -0.04557029479 | H182: 2013-01-01 | I182: 228.943 | J182: 228.943 | K182: 2013-01-01 | L182: =XIRR(J182:J183,K182:K183,) -> -0.1079650845 | M182: =IRR(J182:J183) -> -0.04795516788 | N182: =(I183-I182)/I182 -> -0.04795516788 | P182: =E182-L182 -> 0.005203592777 | Q182: =F182-M182 -> 0.002384873091 | S182: =(1+Q182)^(365/(K183-K182))-1 -> 0.005553211499
A183: 2013-06-07 | B183: 218.51 | C183: -218.51 | D183: 2013-06-07 | H183: 2013-06-07 | I183: 217.964 | J183: -217.964 | K183: 2013-06-07
A184: 2013-01-01 | B184: 228.943 | C184: 228.943 | D184: 2013-01-01 | E184: =XIRR(C184:C185,D184:D185,) -> -0.1126532372 | F184: =IRR(C184:C185) -> -0.05104327278 | G184: =(B185-B184)/B184 -> -0.05104327278 | H184: 2013-01-01 | I184: 228.943 | J184: 228.943 | K184: 2013-01-01 | L184: =XIRR(J184:J185,K184:K185,) -> -0.1177880447 | M184: =IRR(J184:J185) -> -0.05345435327 | N184: =(I185-I184)/I184 -> -0.05345435327 | P184: =E184-L184 -> 0.005134807527 | Q184: =F184-M184 -> 0.002411080487 | S184: =(1+Q184)^(365/(K185-K184))-1 -> 0.005508775001
A185: 2013-06-10 | B185: 217.257 | C185: -217.257 | D185: 2013-06-10 | H185: 2013-06-10 | I185: 216.705 | J185: -216.705 | K185: 2013-06-10
A186: 2013-01-01 | B186: 228.943 | C186: 228.943 | D186: 2013-01-01 | E186: =XIRR(C186:C187,D186:D187,) -> -0.1444862571 | F186: =IRR(C186:C187) -> -0.06651874047 | G186: =(B187-B186)/B186 -> -0.06651874047 | H186: 2013-01-01 | I186: 228.943 | J186: 228.943 | K186: 2013-01-01 | L186: =XIRR(J186:J187,K186:K187,) -> -0.1494243111 | M186: =IRR(J186:J187) -> -0.06889924566 | N186: =(I187-I186)/I186 -> -0.06889924566 | P186: =E186-L186 -> 0.004938054085 | Q186: =F186-M186 -> 0.002380505191 | S186: =(1+Q186)^(365/(K187-K186))-1 -> 0.005404938367
A187: 2013-06-11 | B187: 213.714 | C187: -213.714 | D187: 2013-06-11 | H187: 2013-06-11 | I187: 213.169 | J187: -213.169 | K187: 2013-06-11
A188: 2013-01-01 | B188: 228.943 | C188: 228.943 | D188: 2013-01-01 | E188: =XIRR(C188:C189,D188:D189,) -> -0.1537309263 | F188: =IRR(C188:C189) -> -0.07140641994 | G188: =(B189-B188)/B188 -> -0.07140641994 | H188: 2013-01-01 | I188: 228.943 | J188: 228.943 | K188: 2013-01-01 | L188: =XIRR(J188:J189,K188:K189,) -> -0.1586200032 | M188: =IRR(J188:J189) -> -0.07379129303 | N188: =(I189-I188)/I188 -> -0.07379129303 | P188: =E188-L188 -> 0.004889076948 | Q188: =F188-M188 -> 0.002384873091 | S188: =(1+Q188)^(365/(K189-K188))-1 -> 0.005381355751
A189: 2013-06-12 | B189: 212.595 | C189: -212.595 | D189: 2013-06-12 | H189: 2013-06-12 | I189: 212.049 | J189: -212.049 | K189: 2013-06-12
A190: 2013-01-01 | B190: 228.943 | C190: 228.943 | D190: 2013-01-01 | E190: =XIRR(C190:C191,D190:D191,) -> -0.1369035985 | F190: =IRR(C190:C191) -> -0.0640115662 | G190: =(B191-B190)/B190 -> -0.0640115662 | H190: 2013-01-01 | I190: 228.943 | J190: 228.943 | K190: 2013-01-01 | L190: =XIRR(J190:J191,K190:K191,) -> -0.1418797601 | M190: =IRR(J190:J191) -> -0.06644011828 | N190: =(I191-I190)/I190 -> -0.06644011828 | P190: =E190-L190 -> 0.004976161569 | Q190: =F190-M190 -> 0.002428552085 | S190: =(1+Q190)^(365/(K191-K190))-1 -> 0.005413054571
A191: 2013-06-14 | B191: 214.288 | C191: -214.288 | D191: 2013-06-14 | H191: 2013-06-14 | I191: 213.732 | J191: -213.732 | K191: 2013-06-14
A192: 2013-01-01 | B192: 228.943 | C192: 228.943 | D192: 2013-01-01 | E192: =XIRR(C192:C193,D192:D193,) -> -0.1228265475 | F192: =IRR(C192:C193) -> -0.05819789205 | G192: =(B193-B192)/B192 -> -0.05819789205 | H192: 2013-01-01 | I192: 228.943 | J192: 228.943 | K192: 2013-01-01 | L192: =XIRR(J192:J193,K192:K193,) -> -0.1278778914 | M192: =IRR(J192:J193) -> -0.06068322683 | N192: =(I193-I192)/I192 -> -0.06068322683 | P192: =E192-L192 -> 0.005051343888 | Q192: =F192-M192 -> 0.002485334778 | S192: =(1+Q192)^(365/(K193-K192))-1 -> 0.005440023578
A193: 2013-06-17 | B193: 215.619 | C193: -215.619 | D193: 2013-06-17 | H193: 2013-06-17 | I193: 215.05 | J193: -215.05 | K193: 2013-06-17
A194: 2013-01-01 | B194: 228.943 | C194: 228.943 | D194: 2013-01-01 | E194: =XIRR(C194:C195,D194:D195,) -> -0.1327219676 | F194: =IRR(C194:C195) -> -0.06343937137 | G194: =(B195-B194)/B194 -> -0.06343937137 | H194: 2013-01-01 | I194: 228.943 | J194: 228.943 | K194: 2013-01-01 | L194: =XIRR(J194:J195,K194:K195,) -> -0.1376969088 | M194: =IRR(J194:J195) -> -0.06591597035 | N194: =(I195-I194)/I194 -> -0.06591597035 | P194: =E194-L194 -> 0.004974941164 | Q194: =F194-M194 -> 0.002476598979 | S194: =(1+Q194)^(365/(K195-K194))-1 -> 0.005388520301
A195: 2013-06-18 | B195: 214.419 | C195: -214.419 | D195: 2013-06-18 | H195: 2013-06-18 | I195: 213.852 | J195: -213.852 | K195: 2013-06-18
A196: 2013-01-01 | B196: 228.943 | C196: 228.943 | D196: 2013-01-01 | E196: =XIRR(C196:C197,D196:D197,) -> -0.1298824403 | F196: =IRR(C196:C197) -> -0.06238670761 | G196: =(B197-B196)/B196 -> -0.06238670761 | H196: 2013-01-01 | I196: 228.943 | J196: 228.943 | K196: 2013-01-01 | L196: =XIRR(J196:J197,K196:K197,) -> -0.1348735686 | M196: =IRR(J196:J197) -> -0.06488077818 | N196: =(I197-I196)/I196 -> -0.06488077818 | P196: =E196-L196 -> 0.004991128296 | Q196: =F196-M196 -> 0.002494070577 | S196: =(1+Q196)^(365/(K197-K196))-1 -> 0.005394393625
A197: 2013-06-19 | B197: 214.66 | C197: -214.66 | D197: 2013-06-19 | H197: 2013-06-19 | I197: 214.089 | J197: -214.089 | K197: 2013-06-19
A198: 2013-01-01 | B198: 228.943 | C198: 228.943 | D198: 2013-01-01 | E198: =XIRR(C198:C199,D198:D199,) -> -0.1857784458 | F198: =IRR(C198:C199) -> -0.09179577449 | G198: =(B199-B198)/B198 -> -0.09179577449 | H198: 2013-01-01 | I198: 228.943 | J198: 228.943 | K198: 2013-01-01 | L198: =XIRR(J198:J199,K198:K199,) -> -0.1904437192 | M198: =IRR(J198:J199) -> -0.09423743028 | N198: =(I199-I198)/I198 -> -0.09423743028 | P198: =E198-L198 -> 0.004665273428 | Q198: =F198-M198 -> 0.002441655783 | S198: =(1+Q198)^(365/(K199-K198))-1 -> 0.005218940604
A199: 2013-06-21 | B199: 207.927 | C199: -207.927 | D199: 2013-06-21 | H199: 2013-06-21 | I199: 207.368 | J199: -207.368 | K199: 2013-06-21
A200: 2013-01-01 | B200: 228.943 | C200: 228.943 | D200: 2013-01-01 | E200: =XIRR(C200:C201,D200:D201,) -> -0.2149637766 | F200: =IRR(C200:C201) -> -0.1095600215 | G200: =(B201-B200)/B200 -> -0.1095600215 | H200: 2013-01-01 | I200: 228.943 | J200: 228.943 | K200: 2013-01-01 | L200: =XIRR(J200:J201,K200:K201,) -> -0.219446861 | M200: =IRR(J200:J201) -> -0.1120016773 | N200: =(I201-I200)/I200 -> -0.1120016773 | P200: =E200-L200 -> 0.004483084381 | Q200: =F200-M200 -> 0.002441655783 | S200: =(1+Q200)^(365/(K201-K200))-1 -> 0.005099346904
... 53 more rows

Sheet backup
A1: 2013-02-15 | B1: 0.004845651984 | C1: 0.0007338071045 | E1: 0.005967543485
A2: 2013-01-01
A3: 2013-02-18 | B3: 0.00498444289 | C3: 0.0007818539983 | E3: 0.005960719936
A4: 2013-01-01
A5: 2013-02-19 | B5: 0.005284441262 | C5: 0.0008036934956 | E5: 0.006002233648
A6: 2013-01-01
A7: 2013-02-20 | B7: 0.005175932497 | C7: 0.0008167971939 | E7: 0.005977982963
A8: 2013-01-01
A9: 2013-02-21 | B9: 0.00460075289 | C9: 0.0008211650935 | E9: 0.005891843238
A10: 2013-01-01
A11: 2013-02-22 | B11: 0.004616068304 | C11: 0.0008342687918 | E11: 0.005870648935
A12: 2013-01-01
A13: 2013-02-26 | B13: 0.004207675159 | C13: 0.0008823156856 | E13: 0.005764825089
A14: 2013-01-01
A15: 2013-02-28 | B15: 0.003826010227 | C15: 0.0008954193839 | E15: 0.005648337532
A16: 2013-01-01
A17: 2013-03-01 | B17: 0.004057605565 | C17: 0.0009216267805 | E17: 0.005715233635
A18: 2013-01-01
A19: 2013-03-04 | B19: 0.004041163623 | C19: 0.0009653057748 | E19: 0.005696269831
A20: 2013-01-01
A21: 2013-03-06 | B21: 0.00473652631 | C21: 0.001017720568 | E21: 0.005818095853
A22: 2013-01-01
A23: 2013-03-07 | B23: 0.004903359711 | C23: 0.001039560065 | E23: 0.005851551298
A24: 2013-01-01
A25: 2013-03-08 | B25: 0.005230897665 | C25: 0.001065767461 | E25: 0.005908263771
A26: 2013-01-01
A27: 2013-03-11 | B27: 0.005241492391 | C27: 0.001113814355 | E27: 0.00590600981
A28: 2013-01-01
A29: 2013-03-12 | B29: 0.005117037892 | C29: 0.001126918054 | E29: 0.005890042756
A30: 2013-01-01
A31: 2013-03-13 | B31: 0.004763455689 | C31: 0.001126918054 | E31: 0.005806844013
A32: 2013-01-01
A33: 2013-03-14 | B33: 0.005109138787 | C33: 0.00115749335 | E33: 0.005881684432
A34: 2013-01-01
A35: 2013-03-15 | B35: 0.00495621264 | C35: 0.001166229149 | E35: 0.005844762519
A36: 2013-01-01
A37: 2013-03-18 | B37: 0.004810716212 | C37: 0.001201172344 | E37: 0.005781977829
A38: 2013-01-01
A39: 2013-03-19 | B39: 0.004441724718 | C39: 0.001196804445 | E39: 0.005685875375
A40: 2013-01-01
A41: 2013-03-20 | B41: 0.004134786129 | C41: 0.001192436545 | E41: 0.00559224583
A42: 2013-01-01
A43: 2013-03-21 | B43: 0.003997886181 | C43: 0.001196804445 | E43: 0.005541531066
A44: 2013-01-01
A45: 2013-03-22 | B45: 0.003970648348 | C45: 0.001209908143 | E45: 0.005532115069
A46: 2013-01-01
A47: 2013-03-25 | B47: 0.003950746357 | C47: 0.001249219238 | E47: 0.005505224368
A48: 2013-01-01
A49: 2013-03-26 | B49: 0.003967778385 | C49: 0.001262322936 | E49: 0.005496686291
A50: 2013-01-01
A51: 2013-03-28 | B51: 0.004201304913 | C51: 0.001297266132 | E51: 0.005517435924
A52: 2013-01-01
A53: 2013-04-01 | B53: 0.004350931942 | C53: 0.001362784623 | E53: 0.005538366575
A54: 2013-01-01
A55: 2013-04-02 | B55: 0.004598875344 | C55: 0.001397727819 | E55: 0.005618079095
A56: 2013-01-01
A57: 2013-04-03 | B57: 0.004358710349 | C57: 0.001393359919 | E57: 0.005539442638
A58: 2013-01-01
A59: 2013-04-05 | B59: 0.004137267172 | C59: 0.001406463618 | E59: 0.005472350268
A60: 2013-01-01
A61: 2013-04-09 | B61: 0.004003813863 | C61: 0.001445774712 | E61: 0.005395387287
A62: 2013-01-01
A63: 2013-04-10 | B63: 0.004194639623 | C63: 0.001476350009 | E63: 0.00545391333
A64: 2013-01-01
A65: 2013-04-11 | B65: 0.004337963462 | C65: 0.001502557405 | E65: 0.005495262253
A66: 2013-01-01
A67: 2013-04-12 | B67: 0.00418651253 | C67: 0.001493821606 | E67: 0.005409012229
A68: 2013-01-01
A69: 2013-04-15 | B69: 0.004354780912 | C69: 0.001550604299 | E69: 0.005452621569
A70: 2013-01-01
A71: 2013-04-16 | B71: 0.004652948678 | C71: 0.001594283293 | E71: 0.00555298026
A72: 2013-01-01
A73: 2013-04-17 | B73: 0.004732985795 | C73: 0.00162049069 | E73: 0.005591047131
A74: 2013-01-01
A75: 2013-04-18 | B75: 0.004994333535 | C75: 0.001659801785 | E75: 0.005673279452
A76: 2013-01-01
A77: 2013-04-22 | B77: 0.005190912634 | C77: 0.001738423975 | E77: 0.005727817726
A78: 2013-01-01
A79: 2013-04-23 | B79: 0.005147105455 | C79: 0.001751527673 | E79: 0.00571940415
A80: 2013-01-01
A81: 2013-04-26 | B81: 0.005180740356 | C81: 0.001799574567 | E81: 0.005722873468
A82: 2013-01-01
A83: 2013-04-29 | B83: 0.005282087624 | C83: 0.00185198936 | E83: 0.005739722479
A84: 2013-01-01
A85: 2013-04-30 | B85: 0.005373530462 | C85: 0.001878196756 | E85: 0.005772046788
A86: 2013-01-01
A87: 2013-05-02 | B87: 0.005544984341 | C87: 0.00192624365 | E87: 0.005821862126
A88: 2013-01-01
A89: 2013-05-03 | B89: 0.00534770675 | C89: 0.001917507851 | E89: 0.005747768509
A90: 2013-01-01
A91: 2013-05-06 | B91: 0.005430996418 | C91: 0.001969922648 | E91: 0.005763058789
A92: 2013-01-01
A93: 2013-05-08 | B93: 0.005622327328 | C93: 0.002022337437 | E93: 0.005823249994
A94: 2013-01-01
A95: 2013-05-09 | B95: 0.005620914698 | C95: 0.002039809035 | E95: 0.005827633558
A96: 2013-01-01
A97: 2013-05-10 | B97: 0.005742865801 | C97: 0.002070384331 | E97: 0.005869164779
A98: 2013-01-01
A99: 2013-05-13 | B99: 0.005455327034 | C99: 0.00207475223 | E99: 0.005747515009
A100: 2013-01-01
A101: 2013-05-14 | B101: 0.005531191826 | C101: 0.002100959627 | E101: 0.005776362292
A102: 2013-01-01
A103: 2013-05-17 | B103: 0.006091046333 | C103: 0.002223260812 | E103: 0.005978014005
A104: 2013-01-01
A105: 2013-05-20 | B105: 0.005984342098 | C105: 0.002258204007 | E105: 0.005940707398
A106: 2013-01-01
A107: 2013-05-22 | B107: 0.005714440346 | C107: 0.002240732409 | E107: 0.005810806162
A108: 2013-01-01
A109: 2013-05-23 | B109: 0.005303776264 | C109: 0.002188317616 | E109: 0.005634570156
A110: 2013-01-01
A111: 2013-05-24 | B111: 0.005386680365 | C111: 0.002218892912 | E111: 0.005673366525
A112: 2013-01-01
A113: 2013-05-27 | B113: 0.005525499582 | C113: 0.002284411403 | E113: 0.005720816986
A114: 2013-01-01
A115: 2013-05-29 | B115: 0.005531281233 | C115: 0.002314986699 | E115: 0.005718950607
A116: 2013-01-01
A117: 2013-05-30 | B117: 0.005536770821 | C117: 0.002328090398 | E117: 0.00571266733
A118: 2013-01-01
A119: 2013-05-31 | B119: 0.005294913054 | C119: 0.002301883001 | E119: 0.005610491992
A120: 2013-01-01
A121: 2013-06-03 | B121: 0.00529280901 | C121: 0.002345561996 | E121: 0.005604717548
A122: 2013-01-01
A123: 2013-06-04 | B123: 0.005269363523 | C123: 0.002354297795 | E123: 0.005588993811
A124: 2013-01-01
A125: 2013-06-05 | B125: 0.005268731713 | C125: 0.002367401493 | E125: 0.005583791696
A126: 2013-01-01
A127: 2013-06-06 | B127: 0.005286896229 | C127: 0.002384873091 | E127: 0.0055889083
A128: 2013-01-01
A129: 2013-06-07 | B129: 0.005203592777 | C129: 0.002384873091 | E129: 0.005553211499
A130: 2013-01-01
A131: 2013-06-10 | B131: 0.005134807527 | C131: 0.002411080487 | E131: 0.005508775001
A132: 2013-01-01
A133: 2013-06-11 | B133: 0.004938054085 | C133: 0.002380505191 | E133: 0.005404938367
A134: 2013-01-01
A135: 2013-06-12 | B135: 0.004889076948 | C135: 0.002384873091 | E135: 0.005381355751
A136: 2013-01-01
A137: 2013-06-14 | B137: 0.004976161569 | C137: 0.002428552085 | E137: 0.005413054571
A138: 2013-01-01
A139: 2013-06-17 | B139: 0.005051343888 | C139: 0.002485334778 | E139: 0.005440023578
A140: 2013-01-01
A141: 2013-06-18 | B141: 0.004974941164 | C141: 0.002476598979 | E141: 0.005388520301
A142: 2013-01-01
A143: 2013-06-19 | B143: 0.004991128296 | C143: 0.002494070577 | E143: 0.005394393625
A144: 2013-01-01
A145: 2013-06-21 | B145: 0.004665273428 | C145: 0.002441655783 | E145: 0.005218940604
